Department Family,Entity,Date,Expense Type,Expense area,Supplier,Transaction Number,Amount,VAT registration Number
Department of Health,Salisbury NHS Foundation Trust,16-Mar-18,DRUGS,Clinical Support,LLOYDSPHARMACY CLINICAL HOMECARE,SINV2769315,30385.29,
Department of Health,Salisbury NHS Foundation Trust,16-Mar-18,FOODSTUFFS,Facilities,PELICAN PROCUREMENT SERVICES LTD,34145 FEB-2018-NHS,62612.38,
Department of Health,Salisbury NHS Foundation Trust,16-Mar-18,DRUGS,Clinical Support,LLOYDSPHARMACY CLINICAL HOMECARE,SINV2767518,26980.69,
Department of Health,Salisbury NHS Foundation Trust,28-Mar-18,DRUGS,Clinical Support,LLOYDSPHARMACY CLINICAL HOMECARE,SINV2788583,30290.83,
Department of Health,Salisbury NHS Foundation Trust,02-Mar-18,BLDG STRUCTURES MAIN CONTR,Capital Projects,SOUTH WEST HIGHWAYS LIMITED,C20452B,18376.67,
Department of Health,Salisbury NHS Foundation Trust,02-Mar-18,BLDG STRUCTURES MAIN CONTR,Capital Projects,SOUTH WEST HIGHWAYS LIMITED,C20452B,155033.9,
Department of Health,Salisbury NHS Foundation Trust,02-Mar-18,BLDG STRUCTURES MAIN CONTR,Capital Projects,SOUTH WEST HIGHWAYS LIMITED,C20452B,11572.37,
Department of Health,Salisbury NHS Foundation Trust,28-Mar-18,DRUGS,Clinical Support,BAYER PLC,824C114475,21850,
Department of Health,Salisbury NHS Foundation Trust,28-Mar-18,DRUGS,Clinical Support,BAYER PLC,824C114475,4370,
Department of Health,Salisbury NHS Foundation Trust,22-Mar-18,COMPUTER MAINTENANCE ,Corporate - Informatics,ANS GROUP PLC,INV050079,6785.73,
Department of Health,Salisbury NHS Foundation Trust,22-Mar-18,COMPUTER MAINTENANCE,Corporate - Informatics,ANS GROUP PLC,INV050079,2102.64,
Department of Health,Salisbury NHS Foundation Trust,22-Mar-18,COMPUTER MAINTENANCE,Corporate - Informatics,ANS GROUP PLC,INV050079,2191.42,
Department of Health,Salisbury NHS Foundation Trust,22-Mar-18,COMPUTER MAINTENANCE,Corporate - Informatics,ANS GROUP PLC,INV050079,17886.4,
Department of Health,Salisbury NHS Foundation Trust,22-Mar-18,COMPUTER MAINTENANCE,Corporate - Informatics,ANS GROUP PLC,INV050079,438.28,
Department of Health,Salisbury NHS Foundation Trust,22-Mar-18,COMPUTER MAINTENANCE,Corporate - Informatics,ANS GROUP PLC,INV050079,3577.28,
Department of Health,Salisbury NHS Foundation Trust,22-Mar-18,COMPUTER MAINTENANCE,Corporate - Informatics,ANS GROUP PLC,INV050079,1357.15,
Department of Health,Salisbury NHS Foundation Trust,22-Mar-18,COMPUTER MAINTENANCE,Corporate - Informatics,ANS GROUP PLC,INV050079,420.53,
Department of Health,Salisbury NHS Foundation Trust,22-Mar-18,HARD/SOFTWARE-CONTRACT COMPUTER CONSULTANCY SERVICES,Corporate - Finance & Procurement,VERSION 1 SOLUTIONS LIMITED,INVSOL002151,6261.4,
Department of Health,Salisbury NHS Foundation Trust,22-Mar-18,HARD/SOFTWARE-CONTRACT COMPUTER CONSULTANCY SERVICES,Corporate - Finance & Procurement,VERSION 1 SOLUTIONS LIMITED,INVSOL002151,31307,
Department of Health,Salisbury NHS Foundation Trust,22-Mar-18,HARD/SOFTWARE-CONTRACT COMPUTER CONSULTANCY SERVICES,Corporate - Finance & Procurement,VERSION 1 SOLUTIONS LIMITED,INVSOL002151,4643,
Department of Health,Salisbury NHS Foundation Trust,22-Mar-18,HARD/SOFTWARE-CONTRACT COMPUTER CONSULTANCY SERVICES,Corporate - Finance & Procurement,VERSION 1 SOLUTIONS LIMITED,INVSOL002151,7800,
Department of Health,Salisbury NHS Foundation Trust,22-Mar-18,HARD/SOFTWARE-CONTRACT COMPUTER CONSULTANCY SERVICES,Corporate - Finance & Procurement,VERSION 1 SOLUTIONS LIMITED,INVSOL002151,928.6,
Department of Health,Salisbury NHS Foundation Trust,22-Mar-18,HARD/SOFTWARE-CONTRACT COMPUTER CONSULTANCY SERVICES,Corporate - Finance & Procurement,VERSION 1 SOLUTIONS LIMITED,INVSOL002151,1560,
Department of Health,Salisbury NHS Foundation Trust,22-Mar-18,HARD/SOFTWARE-CONTRACT COMPUTER CONSULTANCY SERVICES,Corporate - Finance & Procurement,VERSION 1 SOLUTIONS LIMITED,INVSOL002151,31307,
Department of Health,Salisbury NHS Foundation Trust,22-Mar-18,HARD/SOFTWARE-CONTRACT COMPUTER CONSULTANCY SERVICES,Corporate - Finance & Procurement,VERSION 1 SOLUTIONS LIMITED,INVSOL002151,4643,
Department of Health,Salisbury NHS Foundation Trust,22-Mar-18,HARD/SOFTWARE-CONTRACT COMPUTER CONSULTANCY SERVICES,Corporate - Finance & Procurement,VERSION 1 SOLUTIONS LIMITED,INVSOL002151,7800,
Department of Health,Salisbury NHS Foundation Trust,16-Mar-18,COMPUTER MAINTENANCE,Corporate - Informatics,CIVICA  UK LTD,C/HA162084,29718,
Department of Health,Salisbury NHS Foundation Trust,16-Mar-18,COMPUTER MAINTENANCE,Corporate - Informatics,CIVICA  UK LTD,C/HA162084,5943.6,
Department of Health,Salisbury NHS Foundation Trust,16-Mar-18,DRUGS,Clinical Support,ROCHE PRODUCTS LTD,1322007237,25147.75,
Department of Health,Salisbury NHS Foundation Trust,16-Mar-18,DRUGS,Clinical Support,ROCHE PRODUCTS LTD,1322007237,5029.55,
Department of Health,Salisbury NHS Foundation Trust,16-Mar-18,DRUGS,Clinical Support,CSL BEHRING UK LIMITED,991838811,28437.5,
Department of Health,Salisbury NHS Foundation Trust,16-Mar-18,DRUGS,Clinical Support,CSL BEHRING UK LIMITED,991838811,5687.5,
Department of Health,Salisbury NHS Foundation Trust,22-Mar-18,COMPUTER MAINTENANCE,Corporate - Corporate Development,3M UNITED KINGDOM PLC,9580257817,60000,
Department of Health,Salisbury NHS Foundation Trust,22-Mar-18,COMPUTER MAINTENANCE,Corporate - Corporate Development,3M UNITED KINGDOM PLC,9580257817,12000,
Department of Health,Salisbury NHS Foundation Trust,16-Mar-18,NETWORKING COSTS,Capital Projects,SECTRA LTD,SIN000483,1080,
Department of Health,Salisbury NHS Foundation Trust,16-Mar-18,NETWORKING COSTS,Capital Projects,SECTRA LTD,SIN000483,15535,
Department of Health,Salisbury NHS Foundation Trust,16-Mar-18,NETWORKING COSTS,Capital Projects,SECTRA LTD,SIN000483,1104,
Department of Health,Salisbury NHS Foundation Trust,16-Mar-18,NETWORKING COSTS,Capital Projects,SECTRA LTD,SIN000483,886,
Department of Health,Salisbury NHS Foundation Trust,16-Mar-18,SERVICES - AUDIT EXTERNAL NON STATUTORY,Corporate - Finance & Procurement,BDO LLP,1689796,24000,
Department of Health,Salisbury NHS Foundation Trust,16-Mar-18,SERVICES - AUDIT EXTERNAL NON STATUTORY,Corporate - Finance & Procurement,BDO LLP,1689796,4800,
Department of Health,Salisbury NHS Foundation Trust,22-Mar-18,BLDG STRUCTURES MAIN CONTR,Capital Projects,R G SPILLER LTD,IN023755,140638.02,
Department of Health,Salisbury NHS Foundation Trust,22-Mar-18,BLDG STRUCTURES MAIN CONTR,Capital Projects,R G SPILLER LTD,IN023755,21897.34,
Department of Health,Salisbury NHS Foundation Trust,16-Mar-18,NETWORKING COSTS,Capital Projects,SECTRA LTD,SIN000483,7163,
Department of Health,Salisbury NHS Foundation Trust,16-Mar-18,NETWORKING COSTS,Capital Projects,SECTRA LTD,SIN000483,220.8,
Department of Health,Salisbury NHS Foundation Trust,16-Mar-18,NETWORKING COSTS,Capital Projects,SECTRA LTD,SIN000483,177.2,
Department of Health,Salisbury NHS Foundation Trust,16-Mar-18,NETWORKING COSTS,Capital Projects,SECTRA LTD,SIN000483,216,
Department of Health,Salisbury NHS Foundation Trust,16-Mar-18,NETWORKING COSTS,Capital Projects,SECTRA LTD,SIN000483,1432.6,
Department of Health,Salisbury NHS Foundation Trust,16-Mar-18,NETWORKING COSTS,Capital Projects,SECTRA LTD,SIN000483,3107,
Department of Health,Salisbury NHS Foundation Trust,22-Mar-18,MEDICAL EQUIPMENT 5 YEARS,Capital Projects,MEDICAL IMAGING SYSTEMS,73745,12476.38,
Department of Health,Salisbury NHS Foundation Trust,22-Mar-18,MEDICAL EQUIPMENT 5 YEARS,Capital Projects,MEDICAL IMAGING SYSTEMS,73745,62381.9,
Department of Health,Salisbury NHS Foundation Trust,16-Mar-18,MEDICAL EQUIPMENT 5 YEARS,Capital Projects,MEDICAL IMAGING SYSTEMS,73693,62381.9,
Department of Health,Salisbury NHS Foundation Trust,16-Mar-18,MEDICAL EQUIPMENT 5 YEARS,Capital Projects,MEDICAL IMAGING SYSTEMS,73693,12476.38,
Department of Health,Salisbury NHS Foundation Trust,28-Mar-18,MEDPROSTH - OTHER,Medicine,MEDTRONIC LTD,1098874227,2484.4,
Department of Health,Salisbury NHS Foundation Trust,28-Mar-18,MEDPROSTH - OTHER,Medicine,MEDTRONIC LTD,1098874227,12422,
Department of Health,Salisbury NHS Foundation Trust,28-Mar-18,MEDPROSTH - OTHER,Medicine,MEDTRONIC LTD,1098874227,12422,
Department of Health,Salisbury NHS Foundation Trust,28-Mar-18,MEDPROSTH - OTHER,Medicine,MEDTRONIC LTD,1098874227,2484.4,
Department of Health,Salisbury NHS Foundation Trust,02-Mar-18,LAB EQUIP-LABORATORY APPARATUS,Clinical Support,BECKMAN COULTER,1399562,48862.89,
Department of Health,Salisbury NHS Foundation Trust,16-Mar-18,ENERGY WATER - GAS MAINS,Corporate - ETS,CORONA ENERGY,12824219,10471.6,
Department of Health,Salisbury NHS Foundation Trust,16-Mar-18,ENERGY WATER - GAS MAINS,Corporate - ETS,CORONA ENERGY,12824219,90787.79,
Department of Health,Salisbury NHS Foundation Trust,16-Mar-18,ENERGY WATER - GAS MAINS,Corporate - ETS,CORONA ENERGY,12824219,523.58,
Department of Health,Salisbury NHS Foundation Trust,16-Mar-18,ENERGY WATER - GAS MAINS,Corporate - ETS,CORONA ENERGY,12824219,18157.56,
Department of Health,Salisbury NHS Foundation Trust,16-Mar-18,TUBES,Surgery,NHS LOGISTICS,1018237002,153.61,
Department of Health,Salisbury NHS Foundation Trust,16-Mar-18,TUBES,Surgery,NHS LOGISTICS,1018237002,153.61,
Department of Health,Salisbury NHS Foundation Trust,16-Mar-18,TUBES,Surgery,NHS LOGISTICS,1018237002,153.61,
Department of Health,Salisbury NHS Foundation Trust,16-Mar-18,SURGICAL INSTRUMENTS: GENERAL,Surgery,NHS LOGISTICS,1018237002,603.09,
Department of Health,Salisbury NHS Foundation Trust,16-Mar-18,PATIENT APPLIANCES,Medicine,NHS LOGISTICS,1018237002,21.9,
Department of Health,Salisbury NHS Foundation Trust,16-Mar-18,MEDSURGCONS - OTHER,Surgery,NHS LOGISTICS,1018237002,63.97,
Department of Health,Salisbury NHS Foundation Trust,16-Mar-18,DRESSINGS - PRE STERILE,Musculo-Skeletal,NHS LOGISTICS,1018237002,158.27,
Department of Health,Salisbury NHS Foundation Trust,16-Mar-18,LAB EQUIP-LABORATORY APPARATUS,Clinical Support,NHS LOGISTICS,1018237002,81.33,
Department of Health,Salisbury NHS Foundation Trust,16-Mar-18,ADULTS HEARING AIDS,Surgery,NHS LOGISTICS,1018237002,231,
Department of Health,Salisbury NHS Foundation Trust,16-Mar-18,HEALTHCARE - WEAR,Clinical Support,NHS LOGISTICS,1018237002,21.43,
Department of Health,Salisbury NHS Foundation Trust,16-Mar-18,DISPOSABLE THEATRE DRAPES WIPES,Surgery,NHS LOGISTICS,1018237002,2.24,
Department of Health,Salisbury NHS Foundation Trust,16-Mar-18,DRESSINGS - PRE STERILE,Medicine,NHS LOGISTICS,1018237002,14.12,
Department of Health,Salisbury NHS Foundation Trust,16-Mar-18,SURGICAL INSTRUMENTS: DISPOSABLE,Medicine,NHS LOGISTICS,1018237002,18,
Department of Health,Salisbury NHS Foundation Trust,16-Mar-18,LAB EQUIP-LABORATORY APPARATUS,Clinical Support,NHS LOGISTICS,1018237002,19.38,
Department of Health,Salisbury NHS Foundation Trust,16-Mar-18,LAB EQUIP-LABORATORY APPARATUS,Clinical Support,NHS LOGISTICS,1018237002,542.88,
Department of Health,Salisbury NHS Foundation Trust,02-Mar-18,LAB REAGENTS-BUFFERS COMPUND SOLNS,Clinical Support,ILLUMINA CAMBRIDGE LTD,7020388480,26392.32,
Department of Health,Salisbury NHS Foundation Trust,02-Mar-18,LAB REAGENTS-BUFFERS COMPUND SOLNS,Clinical Support,ILLUMINA CAMBRIDGE LTD,7020388480,5278.46,
Department of Health,Salisbury NHS Foundation Trust,02-Mar-18,FM COMPUTER CONTRACTS,Clinical Support,PORTSMOUTH HOSPITALS NHS TRUST,9347306,125083.53,
Department of Health,Salisbury NHS Foundation Trust,22-Mar-18,ENERGY WATER - SEWERAGE CHARGES,Corporate - ETS,BWBSL,9050269470,10196.8,
Department of Health,Salisbury NHS Foundation Trust,09-Mar-18,ETS UNITARY CHARGE,Corporate,SALISBURY HEALTHCARE FACILITIES LTD,404,309277.51,
Department of Health,Salisbury NHS Foundation Trust,16-Mar-18,LAB EQUIP-LABORATORY APPARATUS,Clinical Support,NHS LOGISTICS,1018237002,34.43,
Department of Health,Salisbury NHS Foundation Trust,16-Mar-18,LAB EQUIP-LABORATORY APPARATUS,Clinical Support,NHS LOGISTICS,1018237002,51.8,
Department of Health,Salisbury NHS Foundation Trust,16-Mar-18,LAB EQUIP-LABORATORY APPARATUS,Clinical Support,NHS LOGISTICS,1018237002,41.88,
Department of Health,Salisbury NHS Foundation Trust,16-Mar-18,LAB EQUIP-LABORATORY APPARATUS,Clinical Support,NHS LOGISTICS,1018237002,40.56,
Department of Health,Salisbury NHS Foundation Trust,16-Mar-18,LAB EQUIP-LABORATORY APPARATUS,Clinical Support,NHS LOGISTICS,1018237002,83.83,
Department of Health,Salisbury NHS Foundation Trust,16-Mar-18,LAB EQUIP-LABORATORY APPARATUS,Clinical Support,NHS LOGISTICS,1018237002,472.88,
Department of Health,Salisbury NHS Foundation Trust,16-Mar-18,PATIENT APPLIANCES,Musculo-Skeletal,NHS LOGISTICS,1018237002,32.05,
Department of Health,Salisbury NHS Foundation Trust,16-Mar-18,PATIENT APPLIANCES,Musculo-Skeletal,NHS LOGISTICS,1018237002,32.2,
Department of Health,Salisbury NHS Foundation Trust,16-Mar-18,PATIENT APPLIANCES,Musculo-Skeletal,NHS LOGISTICS,1018237002,32.2,
Department of Health,Salisbury NHS Foundation Trust,16-Mar-18,PATIENT APPLIANCES,Musculo-Skeletal,NHS LOGISTICS,1018237002,32.2,
Department of Health,Salisbury NHS Foundation Trust,16-Mar-18,MEDSURGCONS - OTHER,Surgery,NHS LOGISTICS,1018237002,4.88,
Department of Health,Salisbury NHS Foundation Trust,22-Mar-18,ENERGY WATER - ELECTRICITY,Corporate - ETS,SCOTTISH POWER,105438496,10416.73,
Department of Health,Salisbury NHS Foundation Trust,22-Mar-18,ENERGY WATER - ELECTRICITY,Corporate - ETS,SCOTTISH POWER,105438496,6108.04,
Department of Health,Salisbury NHS Foundation Trust,22-Mar-18,ENERGY WATER - ELECTRICITY,Corporate - ETS,SCOTTISH POWER,105438496,52083.64,
Department of Health,Salisbury NHS Foundation Trust,22-Mar-18,ENERGY WATER - ELECTRICITY,Corporate - ETS,SCOTTISH POWER,105438496,305.4,
Department of Health,Salisbury NHS Foundation Trust,22-Mar-18,ENERGY WATER - WATER MAINS,Corporate - ETS,BWBSL,9050269470,23133.86,
Department of Health,Salisbury NHS Foundation Trust,16-Mar-18,OTHER MEDICAL SUPPLIES,Clinical Support,NHS LOGISTICS,1018237002,112.1,
Department of Health,Salisbury NHS Foundation Trust,16-Mar-18,SURGICAL INSTRUMENTS: GENERAL,Surgery,NHS LOGISTICS,1018237002,85.91,
Department of Health,Salisbury NHS Foundation Trust,16-Mar-18,MEDSURGCONS - OTHER,Surgery,NHS LOGISTICS,1018237002,63.97,
Department of Health,Salisbury NHS Foundation Trust,16-Mar-18,MEDSURGCONS - OTHER,Surgery,NHS LOGISTICS,1018237002,72,
Department of Health,Salisbury NHS Foundation Trust,16-Mar-18,M & S EQUIPELECTEQUIPINST - OTHER,Surgery,NHS LOGISTICS,1018237002,114.58,
Department of Health,Salisbury NHS Foundation Trust,16-Mar-18,BAGS SACKS - OTHER,Facilities,NHS LOGISTICS,1018237002,143.33,
Department of Health,Salisbury NHS Foundation Trust,16-Mar-18,LIQUID REFRESHMENTS,Facilities,NHS LOGISTICS,1018237002,7.82,
Department of Health,Salisbury NHS Foundation Trust,16-Mar-18,CLEANING MATERIALS PRODUCTS SUNDRIES,Facilities,NHS LOGISTICS,1018237002,75.2,
Department of Health,Salisbury NHS Foundation Trust,16-Mar-18,CLEANING MATERIALS PRODUCTS SUNDRIES,Facilities,NHS LOGISTICS,1018237002,13.75,
Department of Health,Salisbury NHS Foundation Trust,16-Mar-18,DISPOSABLE THEATRE DRAPES WIPES,Facilities,NHS LOGISTICS,1018237002,283.2,
Department of Health,Salisbury NHS Foundation Trust,16-Mar-18,CLEANING MATERIALS PRODUCTS SUNDRIES,Facilities,NHS LOGISTICS,1018237002,25.5,
Department of Health,Salisbury NHS Foundation Trust,16-Mar-18,BAGS SACKS - OTHER,Facilities,NHS LOGISTICS,1018237002,29.53,
Department of Health,Salisbury NHS Foundation Trust,16-Mar-18,CLEANING MATERIALS PRODUCTS SUNDRIES,Facilities,NHS LOGISTICS,1018237002,75.6,
Department of Health,Salisbury NHS Foundation Trust,16-Mar-18,DISPOSABLE THEATRE DRAPES WIPES,Facilities,NHS LOGISTICS,1018237002,114,
Department of Health,Salisbury NHS Foundation Trust,16-Mar-18,M & S EQUIPELECTEQUIPINST - OTHER,Medicine,NHS LOGISTICS,1018237002,8.4,
Department of Health,Salisbury NHS Foundation Trust,16-Mar-18,MEDSURGCONS - OTHER,Medicine,NHS LOGISTICS,1018237002,42.92,
Department of Health,Salisbury NHS Foundation Trust,16-Mar-18,MEDSURGCONS - OTHER,Medicine,NHS LOGISTICS,1018237002,42.92,
Department of Health,Salisbury NHS Foundation Trust,16-Mar-18,MEDSURGCONS - OTHER,Medicine,NHS LOGISTICS,1018237002,42.92,
Department of Health,Salisbury NHS Foundation Trust,16-Mar-18,DRESSINGS - PRE STERILE,Medicine,NHS LOGISTICS,1018237002,150,
Department of Health,Salisbury NHS Foundation Trust,16-Mar-18,HEALTHCARE - WEAR,Medicine,NHS LOGISTICS,1018237002,13.63,
Department of Health,Salisbury NHS Foundation Trust,16-Mar-18,OTHER MEDICAL SUPPLIES,Medicine,NHS LOGISTICS,1018237002,2.33,
Department of Health,Salisbury NHS Foundation Trust,16-Mar-18,BEVERAGES & AMBIENT FOOD,Surgery,NHS LOGISTICS,1018237002,43.24,
Department of Health,Salisbury NHS Foundation Trust,16-Mar-18,MEDSURGCONS - OTHER,Surgery,NHS LOGISTICS,1018237002,42.92,
Department of Health,Salisbury NHS Foundation Trust,16-Mar-18,MEDSURGCONS - OTHER,Surgery,NHS LOGISTICS,1018237002,42.92,
Department of Health,Salisbury NHS Foundation Trust,16-Mar-18,MEDSURGCONS - OTHER,Surgery,NHS LOGISTICS,1018237002,42.92,
Department of Health,Salisbury NHS Foundation Trust,16-Mar-18,SURGICAL INSTRUMENTS: GENERAL,Surgery,NHS LOGISTICS,1018237002,14.58,
Department of Health,Salisbury NHS Foundation Trust,16-Mar-18,BEVERAGES & AMBIENT FOOD,Surgery,NHS LOGISTICS,1018237002,28.68,
Department of Health,Salisbury NHS Foundation Trust,16-Mar-18,BEVERAGES & AMBIENT FOOD,Surgery,NHS LOGISTICS,1018237002,3.72,
Department of Health,Salisbury NHS Foundation Trust,16-Mar-18,PATIENT APPLIANCES,Clinical Support,NHS LOGISTICS,1018237002,22.17,
Department of Health,Salisbury NHS Foundation Trust,16-Mar-18,PATIENT APPLIANCES,Clinical Support,NHS LOGISTICS,1018237002,20,
Department of Health,Salisbury NHS Foundation Trust,16-Mar-18,LAB EQUIP-LABORATORY APPARATUS,Clinical Support,NHS LOGISTICS,1018237002,15.29,
Department of Health,Salisbury NHS Foundation Trust,16-Mar-18,LAB EQUIP-LABORATORY APPARATUS,Clinical Support,NHS LOGISTICS,1018237002,12.62,
Department of Health,Salisbury NHS Foundation Trust,16-Mar-18,LAB EQUIP-LABORATORY APPARATUS,Clinical Support,NHS LOGISTICS,1018237002,30.67,
Department of Health,Salisbury NHS Foundation Trust,16-Mar-18,LAB EQUIP-LABORATORY APPARATUS,Clinical Support,NHS LOGISTICS,1018237002,296.67,
Department of Health,Salisbury NHS Foundation Trust,16-Mar-18,LAB EQUIP-ANALYSERS,Clinical Support,NHS LOGISTICS,1018237002,38.1,
Department of Health,Salisbury NHS Foundation Trust,16-Mar-18,LAB EQUIP-LABORATORY APPARATUS,Clinical Support,NHS LOGISTICS,1018237002,12.92,
Department of Health,Salisbury NHS Foundation Trust,16-Mar-18,LAB EQUIP-LABORATORY APPARATUS,Clinical Support,NHS LOGISTICS,1018237002,48.33,
Department of Health,Salisbury NHS Foundation Trust,16-Mar-18,LAB EQUIP-LABORATORY APPARATUS,Clinical Support,NHS LOGISTICS,1018237002,655.08,
Department of Health,Salisbury NHS Foundation Trust,16-Mar-18,LAB EQUIP-LABORATORY APPARATUS,Clinical Support,NHS LOGISTICS,1018237002,12.83,
Department of Health,Salisbury NHS Foundation Trust,16-Mar-18,LAB EQUIP-LABORATORY APPARATUS,Clinical Support,NHS LOGISTICS,1018237002,12.83,
Department of Health,Salisbury NHS Foundation Trust,16-Mar-18,LAB EQUIP-LABORATORY APPARATUS,Clinical Support,NHS LOGISTICS,1018237002,62.08,
Department of Health,Salisbury NHS Foundation Trust,16-Mar-18,LAB EQUIP-ANALYSERS,Clinical Support,NHS LOGISTICS,1018237002,10.19,
Department of Health,Salisbury NHS Foundation Trust,16-Mar-18,MEDSURGCONS - OTHER,Clinical Support,NHS LOGISTICS,1018237002,14.65,
Department of Health,Salisbury NHS Foundation Trust,16-Mar-18,MEDSURGCONS - OTHER,Clinical Support,NHS LOGISTICS,1018237002,9.77,
Department of Health,Salisbury NHS Foundation Trust,16-Mar-18,LAB EQUIP-LABORATORY APPARATUS,Clinical Support,NHS LOGISTICS,1018237002,3.15,
Department of Health,Salisbury NHS Foundation Trust,16-Mar-18,LAB EQUIP-LABORATORY APPARATUS,Clinical Support,NHS LOGISTICS,1018237002,73.2,
Department of Health,Salisbury NHS Foundation Trust,16-Mar-18,OTHER MEDICAL SUPPLIES,Clinical Support,NHS LOGISTICS,1018237002,546,
Department of Health,Salisbury NHS Foundation Trust,16-Mar-18,LAB EQUIP-LABORATORY APPARATUS,Clinical Support,NHS LOGISTICS,1018237002,21.97,
Department of Health,Salisbury NHS Foundation Trust,16-Mar-18,TISSUES HAND TOWELS & TOILET PAPER,Medicine,NHS LOGISTICS,1018237002,1.24,
Department of Health,Salisbury NHS Foundation Trust,16-Mar-18,MEDSURGCONS - OTHER,Medicine,NHS LOGISTICS,1018237002,9.77,
Department of Health,Salisbury NHS Foundation Trust,16-Mar-18,MEDSURGCONS - OTHER,Medicine,NHS LOGISTICS,1018237002,9.77,
Department of Health,Salisbury NHS Foundation Trust,16-Mar-18,DRESSINGS - PRE STERILE,Medicine,NHS LOGISTICS,1018237002,150,
Department of Health,Salisbury NHS Foundation Trust,16-Mar-18,OTHER MEDICAL SUPPLIES,Medicine,NHS LOGISTICS,1018237002,0.78,
Department of Health,Salisbury NHS Foundation Trust,16-Mar-18,DRESSINGS - PRE STERILE,Musculo-Skeletal,NHS LOGISTICS,1018237002,24.66,
Department of Health,Salisbury NHS Foundation Trust,16-Mar-18,DRESSINGS - PRE STERILE,Musculo-Skeletal,NHS LOGISTICS,1018237002,22.5,
Department of Health,Salisbury NHS Foundation Trust,16-Mar-18,DRESSINGS - PRE STERILE,Musculo-Skeletal,NHS LOGISTICS,1018237002,30.49,
Department of Health,Salisbury NHS Foundation Trust,16-Mar-18,DRESSINGS - PRE STERILE,Musculo-Skeletal,NHS LOGISTICS,1018237002,32.21,
Department of Health,Salisbury NHS Foundation Trust,16-Mar-18,DRESSINGS - PRE STERILE,Musculo-Skeletal,NHS LOGISTICS,1018237002,12.36,
Department of Health,Salisbury NHS Foundation Trust,16-Mar-18,DRESSINGS - PRE STERILE,Musculo-Skeletal,NHS LOGISTICS,1018237002,18.24,
Department of Health,Salisbury NHS Foundation Trust,16-Mar-18,TISSUES HAND TOWELS & TOILET PAPER,Musculo-Skeletal,NHS LOGISTICS,1018237002,4.97,
Department of Health,Salisbury NHS Foundation Trust,16-Mar-18,TISSUES HAND TOWELS & TOILET PAPER,Musculo-Skeletal,NHS LOGISTICS,1018237002,0.78,
Department of Health,Salisbury NHS Foundation Trust,16-Mar-18,DRESSINGS - PRE STERILE,Medicine,NHS LOGISTICS,1018237002,121.13,
Department of Health,Salisbury NHS Foundation Trust,16-Mar-18,PATIENTS BABY WEAR,Medicine,NHS LOGISTICS,1018237002,32.13,
Department of Health,Salisbury NHS Foundation Trust,16-Mar-18,PATIENTS BABY WEAR,Medicine,NHS LOGISTICS,1018237002,29.8,
Department of Health,Salisbury NHS Foundation Trust,16-Mar-18,ANAESTHETIC EQUIPMENT ACCESSORIES,Medicine,NHS LOGISTICS,1018237002,1.25,
Department of Health,Salisbury NHS Foundation Trust,16-Mar-18,PATIENT APPLIANCES,Medicine,NHS LOGISTICS,1018237002,3.35,
Department of Health,Salisbury NHS Foundation Trust,16-Mar-18,PATIENT APPLIANCES,Medicine,NHS LOGISTICS,1018237002,6.7,
Department of Health,Salisbury NHS Foundation Trust,16-Mar-18,PATIENT APPLIANCES,Medicine,NHS LOGISTICS,1018237002,6.7,
Department of Health,Salisbury NHS Foundation Trust,16-Mar-18,PATIENT APPLIANCES,Medicine,NHS LOGISTICS,1018237002,6.7,
Department of Health,Salisbury NHS Foundation Trust,16-Mar-18,PATIENT APPLIANCES,Medicine,NHS LOGISTICS,1018237002,8.78,
Department of Health,Salisbury NHS Foundation Trust,16-Mar-18,DISPOSABLE THEATRE DRAPES WIPES,Clinical Support,NHS LOGISTICS,1018237002,246.8,
Department of Health,Salisbury NHS Foundation Trust,16-Mar-18,LAB EQUIP-LABORATORY APPARATUS,Musculo-Skeletal,NHS LOGISTICS,1018237002,6.13,
Department of Health,Salisbury NHS Foundation Trust,16-Mar-18,M & S EQUIPELECTEQUIPINST - OTHER,Medicine,NHS LOGISTICS,1018237002,8.4,
Department of Health,Salisbury NHS Foundation Trust,16-Mar-18,MEDSURGCONS - OTHER,Medicine,NHS LOGISTICS,1018237002,24.42,
Department of Health,Salisbury NHS Foundation Trust,16-Mar-18,MEDSURGCONS - OTHER,Medicine,NHS LOGISTICS,1018237002,42.92,
Department of Health,Salisbury NHS Foundation Trust,16-Mar-18,MEDSURGCONS - OTHER,Medicine,NHS LOGISTICS,1018237002,42.92,
Department of Health,Salisbury NHS Foundation Trust,16-Mar-18,OTHER MEDICAL SUPPLIES,Medicine,NHS LOGISTICS,1018237002,5.58,
Department of Health,Salisbury NHS Foundation Trust,16-Mar-18,CLEANING MATERIALS PRODUCTS SUNDRIES,Medicine,NHS LOGISTICS,1018237002,24.27,
Department of Health,Salisbury NHS Foundation Trust,16-Mar-18,OTHER MEDICAL SUPPLIES,Medicine,NHS LOGISTICS,1018237002,1.88,
Department of Health,Salisbury NHS Foundation Trust,16-Mar-18,PATIENT APPLIANCES,Medicine,NHS LOGISTICS,1018237002,3.35,
Department of Health,Salisbury NHS Foundation Trust,16-Mar-18,PATIENT APPLIANCES,Medicine,NHS LOGISTICS,1018237002,3.35,
Department of Health,Salisbury NHS Foundation Trust,16-Mar-18,MEDSURGCONS - OTHER,Medicine,NHS LOGISTICS,1018237002,6.82,
Department of Health,Salisbury NHS Foundation Trust,16-Mar-18,TISSUES HAND TOWELS & TOILET PAPER,Medicine,NHS LOGISTICS,1018237002,0.68,
Department of Health,Salisbury NHS Foundation Trust,16-Mar-18,BAGS SACKS - OTHER,Surgery,NHS LOGISTICS,1018237002,12.19,
Department of Health,Salisbury NHS Foundation Trust,16-Mar-18,TISSUES HAND TOWELS & TOILET PAPER,Surgery,NHS LOGISTICS,1018237002,3.72,
Department of Health,Salisbury NHS Foundation Trust,16-Mar-18,COOKING & KITCHEN UTENSILS,Surgery,NHS LOGISTICS,1018237002,20.38,
Department of Health,Salisbury NHS Foundation Trust,16-Mar-18,DRESSINGS - PRE STERILE,Surgery,NHS LOGISTICS,1018237002,9.39,
Department of Health,Salisbury NHS Foundation Trust,16-Mar-18,DRESSINGS - PRE STERILE,Surgery,NHS LOGISTICS,1018237002,5.66,
Department of Health,Salisbury NHS Foundation Trust,16-Mar-18,DRESSINGS - PRE STERILE,Surgery,NHS LOGISTICS,1018237002,4.98,
Department of Health,Salisbury NHS Foundation Trust,16-Mar-18,DRESSINGS - PRE STERILE,Surgery,NHS LOGISTICS,1018237002,11.47,
Department of Health,Salisbury NHS Foundation Trust,16-Mar-18,DRESSINGS - PRE STERILE,Surgery,NHS LOGISTICS,1018237002,7.87,
Department of Health,Salisbury NHS Foundation Trust,16-Mar-18,MEDSURGCONS - OTHER,Surgery,NHS LOGISTICS,1018237002,24.42,
Department of Health,Salisbury NHS Foundation Trust,16-Mar-18,MEDSURGCONS - OTHER,Surgery,NHS LOGISTICS,1018237002,24.42,
Department of Health,Salisbury NHS Foundation Trust,16-Mar-18,OTHER MEDICAL SUPPLIES,Surgery,NHS LOGISTICS,1018237002,252.86,
Department of Health,Salisbury NHS Foundation Trust,16-Mar-18,DRESSINGS - PRE STERILE,Medicine,NHS LOGISTICS,1018237002,14,
Department of Health,Salisbury NHS Foundation Trust,16-Mar-18,DRESSINGS - PRE STERILE,Medicine,NHS LOGISTICS,1018237002,32.12,
Department of Health,Salisbury NHS Foundation Trust,16-Mar-18,MEDSURGCONS - OTHER,Medicine,NHS LOGISTICS,1018237002,19.53,
Department of Health,Salisbury NHS Foundation Trust,16-Mar-18,MEDSURGCONS - OTHER,Medicine,NHS LOGISTICS,1018237002,19.53,
Department of Health,Salisbury NHS Foundation Trust,16-Mar-18,MEDSURGCONS - OTHER,Medicine,NHS LOGISTICS,1018237002,19.53,
Department of Health,Salisbury NHS Foundation Trust,16-Mar-18,OTHER MEDICAL SUPPLIES,Medicine,NHS LOGISTICS,1018237002,1.88,
Department of Health,Salisbury NHS Foundation Trust,16-Mar-18,OTHER MEDICAL SUPPLIES,Medicine,NHS LOGISTICS,1018237002,1.48,
Department of Health,Salisbury NHS Foundation Trust,16-Mar-18,DRESSINGS - PRE STERILE,Surgery,NHS LOGISTICS,1018237002,15.7,
Department of Health,Salisbury NHS Foundation Trust,16-Mar-18,DRESSINGS - PRE STERILE,Surgery,NHS LOGISTICS,1018237002,5.77,
Department of Health,Salisbury NHS Foundation Trust,16-Mar-18,M & S EQUIPELECTEQUIPINST - OTHER,Surgery,NHS LOGISTICS,1018237002,114.58,
Department of Health,Salisbury NHS Foundation Trust,16-Mar-18,OTHER MEDICAL SUPPLIES,Musculo-Skeletal,NHS LOGISTICS,1018237002,3.63,
Department of Health,Salisbury NHS Foundation Trust,16-Mar-18,M & S EQUIPELECTEQUIPINST - OTHER,Clinical Support,NHS LOGISTICS,1018237002,128.87,
Department of Health,Salisbury NHS Foundation Trust,16-Mar-18,MEDSURGCONS - OTHER,Clinical Support,NHS LOGISTICS,1018237002,9.77,
Department of Health,Salisbury NHS Foundation Trust,16-Mar-18,TISSUES HAND TOWELS & TOILET PAPER,Clinical Support,NHS LOGISTICS,1018237002,0.78,
Department of Health,Salisbury NHS Foundation Trust,16-Mar-18,OTHER MEDICAL SUPPLIES,Clinical Support,NHS LOGISTICS,1018237002,6.84,
Department of Health,Salisbury NHS Foundation Trust,16-Mar-18,DRESSINGS - PRE STERILE,Clinical Support,NHS LOGISTICS,1018237002,22.17,
Department of Health,Salisbury NHS Foundation Trust,16-Mar-18,OTHER MEDICAL SUPPLIES,Clinical Support,NHS LOGISTICS,1018237002,149.93,
Department of Health,Salisbury NHS Foundation Trust,16-Mar-18,MEDSURGCONS - OTHER,Musculo-Skeletal,NHS LOGISTICS,1018237002,42.92,
Department of Health,Salisbury NHS Foundation Trust,16-Mar-18,MEDSURGCONS - OTHER,Musculo-Skeletal,NHS LOGISTICS,1018237002,24.42,
Department of Health,Salisbury NHS Foundation Trust,16-Mar-18,MEDSURGCONS - OTHER,Musculo-Skeletal,NHS LOGISTICS,1018237002,42.92,
Department of Health,Salisbury NHS Foundation Trust,16-Mar-18,MEDSURGCONS - OTHER,Musculo-Skeletal,NHS LOGISTICS,1018237002,42.92,
Department of Health,Salisbury NHS Foundation Trust,16-Mar-18,PATIENT APPLIANCES,Musculo-Skeletal,NHS LOGISTICS,1018237002,6.7,
Department of Health,Salisbury NHS Foundation Trust,16-Mar-18,OTHER MEDICAL SUPPLIES,Surgery,NHS LOGISTICS,1018237002,59.68,
Department of Health,Salisbury NHS Foundation Trust,16-Mar-18,OTHER MEDICAL SUPPLIES,Surgery,NHS LOGISTICS,1018237002,58.78,
Department of Health,Salisbury NHS Foundation Trust,16-Mar-18,OTHER MEDICAL SUPPLIES,Surgery,NHS LOGISTICS,1018237002,58.78,
Department of Health,Salisbury NHS Foundation Trust,16-Mar-18,PATIENT APPLIANCES,Medicine,NHS LOGISTICS,1018237002,39.46,
Department of Health,Salisbury NHS Foundation Trust,16-Mar-18,ANAESTHETIC EQUIPMENT ACCESSORIES,Medicine,NHS LOGISTICS,1018237002,56.45,
Department of Health,Salisbury NHS Foundation Trust,16-Mar-18,OTHER MEDICAL SUPPLIES,Medicine,NHS LOGISTICS,1018237002,157.89,
Department of Health,Salisbury NHS Foundation Trust,16-Mar-18,DRESSINGS - PRE STERILE,Medicine,NHS LOGISTICS,1018237002,7.52,
Department of Health,Salisbury NHS Foundation Trust,16-Mar-18,DRESSINGS - PRE STERILE,Medicine,NHS LOGISTICS,1018237002,3.29,
Department of Health,Salisbury NHS Foundation Trust,16-Mar-18,PATIENT APPLIANCES,Medicine,NHS LOGISTICS,1018237002,5.34,
Department of Health,Salisbury NHS Foundation Trust,16-Mar-18,DRESSINGS - PRE STERILE,Medicine,NHS LOGISTICS,1018237002,42,
Department of Health,Salisbury NHS Foundation Trust,16-Mar-18,TUBES,Medicine,NHS LOGISTICS,1018237002,6.99,
Department of Health,Salisbury NHS Foundation Trust,16-Mar-18,HEALTHCARE - WEAR,Medicine,NHS LOGISTICS,1018237002,63.9,
Department of Health,Salisbury NHS Foundation Trust,16-Mar-18,OTHER MEDICAL SUPPLIES,Medicine,NHS LOGISTICS,1018237002,7.63,
Department of Health,Salisbury NHS Foundation Trust,16-Mar-18,PATIENT APPLIANCES,Medicine,NHS LOGISTICS,1018237002,4.03,
Department of Health,Salisbury NHS Foundation Trust,16-Mar-18,PATIENT APPLIANCES,Medicine,NHS LOGISTICS,1018237002,12.08,
Department of Health,Salisbury NHS Foundation Trust,16-Mar-18,ANAESTHETIC EQUIPMENT ACCESSORIES,Medicine,NHS LOGISTICS,1018237002,6.25,
Department of Health,Salisbury NHS Foundation Trust,16-Mar-18,OTHER MEDICAL SUPPLIES,Medicine,NHS LOGISTICS,1018237002,3.77,
Department of Health,Salisbury NHS Foundation Trust,16-Mar-18,M & S EQUIPELECTEQUIPINST - OTHER,Clinical Support,NHS LOGISTICS,1018237002,152.63,
Department of Health,Salisbury NHS Foundation Trust,16-Mar-18,DRESSINGS - PRE STERILE,Clinical Support,NHS LOGISTICS,1018237002,9.39,
Department of Health,Salisbury NHS Foundation Trust,16-Mar-18,MEDSURGCONS - OTHER,Clinical Support,NHS LOGISTICS,1018237002,19.53,
Department of Health,Salisbury NHS Foundation Trust,16-Mar-18,MEDSURGCONS - OTHER,Clinical Support,NHS LOGISTICS,1018237002,19.53,
Department of Health,Salisbury NHS Foundation Trust,16-Mar-18,MEDSURGCONS - OTHER,Clinical Support,NHS LOGISTICS,1018237002,9.77,
Department of Health,Salisbury NHS Foundation Trust,16-Mar-18,PATIENT APPLIANCES,Clinical Support,NHS LOGISTICS,1018237002,4.32,
Department of Health,Salisbury NHS Foundation Trust,16-Mar-18,DISPOSABLE THEATRE DRAPES WIPES,Medicine,NHS LOGISTICS,1018237002,10.65,
Department of Health,Salisbury NHS Foundation Trust,16-Mar-18,MEDSURGCONS - OTHER,Surgery,NHS LOGISTICS,1018237002,24.42,
Department of Health,Salisbury NHS Foundation Trust,16-Mar-18,MEDSURGCONS - OTHER,Surgery,NHS LOGISTICS,1018237002,24.42,
Department of Health,Salisbury NHS Foundation Trust,16-Mar-18,MEDSURGCONS - OTHER,Medicine,NHS LOGISTICS,1018237002,9.77,
Department of Health,Salisbury NHS Foundation Trust,16-Mar-18,MEDSURGCONS - OTHER,Medicine,NHS LOGISTICS,1018237002,56.12,
Department of Health,Salisbury NHS Foundation Trust,16-Mar-18,MEDSURGCONS - OTHER,Medicine,NHS LOGISTICS,1018237002,81.63,
Department of Health,Salisbury NHS Foundation Trust,16-Mar-18,ADULTS HEARING AIDS,Surgery,NHS LOGISTICS,1018237002,70.67,
Department of Health,Salisbury NHS Foundation Trust,16-Mar-18,ADULTS HEARING AIDS,Surgery,NHS LOGISTICS,1018237002,64.71,
Department of Health,Salisbury NHS Foundation Trust,16-Mar-18,ADULTS HEARING AIDS,Surgery,NHS LOGISTICS,1018237002,424.5,
Department of Health,Salisbury NHS Foundation Trust,16-Mar-18,M & S EQUIPELECTEQUIPINST - OTHER,Surgery,NHS LOGISTICS,1018237002,20.25,
Department of Health,Salisbury NHS Foundation Trust,16-Mar-18,OTHER MEDICAL SUPPLIES,Surgery,NHS LOGISTICS,1018237002,4.69,
Department of Health,Salisbury NHS Foundation Trust,16-Mar-18,ANAESTHETIC EQUIPMENT ACCESSORIES,Surgery,NHS LOGISTICS,1018237002,2.5,
Department of Health,Salisbury NHS Foundation Trust,16-Mar-18,OTHER MEDICAL SUPPLIES,Surgery,NHS LOGISTICS,1018237002,5.58,
Department of Health,Salisbury NHS Foundation Trust,16-Mar-18,OTHER MEDICAL SUPPLIES,Surgery,NHS LOGISTICS,1018237002,7.53,
Department of Health,Salisbury NHS Foundation Trust,16-Mar-18,OTHER MEDICAL SUPPLIES,Surgery,NHS LOGISTICS,1018237002,3.1,
Department of Health,Salisbury NHS Foundation Trust,16-Mar-18,TISSUES HAND TOWELS & TOILET PAPER,Surgery,NHS LOGISTICS,1018237002,1.37,
Department of Health,Salisbury NHS Foundation Trust,16-Mar-18,DISPOSABLE THEATRE DRAPES WIPES,Surgery,NHS LOGISTICS,1018237002,3.55,
Department of Health,Salisbury NHS Foundation Trust,16-Mar-18,DRESSINGS - PRE STERILE,Surgery,NHS LOGISTICS,1018237002,2.49,
Department of Health,Salisbury NHS Foundation Trust,16-Mar-18,MEDSURGCONS - OTHER,Surgery,NHS LOGISTICS,1018237002,9.77,
Department of Health,Salisbury NHS Foundation Trust,16-Mar-18,MEDSURGCONS - OTHER,Surgery,NHS LOGISTICS,1018237002,39.07,
Department of Health,Salisbury NHS Foundation Trust,16-Mar-18,MEDSURGCONS - OTHER,Surgery,NHS LOGISTICS,1018237002,29.3,
Department of Health,Salisbury NHS Foundation Trust,16-Mar-18,HEALTHCARE - WEAR,Surgery,NHS LOGISTICS,1018237002,522.75,
Department of Health,Salisbury NHS Foundation Trust,16-Mar-18,OTHER MEDICAL SUPPLIES,Surgery,NHS LOGISTICS,1018237002,1.88,
Department of Health,Salisbury NHS Foundation Trust,16-Mar-18,MEDSURGCONS - OTHER,Surgery,NHS LOGISTICS,1018237002,59.78,
Department of Health,Salisbury NHS Foundation Trust,16-Mar-18,MEDSURGCONS - OTHER,Surgery,NHS LOGISTICS,1018237002,6.82,
Department of Health,Salisbury NHS Foundation Trust,16-Mar-18,PATIENT APPLIANCES,Surgery,NHS LOGISTICS,1018237002,7.8,
Department of Health,Salisbury NHS Foundation Trust,16-Mar-18,DISPOSABLE THEATRE DRAPES WIPES,Surgery,NHS LOGISTICS,1018237002,1.32,
Department of Health,Salisbury NHS Foundation Trust,16-Mar-18,MEDSURGCONS - OTHER,Surgery,NHS LOGISTICS,1018237002,5.34,
Department of Health,Salisbury NHS Foundation Trust,16-Mar-18,DISPOSABLE THEATRE DRAPES WIPES,Surgery,NHS LOGISTICS,1018237002,2.24,
Department of Health,Salisbury NHS Foundation Trust,16-Mar-18,DISPOSABLE THEATRE DRAPES WIPES,Surgery,NHS LOGISTICS,1018237002,7.1,
Department of Health,Salisbury NHS Foundation Trust,16-Mar-18,DRESSINGS - PRE STERILE,Medicine,NHS LOGISTICS,1018237002,18.37,
Department of Health,Salisbury NHS Foundation Trust,16-Mar-18,DRESSINGS - PRE STERILE,Medicine,NHS LOGISTICS,1018237002,7.52,
Department of Health,Salisbury NHS Foundation Trust,16-Mar-18,TISSUES HAND TOWELS & TOILET PAPER,Medicine,NHS LOGISTICS,1018237002,1.24,
Department of Health,Salisbury NHS Foundation Trust,16-Mar-18,CLEANING MATERIALS PRODUCTS SUNDRIES,Medicine,NHS LOGISTICS,1018237002,5.53,
Department of Health,Salisbury NHS Foundation Trust,16-Mar-18,DRESSINGS - PRE STERILE,Medicine,NHS LOGISTICS,1018237002,9.97,
Department of Health,Salisbury NHS Foundation Trust,16-Mar-18,HEALTHCARE - WEAR,Medicine,NHS LOGISTICS,1018237002,63.9,
Department of Health,Salisbury NHS Foundation Trust,16-Mar-18,OTHER MEDICAL SUPPLIES,Medicine,NHS LOGISTICS,1018237002,1.88,
Department of Health,Salisbury NHS Foundation Trust,16-Mar-18,PATIENT APPLIANCES,Medicine,NHS LOGISTICS,1018237002,6.7,
Department of Health,Salisbury NHS Foundation Trust,16-Mar-18,TISSUES HAND TOWELS & TOILET PAPER,Medicine,NHS LOGISTICS,1018237002,0.68,
Department of Health,Salisbury NHS Foundation Trust,16-Mar-18,DRESSINGS - PRE STERILE,Medicine,NHS LOGISTICS,1018237002,7.52,
Department of Health,Salisbury NHS Foundation Trust,16-Mar-18,M & S EQUIPELECTEQUIPINST - OTHER,Medicine,NHS LOGISTICS,1018237002,8.4,
Department of Health,Salisbury NHS Foundation Trust,16-Mar-18,TOILETRIES PERSONAL HYGIENE PRODUCTS,Medicine,NHS LOGISTICS,1018237002,4.63,
Department of Health,Salisbury NHS Foundation Trust,16-Mar-18,DRESSINGS - PRE STERILE,Medicine,NHS LOGISTICS,1018237002,28,
Department of Health,Salisbury NHS Foundation Trust,16-Mar-18,DRESSINGS - PRE STERILE,Medicine,NHS LOGISTICS,1018237002,4.98,
Department of Health,Salisbury NHS Foundation Trust,16-Mar-18,HEALTHCARE - WEAR,Medicine,NHS LOGISTICS,1018237002,95.85,
Department of Health,Salisbury NHS Foundation Trust,16-Mar-18,ANAESTHETIC EQUIPMENT ACCESSORIES,Medicine,NHS LOGISTICS,1018237002,6.25,
Department of Health,Salisbury NHS Foundation Trust,16-Mar-18,OTHER MEDICAL SUPPLIES,Medicine,NHS LOGISTICS,1018237002,5.58,
Department of Health,Salisbury NHS Foundation Trust,16-Mar-18,OTHER MEDICAL SUPPLIES,Medicine,NHS LOGISTICS,1018237002,3.77,
Department of Health,Salisbury NHS Foundation Trust,16-Mar-18,PATIENT APPLIANCES,Medicine,NHS LOGISTICS,1018237002,3.35,
Department of Health,Salisbury NHS Foundation Trust,16-Mar-18,MED SURG EQUIP REP MAINT CLEANING,Medicine,NHS LOGISTICS,1018237002,10.97,
Department of Health,Salisbury NHS Foundation Trust,16-Mar-18,DISPOSABLE THEATRE DRAPES WIPES,Medicine,NHS LOGISTICS,1018237002,10.65,
Department of Health,Salisbury NHS Foundation Trust,16-Mar-18,OTHER MEDICAL SUPPLIES,Surgery,NHS LOGISTICS,1018237002,11.42,
Department of Health,Salisbury NHS Foundation Trust,16-Mar-18,TISSUES HAND TOWELS & TOILET PAPER,Medicine,NHS LOGISTICS,1018237002,4.97,
Department of Health,Salisbury NHS Foundation Trust,16-Mar-18,MEDSURGCONS - OTHER,Medicine,NHS LOGISTICS,1018237002,24.42,
Department of Health,Salisbury NHS Foundation Trust,16-Mar-18,TUBES,Clinical Support,NHS LOGISTICS,1018237002,29.93,
Department of Health,Salisbury NHS Foundation Trust,16-Mar-18,OTHER MEDICAL SUPPLIES,Clinical Support,NHS LOGISTICS,1018237002,37.37,
Department of Health,Salisbury NHS Foundation Trust,16-Mar-18,DRESSINGS - PRE STERILE,Surgery,NHS LOGISTICS,1018237002,90,
Department of Health,Salisbury NHS Foundation Trust,16-Mar-18,DRESSINGS - PRE STERILE,Surgery,NHS LOGISTICS,1018237002,90,
Department of Health,Salisbury NHS Foundation Trust,16-Mar-18,HEARING AIDS SPARES,Surgery,NHS LOGISTICS,1018237002,20.04,
Department of Health,Salisbury NHS Foundation Trust,16-Mar-18,M & S EQUIPELECTEQUIPINST - OTHER,Corporate - HR/Education,NHS LOGISTICS,1018237002,12.33,
Department of Health,Salisbury NHS Foundation Trust,16-Mar-18,DISPOSABLE THEATRE DRAPES WIPES,Surgery,NHS LOGISTICS,1018237002,12,
Department of Health,Salisbury NHS Foundation Trust,16-Mar-18,DISPOSABLE THEATRE DRAPES WIPES,Surgery,NHS LOGISTICS,1018237002,12,
Department of Health,Salisbury NHS Foundation Trust,16-Mar-18,CLEANING MATERIALS PRODUCTS SUNDRIES,Surgery,NHS LOGISTICS,1018237002,5.67,
Department of Health,Salisbury NHS Foundation Trust,16-Mar-18,TISSUES HAND TOWELS & TOILET PAPER,Clinical Support,NHS LOGISTICS,1018237002,10.65,
Department of Health,Salisbury NHS Foundation Trust,16-Mar-18,ANAESTHETIC EQUIPMENT ACCESSORIES,Medicine,NHS LOGISTICS,1018237002,1.88,
Department of Health,Salisbury NHS Foundation Trust,16-Mar-18,DISPOSABLE THEATRE DRAPES WIPES,Medicine,NHS LOGISTICS,1018237002,3.55,
Department of Health,Salisbury NHS Foundation Trust,16-Mar-18,DISPOSABLE THEATRE DRAPES WIPES,Surgery,NHS LOGISTICS,1018237002,10.65,
Department of Health,Salisbury NHS Foundation Trust,16-Mar-18,DISPOSABLE THEATRE DRAPES WIPES,Surgery,NHS LOGISTICS,1018237002,85.19,
Department of Health,Salisbury NHS Foundation Trust,16-Mar-18,ANAESTHETIC EQUIPMENT ACCESSORIES,Medicine,NHS LOGISTICS,1018237002,0.63,
Department of Health,Salisbury NHS Foundation Trust,16-Mar-18,SURGICAL INSTRUMENTS: GENERAL,Medicine,NHS LOGISTICS,1018237002,4.74,
Department of Health,Salisbury NHS Foundation Trust,16-Mar-18,DISPOSABLE THEATRE DRAPES WIPES,Medicine,NHS LOGISTICS,1018237002,2.63,
Department of Health,Salisbury NHS Foundation Trust,16-Mar-18,DISPOSABLE THEATRE DRAPES WIPES,Medicine,NHS LOGISTICS,1018237002,3.55,
Department of Health,Salisbury NHS Foundation Trust,16-Mar-18,DRESSINGS - PRE STERILE,Clinical Support,NHS LOGISTICS,1018237002,0.73,
Department of Health,Salisbury NHS Foundation Trust,16-Mar-18,OTHER MEDICAL SUPPLIES,Musculo-Skeletal,NHS LOGISTICS,1018237002,5.65,
Department of Health,Salisbury NHS Foundation Trust,16-Mar-18,OTHER MEDICAL SUPPLIES,Musculo-Skeletal,NHS LOGISTICS,1018237002,3.67,
Department of Health,Salisbury NHS Foundation Trust,16-Mar-18,OTHER MEDICAL SUPPLIES,Musculo-Skeletal,NHS LOGISTICS,1018237002,3.88,
Department of Health,Salisbury NHS Foundation Trust,16-Mar-18,DISPOSABLE THEATRE DRAPES WIPES,Musculo-Skeletal,NHS LOGISTICS,1018237002,23.1,
Department of Health,Salisbury NHS Foundation Trust,16-Mar-18,DRUGS,Medicine,NHS LOGISTICS,1018237002,12.21,
Department of Health,Salisbury NHS Foundation Trust,16-Mar-18,OTHER MEDICAL SUPPLIES,Corporate - Finance & Procurement,NHS LOGISTICS,1018237002,11.87,
Department of Health,Salisbury NHS Foundation Trust,16-Mar-18,OTHER MEDICAL SUPPLIES,Corporate - Finance & Procurement,NHS LOGISTICS,1018237002,118.85,
Department of Health,Salisbury NHS Foundation Trust,16-Mar-18,TISSUES HAND TOWELS & TOILET PAPER,Clinical Support,NHS LOGISTICS,1018237002,21.3,
Department of Health,Salisbury NHS Foundation Trust,16-Mar-18,NON DISPOSABLE BED LINEN,Clinical Support,NHS LOGISTICS,1018237002,17.75,
Department of Health,Salisbury NHS Foundation Trust,16-Mar-18,D IMAG & RADIO - X RAY FILM PROCESSING CHEMICALS,Surgery,NHS LOGISTICS,1018237002,112.58,
Department of Health,Salisbury NHS Foundation Trust,16-Mar-18,MEDSURGCONS - OTHER,Surgery,NHS LOGISTICS,1018237002,24.42,
Department of Health,Salisbury NHS Foundation Trust,16-Mar-18,MEDSURGCONS - OTHER,Surgery,NHS LOGISTICS,1018237002,24.42,
Department of Health,Salisbury NHS Foundation Trust,16-Mar-18,MEDSURGCONS - OTHER,Surgery,NHS LOGISTICS,1018237002,39.07,
Department of Health,Salisbury NHS Foundation Trust,16-Mar-18,MEDSURGCONS - OTHER,Medicine,NHS LOGISTICS,1018237002,4.88,
Department of Health,Salisbury NHS Foundation Trust,16-Mar-18,MEDSURGCONS - OTHER,Medicine,NHS LOGISTICS,1018237002,4.88,
Department of Health,Salisbury NHS Foundation Trust,16-Mar-18,MEDSURGCONS - OTHER,Medicine,NHS LOGISTICS,1018237002,4.88,
Department of Health,Salisbury NHS Foundation Trust,16-Mar-18,OTHER MEDICAL SUPPLIES,Medicine,NHS LOGISTICS,1018237002,1.88,
Department of Health,Salisbury NHS Foundation Trust,16-Mar-18,MEDSURGCONS - OTHER,Medicine,NHS LOGISTICS,1018237002,9.77,
Department of Health,Salisbury NHS Foundation Trust,16-Mar-18,MEDSURGCONS - OTHER,Medicine,NHS LOGISTICS,1018237002,9.77,
Department of Health,Salisbury NHS Foundation Trust,16-Mar-18,MEDSURGCONS - OTHER,Medicine,NHS LOGISTICS,1018237002,24.42,
Department of Health,Salisbury NHS Foundation Trust,16-Mar-18,MEDSURGCONS - OTHER,Medicine,NHS LOGISTICS,1018237002,19.53,
Department of Health,Salisbury NHS Foundation Trust,16-Mar-18,MEDSURGCONS - OTHER,Medicine,NHS LOGISTICS,1018237002,42.92,
Department of Health,Salisbury NHS Foundation Trust,16-Mar-18,MEDSURGCONS - OTHER,Medicine,NHS LOGISTICS,1018237002,42.92,
Department of Health,Salisbury NHS Foundation Trust,16-Mar-18,MEDSURGCONS - OTHER,Medicine,NHS LOGISTICS,1018237002,59.78,
Department of Health,Salisbury NHS Foundation Trust,16-Mar-18,MEDSURGCONS - OTHER,Medicine,NHS LOGISTICS,1018237002,3.91,
Department of Health,Salisbury NHS Foundation Trust,16-Mar-18,MEDPROSTH-SPINAL IMPLANTS,Surgery,NHS LOGISTICS,1018237002,120.41,
Department of Health,Salisbury NHS Foundation Trust,16-Mar-18,TUBES,Medicine,NHS LOGISTICS,1018237002,6.85,
Department of Health,Salisbury NHS Foundation Trust,16-Mar-18,SERVICES FROM NHS BODIES,Medicine,NHS LOGISTICS,1018237002,4.44,
Department of Health,Salisbury NHS Foundation Trust,16-Mar-18,DRESSINGS - PRE STERILE,Surgery,NHS LOGISTICS,1018237002,147.22,
Department of Health,Salisbury NHS Foundation Trust,16-Mar-18,TOILETRIES PERSONAL HYGIENE PRODUCTS,Medicine,NHS LOGISTICS,1018237002,4.13,
Department of Health,Salisbury NHS Foundation Trust,16-Mar-18,LAB EQUIP-LABORATORY APPARATUS,Surgery,NHS LOGISTICS,1018237002,9.22,
Department of Health,Salisbury NHS Foundation Trust,16-Mar-18,TOILETRIES PERSONAL HYGIENE PRODUCTS,Musculo-Skeletal,NHS LOGISTICS,1018237002,7.71,
Department of Health,Salisbury NHS Foundation Trust,16-Mar-18,DRESSINGS - PRE STERILE,Surgery,NHS LOGISTICS,1018237002,16.84,
Department of Health,Salisbury NHS Foundation Trust,16-Mar-18,ANAESTHETIC EQUIPMENT ACCESSORIES,Medicine,NHS LOGISTICS,1018237002,1.88,
Department of Health,Salisbury NHS Foundation Trust,16-Mar-18,DISPOSABLE THEATRE DRAPES WIPES,Medicine,NHS LOGISTICS,1018237002,7.7,
Department of Health,Salisbury NHS Foundation Trust,16-Mar-18,DISPOSABLE THEATRE DRAPES WIPES,Medicine,NHS LOGISTICS,1018237002,3.55,
Department of Health,Salisbury NHS Foundation Trust,16-Mar-18,LAB EQUIP-LABORATORY APPARATUS,Surgery,NHS LOGISTICS,1018237002,9.22,
Department of Health,Salisbury NHS Foundation Trust,16-Mar-18,M & S EQUIPELECTEQUIPINST - OTHER,Musculo-Skeletal,NHS LOGISTICS,1018237002,16.8,
Department of Health,Salisbury NHS Foundation Trust,16-Mar-18,M & S EQUIPELECTEQUIPINST - OTHER,Musculo-Skeletal,NHS LOGISTICS,1018237002,1.6,
Department of Health,Salisbury NHS Foundation Trust,16-Mar-18,M & S EQUIPELECTEQUIPINST - OTHER,Medicine,NHS LOGISTICS,1018237002,13.5,
Department of Health,Salisbury NHS Foundation Trust,16-Mar-18,DISPOSABLE THEATRE DRAPES WIPES,Clinical Support,NHS LOGISTICS,1018237002,7.1,
Department of Health,Salisbury NHS Foundation Trust,16-Mar-18,DENTAL SURGERY SUNDRIES,Musculo-Skeletal,NHS LOGISTICS,1018237002,48.29,
Department of Health,Salisbury NHS Foundation Trust,16-Mar-18,DENTAL SURGERY SUNDRIES,Musculo-Skeletal,NHS LOGISTICS,1018237002,8.1,
Department of Health,Salisbury NHS Foundation Trust,16-Mar-18,OTHER MEDICAL SUPPLIES,Surgery,NHS LOGISTICS,1018237002,106.67,
Department of Health,Salisbury NHS Foundation Trust,16-Mar-18,OTHER MEDICAL SUPPLIES,surgery,NHS LOGISTICS,1018237002,0.97,
Department of Health,Salisbury NHS Foundation Trust,16-Mar-18,DISPOSABLE THEATRE DRAPES WIPES,Medicine,NHS LOGISTICS,1018237002,135.78,
Department of Health,Salisbury NHS Foundation Trust,16-Mar-18,DISPOSABLE THEATRE DRAPES WIPES,Medicine,NHS LOGISTICS,1018237002,3.55,
Department of Health,Salisbury NHS Foundation Trust,16-Mar-18,TISSUES HAND TOWELS & TOILET PAPER,Clinical Support,NHS LOGISTICS,1018237002,10.65,
Department of Health,Salisbury NHS Foundation Trust,16-Mar-18,NON DISPOSABLE BED LINEN,Musculo-Skeletal,NHS LOGISTICS,1018237002,5.4,
Department of Health,Salisbury NHS Foundation Trust,16-Mar-18,TUBES,Medicine,NHS LOGISTICS,1018237002,6.85,
Department of Health,Salisbury NHS Foundation Trust,16-Mar-18,ELECTRICAL EQUIPMENT x,Clinical Support,NHS LOGISTICS,1018237002,22.52,
Department of Health,Salisbury NHS Foundation Trust,16-Mar-18,MEDSURGCONS - OTHER,Clinical Support,NHS LOGISTICS,1018237002,89.07,
Department of Health,Salisbury NHS Foundation Trust,16-Mar-18,MEDSURGCONS - OTHER,Clinical Support,NHS LOGISTICS,1018237002,89.07,
Department of Health,Salisbury NHS Foundation Trust,16-Mar-18,MEDSURGCONS - OTHER,Clinical Support,NHS LOGISTICS,1018237002,89.07,
Department of Health,Salisbury NHS Foundation Trust,16-Mar-18,MEDSURGCONS - OTHER,Clinical Support,NHS LOGISTICS,1018237002,89.07,
Department of Health,Salisbury NHS Foundation Trust,16-Mar-18,MEDSURGCONS - OTHER,Musculo-Skeletal,NHS LOGISTICS,1018237002,63.97,
Department of Health,Salisbury NHS Foundation Trust,16-Mar-18,MEDSURGCONS - OTHER,Musculo-Skeletal,NHS LOGISTICS,1018237002,12.25,
Department of Health,Salisbury NHS Foundation Trust,16-Mar-18,SURGICAL INSTRUMENTS: DISPOSABLE,Clinical Support,NHS LOGISTICS,1018237002,70.58,
Department of Health,Salisbury NHS Foundation Trust,16-Mar-18,MEDSURGCONS - OTHER,Medicine,NHS LOGISTICS,1018237002,9.77,
Department of Health,Salisbury NHS Foundation Trust,16-Mar-18,MEDSURGCONS - OTHER,Medicine,NHS LOGISTICS,1018237002,24.42,
Department of Health,Salisbury NHS Foundation Trust,16-Mar-18,MEDSURGCONS - OTHER,Medicine,NHS LOGISTICS,1018237002,42.92,
Department of Health,Salisbury NHS Foundation Trust,16-Mar-18,MEDSURGCONS - OTHER,Medicine,NHS LOGISTICS,1018237002,42.92,
Department of Health,Salisbury NHS Foundation Trust,16-Mar-18,MEDSURGCONS - OTHER,Medicine,NHS LOGISTICS,1018237002,402.28,
Department of Health,Salisbury NHS Foundation Trust,16-Mar-18,NON DISPOSABLE THEATRE DRAPES WIPES,Clinical Support,NHS LOGISTICS,1018237002,40.08,
Department of Health,Salisbury NHS Foundation Trust,16-Mar-18,OPTICAL  -  OTHER,Surgery,NHS LOGISTICS,1018237002,37.12,
Department of Health,Salisbury NHS Foundation Trust,16-Mar-18,OPTICAL  -  OTHER,Surgery,NHS LOGISTICS,1018237002,53,
Department of Health,Salisbury NHS Foundation Trust,16-Mar-18,MEDSURGCONS - OTHER,Medicine,NHS LOGISTICS,1018237002,163.27,
Department of Health,Salisbury NHS Foundation Trust,16-Mar-18,LAB EQUIP-BLOOD GAS MACHINES,Clinical Support,NHS LOGISTICS,1018237002,7587.5,
Department of Health,Salisbury NHS Foundation Trust,16-Mar-18,MEDSURGCONS - OTHER,surgery,NHS LOGISTICS,1018237002,45.82,
Department of Health,Salisbury NHS Foundation Trust,16-Mar-18,DRESSINGS - PRE STERILE,surgery,NHS LOGISTICS,1018237002,14,
Department of Health,Salisbury NHS Foundation Trust,16-Mar-18,DRESSINGS - PRE STERILE,surgery,NHS LOGISTICS,1018237002,2.49,
Department of Health,Salisbury NHS Foundation Trust,16-Mar-18,MEDSURGCONS - OTHER,surgery,NHS LOGISTICS,1018237002,4.88,
Department of Health,Salisbury NHS Foundation Trust,16-Mar-18,MEDSURGCONS - OTHER,surgery,NHS LOGISTICS,1018237002,19.53,
Department of Health,Salisbury NHS Foundation Trust,16-Mar-18,MEDSURGCONS - OTHER,surgery,NHS LOGISTICS,1018237002,9.77,
Department of Health,Salisbury NHS Foundation Trust,16-Mar-18,OTHER MEDICAL SUPPLIES,surgery,NHS LOGISTICS,1018237002,0.78,
Department of Health,Salisbury NHS Foundation Trust,16-Mar-18,TOILETRIES PERSONAL HYGIENE PRODUCTS,surgery,NHS LOGISTICS,1018237002,0.93,
Department of Health,Salisbury NHS Foundation Trust,16-Mar-18,DISPOSABLE THEATRE DRAPES WIPES,surgery,NHS LOGISTICS,1018237002,3.29,
Department of Health,Salisbury NHS Foundation Trust,16-Mar-18,MEDSURGCONS - OTHER,Medicine,NHS LOGISTICS,1018237002,29.3,
Department of Health,Salisbury NHS Foundation Trust,16-Mar-18,MED SURG EQUIP REP MAINT CLEANING,Medicine,NHS LOGISTICS,1018237002,42.69,
Department of Health,Salisbury NHS Foundation Trust,16-Mar-18,MEDSURGCONS - OTHER,Medicine,NHS LOGISTICS,1018237002,5.89,
Department of Health,Salisbury NHS Foundation Trust,16-Mar-18,MEDSURGCONS - OTHER,Medicine,NHS LOGISTICS,1018237002,6.82,
Department of Health,Salisbury NHS Foundation Trust,16-Mar-18,TISSUES HAND TOWELS & TOILET PAPER,Medicine,NHS LOGISTICS,1018237002,1.37,
Department of Health,Salisbury NHS Foundation Trust,16-Mar-18,TISSUES HAND TOWELS & TOILET PAPER,Medicine,NHS LOGISTICS,1018237002,1.37,
Department of Health,Salisbury NHS Foundation Trust,16-Mar-18,DISPOSABLE THEATRE DRAPES WIPES,Medicine,NHS LOGISTICS,1018237002,3.55,
Department of Health,Salisbury NHS Foundation Trust,16-Mar-18,DRESSINGS - PRE STERILE,Surgery,NHS LOGISTICS,1018237002,14,
Department of Health,Salisbury NHS Foundation Trust,16-Mar-18,MEDSURGCONS - OTHER,Surgery,NHS LOGISTICS,1018237002,19.53,
Department of Health,Salisbury NHS Foundation Trust,16-Mar-18,MEDSURGCONS - OTHER,Surgery,NHS LOGISTICS,1018237002,24.42,
Department of Health,Salisbury NHS Foundation Trust,16-Mar-18,MEDSURGCONS - OTHER,Surgery,NHS LOGISTICS,1018237002,34.18,
Department of Health,Salisbury NHS Foundation Trust,16-Mar-18,PATIENT APPLIANCES,Surgery,NHS LOGISTICS,1018237002,4.39,
Department of Health,Salisbury NHS Foundation Trust,16-Mar-18,MEDSURGCONS - OTHER,Surgery,NHS LOGISTICS,1018237002,3.91,
Department of Health,Salisbury NHS Foundation Trust,16-Mar-18,TISSUES HAND TOWELS & TOILET PAPER,Surgery,NHS LOGISTICS,1018237002,0.68,
Department of Health,Salisbury NHS Foundation Trust,16-Mar-18,DISPOSABLE THEATRE DRAPES WIPES,Surgery,NHS LOGISTICS,1018237002,3.55,
Department of Health,Salisbury NHS Foundation Trust,16-Mar-18,DRESSINGS - PRE STERILE,Surgery,NHS LOGISTICS,1018237002,9.39,
Department of Health,Salisbury NHS Foundation Trust,16-Mar-18,DRESSINGS - PRE STERILE,Surgery,NHS LOGISTICS,1018237002,7.48,
Department of Health,Salisbury NHS Foundation Trust,16-Mar-18,MEDSURGCONS - OTHER,Surgery,NHS LOGISTICS,1018237002,29.3,
Department of Health,Salisbury NHS Foundation Trust,16-Mar-18,MEDSURGCONS - OTHER,Surgery,NHS LOGISTICS,1018237002,43.95,
Department of Health,Salisbury NHS Foundation Trust,16-Mar-18,MEDSURGCONS - OTHER,Surgery,NHS LOGISTICS,1018237002,34.18,
Department of Health,Salisbury NHS Foundation Trust,16-Mar-18,M & S EQUIPELECTEQUIPINST - OTHER,Surgery,NHS LOGISTICS,1018237002,20.25,
Department of Health,Salisbury NHS Foundation Trust,16-Mar-18,OTHER MEDICAL SUPPLIES,Surgery,NHS LOGISTICS,1018237002,7.75,
Department of Health,Salisbury NHS Foundation Trust,16-Mar-18,MEDSURGCONS - OTHER,Surgery,NHS LOGISTICS,1018237002,3.91,
Department of Health,Salisbury NHS Foundation Trust,16-Mar-18,TISSUES HAND TOWELS & TOILET PAPER,Surgery,NHS LOGISTICS,1018237002,0.68,
Department of Health,Salisbury NHS Foundation Trust,16-Mar-18,PATIENT APPLIANCES,Clinical Support,NHS LOGISTICS,1018237002,1.11,
Department of Health,Salisbury NHS Foundation Trust,16-Mar-18,DRESSINGS - PRE STERILE,Clinical Support,NHS LOGISTICS,1018237002,12,
Department of Health,Salisbury NHS Foundation Trust,16-Mar-18,DRESSINGS - PRE STERILE,Clinical Support,NHS LOGISTICS,1018237002,0.98,
Department of Health,Salisbury NHS Foundation Trust,16-Mar-18,MED SURG EQUIP REP MAINT CLEANING,Clinical Support,NHS LOGISTICS,1018237002,1.61,
Department of Health,Salisbury NHS Foundation Trust,16-Mar-18,TUBES,Clinical Support,NHS LOGISTICS,1018237002,6.85,
Department of Health,Salisbury NHS Foundation Trust,16-Mar-18,MEDSURGCONS - OTHER,Clinical Support,NHS LOGISTICS,1018237002,1.57,
Department of Health,Salisbury NHS Foundation Trust,16-Mar-18,MEDSURGCONS - OTHER,Clinical Support,NHS LOGISTICS,1018237002,8.57,
Department of Health,Salisbury NHS Foundation Trust,16-Mar-18,OTHER MEDICAL SUPPLIES,Clinical Support,NHS LOGISTICS,1018237002,6.84,
Department of Health,Salisbury NHS Foundation Trust,16-Mar-18,OTHER MEDICAL SUPPLIES,Clinical Support,NHS LOGISTICS,1018237002,5.65,
Department of Health,Salisbury NHS Foundation Trust,16-Mar-18,DRESSINGS - PRE STERILE,Clinical Support,NHS LOGISTICS,1018237002,54.55,
Department of Health,Salisbury NHS Foundation Trust,16-Mar-18,DRESSINGS - PRE STERILE,Clinical Support,NHS LOGISTICS,1018237002,90,
Department of Health,Salisbury NHS Foundation Trust,16-Mar-18,DRESSINGS - PRE STERILE,Clinical Support,NHS LOGISTICS,1018237002,101.22,
Department of Health,Salisbury NHS Foundation Trust,16-Mar-18,DRESSINGS - PRE STERILE,Clinical Support,NHS LOGISTICS,1018237002,59.89,
Department of Health,Salisbury NHS Foundation Trust,16-Mar-18,MEDSURGCONS - OTHER,Clinical Support,NHS LOGISTICS,1018237002,13.29,
Department of Health,Salisbury NHS Foundation Trust,16-Mar-18,MEDSURGCONS - OTHER,Clinical Support,NHS LOGISTICS,1018237002,4.85,
Department of Health,Salisbury NHS Foundation Trust,16-Mar-18,MEDSURGCONS - OTHER,Clinical Support,NHS LOGISTICS,1018237002,5.89,
Department of Health,Salisbury NHS Foundation Trust,16-Mar-18,MEDSURGCONS - OTHER,Clinical Support,NHS LOGISTICS,1018237002,7.82,
Department of Health,Salisbury NHS Foundation Trust,16-Mar-18,MEDSURGCONS - OTHER,Clinical Support,NHS LOGISTICS,1018237002,13.65,
Department of Health,Salisbury NHS Foundation Trust,16-Mar-18,BABY TEXTURE MODIFIED FOODS,Clinical Support,NHS LOGISTICS,1018237002,16.53,
Department of Health,Salisbury NHS Foundation Trust,16-Mar-18,BABY TEXTURE MODIFIED FOODS,Clinical Support,NHS LOGISTICS,1018237002,16.66,
Department of Health,Salisbury NHS Foundation Trust,16-Mar-18,BAGS SACKS - OTHER,Musculo-Skeletal,NHS LOGISTICS,1018237002,2.04,
Department of Health,Salisbury NHS Foundation Trust,16-Mar-18,DRESSINGS - PRE STERILE,Musculo-Skeletal,NHS LOGISTICS,1018237002,30.07,
Department of Health,Salisbury NHS Foundation Trust,16-Mar-18,DRESSINGS - PRE STERILE,Musculo-Skeletal,NHS LOGISTICS,1018237002,18,
Department of Health,Salisbury NHS Foundation Trust,16-Mar-18,TISSUES HAND TOWELS & TOILET PAPER,Musculo-Skeletal,NHS LOGISTICS,1018237002,1.24,
Department of Health,Salisbury NHS Foundation Trust,16-Mar-18,DRESSINGS - PRE STERILE,Musculo-Skeletal,NHS LOGISTICS,1018237002,9.39,
Department of Health,Salisbury NHS Foundation Trust,16-Mar-18,MEDSURGCONS - OTHER,Musculo-Skeletal,NHS LOGISTICS,1018237002,9.77,
Department of Health,Salisbury NHS Foundation Trust,16-Mar-18,MEDSURGCONS - OTHER,Musculo-Skeletal,NHS LOGISTICS,1018237002,42.92,
Department of Health,Salisbury NHS Foundation Trust,16-Mar-18,HEALTHCARE - WEAR,Musculo-Skeletal,NHS LOGISTICS,1018237002,31.95,
Department of Health,Salisbury NHS Foundation Trust,16-Mar-18,MEDSURGCONS - OTHER,Musculo-Skeletal,NHS LOGISTICS,1018237002,59.78,
Department of Health,Salisbury NHS Foundation Trust,16-Mar-18,DRESSINGS - PRE STERILE,Surgery,NHS LOGISTICS,1018237002,28,
Department of Health,Salisbury NHS Foundation Trust,16-Mar-18,MEDSURGCONS - OTHER,Surgery,NHS LOGISTICS,1018237002,101.8,
Department of Health,Salisbury NHS Foundation Trust,16-Mar-18,OTHER MEDICAL SUPPLIES,Surgery,NHS LOGISTICS,1018237002,47.21,
Department of Health,Salisbury NHS Foundation Trust,16-Mar-18,OTHER MEDICAL SUPPLIES,Surgery,NHS LOGISTICS,1018237002,18.83,
Department of Health,Salisbury NHS Foundation Trust,16-Mar-18,DRESSINGS - PRE STERILE,Surgery,NHS LOGISTICS,1018237002,194.85,
Department of Health,Salisbury NHS Foundation Trust,16-Mar-18,DRESSINGS - PRE STERILE,Surgery,NHS LOGISTICS,1018237002,588.87,
Department of Health,Salisbury NHS Foundation Trust,16-Mar-18,SURGICAL INSTRUMENTS: GENERAL,Surgery,NHS LOGISTICS,1018237002,125.55,
Department of Health,Salisbury NHS Foundation Trust,16-Mar-18,BAGS SACKS - OTHER,Surgery,NHS LOGISTICS,1018237002,12.19,
Department of Health,Salisbury NHS Foundation Trust,16-Mar-18,COOKING & KITCHEN UTENSILS,Surgery,NHS LOGISTICS,1018237002,20.38,
Department of Health,Salisbury NHS Foundation Trust,16-Mar-18,DISPOSABLE THEATRE DRAPES WIPES,Surgery,NHS LOGISTICS,1018237002,35.4,
Department of Health,Salisbury NHS Foundation Trust,16-Mar-18,MEDSURGCONS - OTHER,Surgery,NHS LOGISTICS,1018237002,29.3,
Department of Health,Salisbury NHS Foundation Trust,16-Mar-18,MEDSURGCONS - OTHER,Surgery,NHS LOGISTICS,1018237002,42.92,
Department of Health,Salisbury NHS Foundation Trust,16-Mar-18,MEDSURGCONS - OTHER,Surgery,NHS LOGISTICS,1018237002,29.3,
Department of Health,Salisbury NHS Foundation Trust,16-Mar-18,SURGICAL INSTRUMENTS: GENERAL,Surgery,NHS LOGISTICS,1018237002,29.17,
Department of Health,Salisbury NHS Foundation Trust,16-Mar-18,PATIENT APPLIANCES,Surgery,NHS LOGISTICS,1018237002,4.32,
Department of Health,Salisbury NHS Foundation Trust,16-Mar-18,MEDSURGCONS-LAPAROSCOPIC EQUIPMENT,Surgery,NHS LOGISTICS,1018237002,536.1,
Department of Health,Salisbury NHS Foundation Trust,16-Mar-18,M & S EQUIPELECTEQUIPINST - OTHER,Clinical Support,NHS LOGISTICS,1018237002,305.27,
Department of Health,Salisbury NHS Foundation Trust,16-Mar-18,TISSUES HAND TOWELS & TOILET PAPER,Clinical Support,NHS LOGISTICS,1018237002,31.95,
Department of Health,Salisbury NHS Foundation Trust,16-Mar-18,DRESSINGS - PRE STERILE,Clinical Support,NHS LOGISTICS,1018237002,2.49,
Department of Health,Salisbury NHS Foundation Trust,16-Mar-18,DRESSINGS - PRE STERILE,Clinical Support,NHS LOGISTICS,1018237002,5.73,
Department of Health,Salisbury NHS Foundation Trust,16-Mar-18,MEDSURGCONS - OTHER,Clinical Support,NHS LOGISTICS,1018237002,9.77,
Department of Health,Salisbury NHS Foundation Trust,16-Mar-18,MEDSURGCONS - OTHER,Clinical Support,NHS LOGISTICS,1018237002,4.88,
Department of Health,Salisbury NHS Foundation Trust,16-Mar-18,MEDSURGCONS - OTHER,Clinical Support,NHS LOGISTICS,1018237002,4.88,
Department of Health,Salisbury NHS Foundation Trust,16-Mar-18,OTHER MEDICAL SUPPLIES,Clinical Support,NHS LOGISTICS,1018237002,6.84,
Department of Health,Salisbury NHS Foundation Trust,16-Mar-18,MEDSURGCONS - OTHER,Clinical Support,NHS LOGISTICS,1018237002,9.69,
Department of Health,Salisbury NHS Foundation Trust,16-Mar-18,DRESSINGS - PRE STERILE,Clinical Support,NHS LOGISTICS,1018237002,3.33,
Department of Health,Salisbury NHS Foundation Trust,16-Mar-18,NON DISPOSABLE BED LINEN,Clinical Support,NHS LOGISTICS,1018237002,5.92,
Department of Health,Salisbury NHS Foundation Trust,16-Mar-18,DRESSINGS - PRE STERILE,Medicine,NHS LOGISTICS,1018237002,32.12,
Department of Health,Salisbury NHS Foundation Trust,16-Mar-18,DRESSINGS - PRE STERILE,Medicine,NHS LOGISTICS,1018237002,5.73,
Department of Health,Salisbury NHS Foundation Trust,16-Mar-18,MEDSURGCONS - OTHER,Medicine,NHS LOGISTICS,1018237002,9.77,
Department of Health,Salisbury NHS Foundation Trust,16-Mar-18,MEDSURGCONS - OTHER,Medicine,NHS LOGISTICS,1018237002,19.53,
Department of Health,Salisbury NHS Foundation Trust,16-Mar-18,MEDSURGCONS - OTHER,Medicine,NHS LOGISTICS,1018237002,19.53,
Department of Health,Salisbury NHS Foundation Trust,16-Mar-18,TISSUES HAND TOWELS & TOILET PAPER,Medicine,NHS LOGISTICS,1018237002,1.96,
Department of Health,Salisbury NHS Foundation Trust,16-Mar-18,HEALTHCARE - WEAR,Medicine,NHS LOGISTICS,1018237002,11.25,
Department of Health,Salisbury NHS Foundation Trust,16-Mar-18,ANAESTHETIC EQUIPMENT ACCESSORIES,Medicine,NHS LOGISTICS,1018237002,1.88,
Department of Health,Salisbury NHS Foundation Trust,16-Mar-18,MEDSURGCONS - OTHER,Medicine,NHS LOGISTICS,1018237002,3.91,
Department of Health,Salisbury NHS Foundation Trust,16-Mar-18,DISPOSABLE THEATRE DRAPES WIPES,Medicine,NHS LOGISTICS,1018237002,5.27,
Department of Health,Salisbury NHS Foundation Trust,16-Mar-18,DISPOSABLE THEATRE DRAPES WIPES,Medicine,NHS LOGISTICS,1018237002,3.55,
Department of Health,Salisbury NHS Foundation Trust,16-Mar-18,TISSUES HAND TOWELS & TOILET PAPER,Surgery,NHS LOGISTICS,1018237002,1.23,
Department of Health,Salisbury NHS Foundation Trust,16-Mar-18,TISSUES HAND TOWELS & TOILET PAPER,Surgery,NHS LOGISTICS,1018237002,4.97,
Department of Health,Salisbury NHS Foundation Trust,16-Mar-18,MEDSURGCONS - OTHER,Surgery,NHS LOGISTICS,1018237002,9.77,
Department of Health,Salisbury NHS Foundation Trust,16-Mar-18,M & S EQUIPELECTEQUIPINST - OTHER,Clinical Support,NHS LOGISTICS,1018237002,226.8,
Department of Health,Salisbury NHS Foundation Trust,16-Mar-18,M & S EQUIPELECTEQUIPINST - OTHER,Clinical Support,NHS LOGISTICS,1018237002,103.09,
Department of Health,Salisbury NHS Foundation Trust,16-Mar-18,MED SURG EQUIP REP MAINT CLEANING,Clinical Support,NHS LOGISTICS,1018237002,218.55,
Department of Health,Salisbury NHS Foundation Trust,16-Mar-18,TISSUES HAND TOWELS & TOILET PAPER,Clinical Support,NHS LOGISTICS,1018237002,2.48,
Department of Health,Salisbury NHS Foundation Trust,16-Mar-18,MEDSURGCONS - OTHER,Clinical Support,NHS LOGISTICS,1018237002,9.77,
Department of Health,Salisbury NHS Foundation Trust,16-Mar-18,MEDSURGCONS - OTHER,Clinical Support,NHS LOGISTICS,1018237002,14.65,
Department of Health,Salisbury NHS Foundation Trust,16-Mar-18,MEDSURGCONS - OTHER,Clinical Support,NHS LOGISTICS,1018237002,24.42,
Department of Health,Salisbury NHS Foundation Trust,16-Mar-18,TISSUES HAND TOWELS & TOILET PAPER,Clinical Support,NHS LOGISTICS,1018237002,1.57,
Department of Health,Salisbury NHS Foundation Trust,16-Mar-18,OTHER MEDICAL SUPPLIES,Clinical Support,NHS LOGISTICS,1018237002,1.88,
Department of Health,Salisbury NHS Foundation Trust,16-Mar-18,OTHER MEDICAL SUPPLIES,Clinical Support,NHS LOGISTICS,1018237002,149.93,
Department of Health,Salisbury NHS Foundation Trust,16-Mar-18,TISSUES HAND TOWELS & TOILET PAPER,Musculo-Skeletal,NHS LOGISTICS,1018237002,2.48,
Department of Health,Salisbury NHS Foundation Trust,16-Mar-18,DRESSINGS - PRE STERILE,Musculo-Skeletal,NHS LOGISTICS,1018237002,14,
Department of Health,Salisbury NHS Foundation Trust,16-Mar-18,TISSUES HAND TOWELS & TOILET PAPER,Musculo-Skeletal,NHS LOGISTICS,1018237002,0.78,
Department of Health,Salisbury NHS Foundation Trust,16-Mar-18,OTHER MEDICAL SUPPLIES,Musculo-Skeletal,NHS LOGISTICS,1018237002,3.77,
Department of Health,Salisbury NHS Foundation Trust,16-Mar-18,DISPOSABLE THEATRE DRAPES WIPES,Musculo-Skeletal,NHS LOGISTICS,1018237002,3.55,
Department of Health,Salisbury NHS Foundation Trust,16-Mar-18,TISSUES HAND TOWELS & TOILET PAPER,Medicine,NHS LOGISTICS,1018237002,10.65,
Department of Health,Salisbury NHS Foundation Trust,16-Mar-18,DISPOSABLE THEATRE DRAPES WIPES,Medicine,NHS LOGISTICS,1018237002,7.1,
Department of Health,Salisbury NHS Foundation Trust,16-Mar-18,OPTICAL  -  OTHER,Surgery,NHS LOGISTICS,1018237002,51.96,
Department of Health,Salisbury NHS Foundation Trust,16-Mar-18,DRESSINGS - PRE STERILE,Surgery,NHS LOGISTICS,1018237002,28,
Department of Health,Salisbury NHS Foundation Trust,16-Mar-18,M & S EQUIPELECTEQUIPINST - OTHER,Musculo-Skeletal,NHS LOGISTICS,1018237002,16.8,
Department of Health,Salisbury NHS Foundation Trust,16-Mar-18,TOILETRIES PERSONAL HYGIENE PRODUCTS,Musculo-Skeletal,NHS LOGISTICS,1018237002,6.17,
Department of Health,Salisbury NHS Foundation Trust,16-Mar-18,TISSUES HAND TOWELS & TOILET PAPER,Musculo-Skeletal,NHS LOGISTICS,1018237002,3.72,
Department of Health,Salisbury NHS Foundation Trust,16-Mar-18,MEDSURGCONS - OTHER,Musculo-Skeletal,NHS LOGISTICS,1018237002,24.42,
Department of Health,Salisbury NHS Foundation Trust,16-Mar-18,MEDSURGCONS - OTHER,Musculo-Skeletal,NHS LOGISTICS,1018237002,24.42,
Department of Health,Salisbury NHS Foundation Trust,16-Mar-18,MEDSURGCONS - OTHER,Musculo-Skeletal,NHS LOGISTICS,1018237002,24.42,
Department of Health,Salisbury NHS Foundation Trust,16-Mar-18,ANAESTHETIC EQUIPMENT ACCESSORIES,Musculo-Skeletal,NHS LOGISTICS,1018237002,1.3,
Department of Health,Salisbury NHS Foundation Trust,16-Mar-18,HEALTHCARE - WEAR,Musculo-Skeletal,NHS LOGISTICS,1018237002,11.25,
Department of Health,Salisbury NHS Foundation Trust,16-Mar-18,HEALTHCARE - WEAR,Musculo-Skeletal,NHS LOGISTICS,1018237002,127.8,
Department of Health,Salisbury NHS Foundation Trust,16-Mar-18,OTHER MEDICAL SUPPLIES,Musculo-Skeletal,NHS LOGISTICS,1018237002,0.97,
Department of Health,Salisbury NHS Foundation Trust,16-Mar-18,OTHER MEDICAL SUPPLIES,Musculo-Skeletal,NHS LOGISTICS,1018237002,2.93,
Department of Health,Salisbury NHS Foundation Trust,16-Mar-18,OTHER MEDICAL SUPPLIES,Musculo-Skeletal,NHS LOGISTICS,1018237002,7.75,
Department of Health,Salisbury NHS Foundation Trust,16-Mar-18,OTHER MEDICAL SUPPLIES,Musculo-Skeletal,NHS LOGISTICS,1018237002,20.08,
Department of Health,Salisbury NHS Foundation Trust,16-Mar-18,PATIENT APPLIANCES,Musculo-Skeletal,NHS LOGISTICS,1018237002,4.39,
Department of Health,Salisbury NHS Foundation Trust,16-Mar-18,TOILETRIES PERSONAL HYGIENE PRODUCTS,Musculo-Skeletal,NHS LOGISTICS,1018237002,8.25,
Department of Health,Salisbury NHS Foundation Trust,16-Mar-18,M & S EQUIPELECTEQUIPINST - OTHER,Musculo-Skeletal,NHS LOGISTICS,1018237002,1.6,
Department of Health,Salisbury NHS Foundation Trust,16-Mar-18,DISPOSABLE THEATRE DRAPES WIPES,Musculo-Skeletal,NHS LOGISTICS,1018237002,30.8,
Department of Health,Salisbury NHS Foundation Trust,16-Mar-18,DISPOSABLE THEATRE DRAPES WIPES,Musculo-Skeletal,NHS LOGISTICS,1018237002,7.1,
Department of Health,Salisbury NHS Foundation Trust,16-Mar-18,PATIENTS BABY WEAR,Medicine,NHS LOGISTICS,1018237002,32.13,
Department of Health,Salisbury NHS Foundation Trust,16-Mar-18,PATIENTS BABY WEAR,Medicine,NHS LOGISTICS,1018237002,29.8,
Department of Health,Salisbury NHS Foundation Trust,16-Mar-18,DRESSINGS - PRE STERILE,Medicine,NHS LOGISTICS,1018237002,14,
Department of Health,Salisbury NHS Foundation Trust,16-Mar-18,ANAESTHETIC EQUIPMENT ACCESSORIES,Medicine,NHS LOGISTICS,1018237002,1.25,
Department of Health,Salisbury NHS Foundation Trust,16-Mar-18,PATIENT APPLIANCES,Medicine,NHS LOGISTICS,1018237002,3.35,
Department of Health,Salisbury NHS Foundation Trust,16-Mar-18,TISSUES HAND TOWELS & TOILET PAPER,Surgery,NHS LOGISTICS,1018237002,4.97,
Department of Health,Salisbury NHS Foundation Trust,16-Mar-18,TISSUES HAND TOWELS & TOILET PAPER,Surgery,NHS LOGISTICS,1018237002,10.65,
Department of Health,Salisbury NHS Foundation Trust,16-Mar-18,DRESSINGS - PRE STERILE,Surgery,NHS LOGISTICS,1018237002,7.76,
Department of Health,Salisbury NHS Foundation Trust,16-Mar-18,BAGS SACKS - OTHER,Musculo-Skeletal,NHS LOGISTICS,1018237002,3,
Department of Health,Salisbury NHS Foundation Trust,16-Mar-18,DRESSINGS - PRE STERILE,Musculo-Skeletal,NHS LOGISTICS,1018237002,2.41,
Department of Health,Salisbury NHS Foundation Trust,16-Mar-18,MEDSURGCONS - OTHER,Musculo-Skeletal,NHS LOGISTICS,1018237002,4.88,
Department of Health,Salisbury NHS Foundation Trust,16-Mar-18,MEDSURGCONS - OTHER,Musculo-Skeletal,NHS LOGISTICS,1018237002,9.77,
Department of Health,Salisbury NHS Foundation Trust,16-Mar-18,MEDSURGCONS - OTHER,Musculo-Skeletal,NHS LOGISTICS,1018237002,9.77,
Department of Health,Salisbury NHS Foundation Trust,16-Mar-18,MEDSURGCONS - OTHER,Musculo-Skeletal,NHS LOGISTICS,1018237002,4.88,
Department of Health,Salisbury NHS Foundation Trust,16-Mar-18,TUBES,Musculo-Skeletal,NHS LOGISTICS,1018237002,13.7,
Department of Health,Salisbury NHS Foundation Trust,16-Mar-18,PATIENT APPLIANCES,Medicine,NHS LOGISTICS,1018237002,78.92,
Department of Health,Salisbury NHS Foundation Trust,16-Mar-18,DRESSINGS - PRE STERILE,Medicine,NHS LOGISTICS,1018237002,7.02,
Department of Health,Salisbury NHS Foundation Trust,16-Mar-18,BAGS SACKS - OTHER,Medicine,NHS LOGISTICS,1018237002,14.32,
Department of Health,Salisbury NHS Foundation Trust,16-Mar-18,MEDSURGCONS - OTHER,Medicine,NHS LOGISTICS,1018237002,87.1,
Department of Health,Salisbury NHS Foundation Trust,16-Mar-18,PATIENT APPLIANCES,Medicine,NHS LOGISTICS,1018237002,5.34,
Department of Health,Salisbury NHS Foundation Trust,16-Mar-18,DRESSINGS - PRE STERILE,Medicine,NHS LOGISTICS,1018237002,14,
Department of Health,Salisbury NHS Foundation Trust,16-Mar-18,MEDSURGCONS - OTHER,Medicine,NHS LOGISTICS,1018237002,9.77,
Department of Health,Salisbury NHS Foundation Trust,16-Mar-18,MEDSURGCONS - OTHER,Medicine,NHS LOGISTICS,1018237002,42.92,
Department of Health,Salisbury NHS Foundation Trust,16-Mar-18,MEDSURGCONS - OTHER,Medicine,NHS LOGISTICS,1018237002,85.83,
Department of Health,Salisbury NHS Foundation Trust,16-Mar-18,MEDSURGCONS - OTHER,Medicine,NHS LOGISTICS,1018237002,42.92,
Department of Health,Salisbury NHS Foundation Trust,16-Mar-18,TUBES,Medicine,NHS LOGISTICS,1018237002,6.85,
Department of Health,Salisbury NHS Foundation Trust,16-Mar-18,HEALTHCARE - WEAR,Medicine,NHS LOGISTICS,1018237002,63.9,
Department of Health,Salisbury NHS Foundation Trust,16-Mar-18,M & S EQUIPELECTEQUIPINST - OTHER,Medicine,NHS LOGISTICS,1018237002,13.5,
Department of Health,Salisbury NHS Foundation Trust,16-Mar-18,PATIENT APPLIANCES,Medicine,NHS LOGISTICS,1018237002,8.05,
Department of Health,Salisbury NHS Foundation Trust,16-Mar-18,PATIENT APPLIANCES,Medicine,NHS LOGISTICS,1018237002,8.05,
Department of Health,Salisbury NHS Foundation Trust,16-Mar-18,PATIENT APPLIANCES,Medicine,NHS LOGISTICS,1018237002,24.15,
Department of Health,Salisbury NHS Foundation Trust,16-Mar-18,PATIENT APPLIANCES,Medicine,NHS LOGISTICS,1018237002,24.15,
Department of Health,Salisbury NHS Foundation Trust,16-Mar-18,PATIENT APPLIANCES,Medicine,NHS LOGISTICS,1018237002,4.03,
Department of Health,Salisbury NHS Foundation Trust,16-Mar-18,ANAESTHETIC EQUIPMENT ACCESSORIES,Medicine,NHS LOGISTICS,1018237002,6.25,
Department of Health,Salisbury NHS Foundation Trust,16-Mar-18,OTHER MEDICAL SUPPLIES,Medicine,NHS LOGISTICS,1018237002,3.77,
Department of Health,Salisbury NHS Foundation Trust,16-Mar-18,DRUGS,Medicine,NHS LOGISTICS,1018237002,12.21,
Department of Health,Salisbury NHS Foundation Trust,16-Mar-18,MEDSURGCONS - OTHER,Medicine,NHS LOGISTICS,1018237002,59.78,
Department of Health,Salisbury NHS Foundation Trust,16-Mar-18,MEDSURGCONS - OTHER,Medicine,NHS LOGISTICS,1018237002,3.91,
Department of Health,Salisbury NHS Foundation Trust,16-Mar-18,TISSUES HAND TOWELS & TOILET PAPER,Musculo-Skeletal,NHS LOGISTICS,1018237002,2.48,
Department of Health,Salisbury NHS Foundation Trust,16-Mar-18,DRESSINGS - PRE STERILE,Musculo-Skeletal,NHS LOGISTICS,1018237002,9.39,
Department of Health,Salisbury NHS Foundation Trust,16-Mar-18,DRESSINGS - PRE STERILE,Musculo-Skeletal,NHS LOGISTICS,1018237002,47.58,
Department of Health,Salisbury NHS Foundation Trust,16-Mar-18,DRESSINGS - PRE STERILE,Musculo-Skeletal,NHS LOGISTICS,1018237002,21.88,
Department of Health,Salisbury NHS Foundation Trust,16-Mar-18,DRESSINGS - PRE STERILE,Musculo-Skeletal,NHS LOGISTICS,1018237002,23.28,
Department of Health,Salisbury NHS Foundation Trust,16-Mar-18,DRESSINGS - PRE STERILE,Musculo-Skeletal,NHS LOGISTICS,1018237002,25.03,
Department of Health,Salisbury NHS Foundation Trust,16-Mar-18,DRESSINGS - PRE STERILE,Musculo-Skeletal,NHS LOGISTICS,1018237002,25.03,
Department of Health,Salisbury NHS Foundation Trust,16-Mar-18,DRESSINGS - PRE STERILE,Musculo-Skeletal,NHS LOGISTICS,1018237002,2.49,
Department of Health,Salisbury NHS Foundation Trust,16-Mar-18,DRESSINGS - PRE STERILE,Musculo-Skeletal,NHS LOGISTICS,1018237002,2.49,
Department of Health,Salisbury NHS Foundation Trust,16-Mar-18,MEDSURGCONS - OTHER,Musculo-Skeletal,NHS LOGISTICS,1018237002,9.77,
Department of Health,Salisbury NHS Foundation Trust,16-Mar-18,MEDSURGCONS - OTHER,Musculo-Skeletal,NHS LOGISTICS,1018237002,9.77,
Department of Health,Salisbury NHS Foundation Trust,16-Mar-18,MEDSURGCONS - OTHER,Musculo-Skeletal,NHS LOGISTICS,1018237002,9.77,
Department of Health,Salisbury NHS Foundation Trust,16-Mar-18,TISSUES HAND TOWELS & TOILET PAPER,Musculo-Skeletal,NHS LOGISTICS,1018237002,0.78,
Department of Health,Salisbury NHS Foundation Trust,16-Mar-18,MEDSURGCONS - OTHER,Surgery,NHS LOGISTICS,1018237002,4.88,
Department of Health,Salisbury NHS Foundation Trust,16-Mar-18,OTHER MEDICAL SUPPLIES,Surgery,NHS LOGISTICS,1018237002,0.78,
Department of Health,Salisbury NHS Foundation Trust,16-Mar-18,DRESSINGS - PRE STERILE,Surgery,NHS LOGISTICS,1018237002,51.93,
Department of Health,Salisbury NHS Foundation Trust,16-Mar-18,DRESSINGS - PRE STERILE,Surgery,NHS LOGISTICS,1018237002,68.2,
Department of Health,Salisbury NHS Foundation Trust,16-Mar-18,DRESSINGS - PRE STERILE,Surgery,NHS LOGISTICS,1018237002,21.1,
Department of Health,Salisbury NHS Foundation Trust,16-Mar-18,DRESSINGS - PRE STERILE,Surgery,NHS LOGISTICS,1018237002,1.95,
Department of Health,Salisbury NHS Foundation Trust,16-Mar-18,DRESSINGS - PRE STERILE,Surgery,NHS LOGISTICS,1018237002,8.65,
Department of Health,Salisbury NHS Foundation Trust,16-Mar-18,TISSUES HAND TOWELS & TOILET PAPER,Surgery,NHS LOGISTICS,1018237002,6.78,
Department of Health,Salisbury NHS Foundation Trust,16-Mar-18,TISSUES HAND TOWELS & TOILET PAPER,Surgery,NHS LOGISTICS,1018237002,7.45,
Department of Health,Salisbury NHS Foundation Trust,16-Mar-18,DISPOSABLE THEATRE DRAPES WIPES,Surgery,NHS LOGISTICS,1018237002,3.55,
Department of Health,Salisbury NHS Foundation Trust,16-Mar-18,DISPOSABLE THEATRE DRAPES WIPES,Surgery,NHS LOGISTICS,1018237002,70.8,
Department of Health,Salisbury NHS Foundation Trust,16-Mar-18,MEDSURGCONS - OTHER,Surgery,NHS LOGISTICS,1018237002,6.82,
Department of Health,Salisbury NHS Foundation Trust,16-Mar-18,DRUGS,Surgery,NHS LOGISTICS,1018237002,39.27,
Department of Health,Salisbury NHS Foundation Trust,16-Mar-18,OTHER MEDICAL SUPPLIES,Surgery,NHS LOGISTICS,1018237002,7.53,
Department of Health,Salisbury NHS Foundation Trust,16-Mar-18,OTHER MEDICAL SUPPLIES,Surgery,NHS LOGISTICS,1018237002,17.13,
Department of Health,Salisbury NHS Foundation Trust,16-Mar-18,MEDSURGCONS - OTHER,Surgery,NHS LOGISTICS,1018237002,5.89,
Department of Health,Salisbury NHS Foundation Trust,16-Mar-18,PATIENT APPLIANCES,Clinical Support,NHS LOGISTICS,1018237002,30.44,
Department of Health,Salisbury NHS Foundation Trust,16-Mar-18,TISSUES HAND TOWELS & TOILET PAPER,Clinical Support,NHS LOGISTICS,1018237002,2.48,
Department of Health,Salisbury NHS Foundation Trust,16-Mar-18,PATIENT APPLIANCES,Clinical Support,NHS LOGISTICS,1018237002,28.83,
Department of Health,Salisbury NHS Foundation Trust,16-Mar-18,DISPOSABLE THEATRE DRAPES WIPES,Clinical Support,NHS LOGISTICS,1018237002,7.1,
Department of Health,Salisbury NHS Foundation Trust,16-Mar-18,BEVERAGES & AMBIENT FOOD,Surgery,NHS LOGISTICS,1018237002,43.02,
Department of Health,Salisbury NHS Foundation Trust,16-Mar-18,BEVERAGES & AMBIENT FOOD,Surgery,NHS LOGISTICS,1018237002,3.72,
Department of Health,Salisbury NHS Foundation Trust,16-Mar-18,BEVERAGES & AMBIENT FOOD,Surgery,NHS LOGISTICS,1018237002,10.56,
Department of Health,Salisbury NHS Foundation Trust,16-Mar-18,DRESSINGS - PRE STERILE,Surgery,NHS LOGISTICS,1018237002,9.39,
Department of Health,Salisbury NHS Foundation Trust,16-Mar-18,DRESSINGS - PRE STERILE,Surgery,NHS LOGISTICS,1018237002,5.66,
Department of Health,Salisbury NHS Foundation Trust,16-Mar-18,OTHER MEDICAL SUPPLIES,Surgery,NHS LOGISTICS,1018237002,1.88,
Department of Health,Salisbury NHS Foundation Trust,16-Mar-18,DISPOSABLE THEATRE DRAPES WIPES,Surgery,NHS LOGISTICS,1018237002,3.55,
Department of Health,Salisbury NHS Foundation Trust,16-Mar-18,OTHER MEDICAL SUPPLIES,Musculo-Skeletal,NHS LOGISTICS,1018237002,1.88,
Department of Health,Salisbury NHS Foundation Trust,16-Mar-18,MEDSURGCONS - OTHER,Musculo-Skeletal,NHS LOGISTICS,1018237002,5.89,
Department of Health,Salisbury NHS Foundation Trust,16-Mar-18,MEDSURGCONS - OTHER,Musculo-Skeletal,NHS LOGISTICS,1018237002,3.91,
Department of Health,Salisbury NHS Foundation Trust,16-Mar-18,M & S EQUIPELECTEQUIPINST - OTHER,Musculo-Skeletal,NHS LOGISTICS,1018237002,25.2,
Department of Health,Salisbury NHS Foundation Trust,16-Mar-18,MEDSURGCONS - OTHER,Musculo-Skeletal,NHS LOGISTICS,1018237002,42.93,
Department of Health,Salisbury NHS Foundation Trust,16-Mar-18,TISSUES HAND TOWELS & TOILET PAPER,Musculo-Skeletal,NHS LOGISTICS,1018237002,21,
Department of Health,Salisbury NHS Foundation Trust,16-Mar-18,MEDSURGCONS - OTHER,Musculo-Skeletal,NHS LOGISTICS,1018237002,85.83,
Department of Health,Salisbury NHS Foundation Trust,16-Mar-18,MEDSURGCONS - OTHER,Musculo-Skeletal,NHS LOGISTICS,1018237002,42.92,
Department of Health,Salisbury NHS Foundation Trust,16-Mar-18,HEALTHCARE - WEAR,Musculo-Skeletal,NHS LOGISTICS,1018237002,174.25,
Department of Health,Salisbury NHS Foundation Trust,16-Mar-18,MEDSURGCONS - OTHER,Musculo-Skeletal,NHS LOGISTICS,1018237002,11.95,
Department of Health,Salisbury NHS Foundation Trust,16-Mar-18,OTHER MEDICAL SUPPLIES,Musculo-Skeletal,NHS LOGISTICS,1018237002,15.5,
Department of Health,Salisbury NHS Foundation Trust,16-Mar-18,PATIENT APPLIANCES,Musculo-Skeletal,NHS LOGISTICS,1018237002,17.57,
Department of Health,Salisbury NHS Foundation Trust,16-Mar-18,PATIENT APPLIANCES,Musculo-Skeletal,NHS LOGISTICS,1018237002,17.57,
Department of Health,Salisbury NHS Foundation Trust,16-Mar-18,PATIENT APPLIANCES,Musculo-Skeletal,NHS LOGISTICS,1018237002,86.33,
Department of Health,Salisbury NHS Foundation Trust,16-Mar-18,MEDSURGCONS - OTHER,Clinical Support,NHS LOGISTICS,1018237002,9.77,
Department of Health,Salisbury NHS Foundation Trust,16-Mar-18,MEDSURGCONS - OTHER,Clinical Support,NHS LOGISTICS,1018237002,4.88,
Department of Health,Salisbury NHS Foundation Trust,16-Mar-18,DRESSINGS - PRE STERILE,Clinical Support,NHS LOGISTICS,1018237002,1.11,
Department of Health,Salisbury NHS Foundation Trust,16-Mar-18,TISSUES HAND TOWELS & TOILET PAPER,Surgery,NHS LOGISTICS,1018237002,8.69,
Department of Health,Salisbury NHS Foundation Trust,16-Mar-18,DRESSINGS - PRE STERILE,Medicine,NHS LOGISTICS,1018237002,16.95,
Department of Health,Salisbury NHS Foundation Trust,16-Mar-18,MEDSURGCONS - OTHER,Medicine,NHS LOGISTICS,1018237002,24.42,
Department of Health,Salisbury NHS Foundation Trust,16-Mar-18,MEDSURGCONS - OTHER,Medicine,NHS LOGISTICS,1018237002,4.88,
Department of Health,Salisbury NHS Foundation Trust,16-Mar-18,TISSUES HAND TOWELS & TOILET PAPER,Medicine,NHS LOGISTICS,1018237002,2.35,
Department of Health,Salisbury NHS Foundation Trust,16-Mar-18,OTHER MEDICAL SUPPLIES,Medicine,NHS LOGISTICS,1018237002,3.1,
Department of Health,Salisbury NHS Foundation Trust,16-Mar-18,MEDSURGCONS - OTHER,Medicine,NHS LOGISTICS,1018237002,5.89,
Department of Health,Salisbury NHS Foundation Trust,16-Mar-18,MEDSURGCONS - OTHER,Medicine,NHS LOGISTICS,1018237002,3.91,
Department of Health,Salisbury NHS Foundation Trust,16-Mar-18,TISSUES HAND TOWELS & TOILET PAPER,Medicine,NHS LOGISTICS,1018237002,0.68,
Department of Health,Salisbury NHS Foundation Trust,16-Mar-18,M & S EQUIPELECTEQUIPINST - OTHER,Clinical Support,NHS LOGISTICS,1018237002,8.4,
Department of Health,Salisbury NHS Foundation Trust,16-Mar-18,CLEANING MATERIALS PRODUCTS SUNDRIES,Clinical Support,NHS LOGISTICS,1018237002,5.67,
Department of Health,Salisbury NHS Foundation Trust,16-Mar-18,MEDSURGCONS - OTHER,Clinical Support,NHS LOGISTICS,1018237002,19.53,
Department of Health,Salisbury NHS Foundation Trust,16-Mar-18,MEDSURGCONS - OTHER,Clinical Support,NHS LOGISTICS,1018237002,19.53,
Department of Health,Salisbury NHS Foundation Trust,16-Mar-18,MEDSURGCONS - OTHER,Clinical Support,NHS LOGISTICS,1018237002,9.77,
Department of Health,Salisbury NHS Foundation Trust,16-Mar-18,OTHER MEDICAL SUPPLIES,Clinical Support,NHS LOGISTICS,1018237002,3.77,
Department of Health,Salisbury NHS Foundation Trust,16-Mar-18,MED SURG EQUIP REP MAINT CLEANING,Clinical Support,NHS LOGISTICS,1018237002,10.97,
Department of Health,Salisbury NHS Foundation Trust,16-Mar-18,PATIENT APPLIANCES,Clinical Support,NHS LOGISTICS,1018237002,4.32,
Department of Health,Salisbury NHS Foundation Trust,16-Mar-18,DRESSINGS - PRE STERILE,Surgery,NHS LOGISTICS,1018237002,9.39,
Department of Health,Salisbury NHS Foundation Trust,16-Mar-18,DRESSINGS - PRE STERILE,Surgery,NHS LOGISTICS,1018237002,9.97,
Department of Health,Salisbury NHS Foundation Trust,16-Mar-18,DRESSINGS - PRE STERILE,Surgery,NHS LOGISTICS,1018237002,3.93,
Department of Health,Salisbury NHS Foundation Trust,16-Mar-18,DRESSINGS - PRE STERILE,Surgery,NHS LOGISTICS,1018237002,17.58,
Department of Health,Salisbury NHS Foundation Trust,16-Mar-18,OTHER MEDICAL SUPPLIES,Surgery,NHS LOGISTICS,1018237002,505.72,
Department of Health,Salisbury NHS Foundation Trust,16-Mar-18,OTHER MEDICAL SUPPLIES,Surgery,NHS LOGISTICS,1018237002,25.6,
Department of Health,Salisbury NHS Foundation Trust,16-Mar-18,MEDSURGCONS - OTHER,Surgery,NHS LOGISTICS,1018237002,46.4,
Department of Health,Salisbury NHS Foundation Trust,16-Mar-18,MEDSURGCONS - OTHER,Surgery,NHS LOGISTICS,1018237002,10,
Department of Health,Salisbury NHS Foundation Trust,16-Mar-18,ANAESTHETIC EQUIPMENT ACCESSORIES,Surgery,NHS LOGISTICS,1018237002,34.09,
Department of Health,Salisbury NHS Foundation Trust,16-Mar-18,OTHER MEDICAL SUPPLIES,Surgery,NHS LOGISTICS,1018237002,15.07,
Department of Health,Salisbury NHS Foundation Trust,16-Mar-18,OTHER MEDICAL SUPPLIES,Surgery,NHS LOGISTICS,1018237002,22.33,
Department of Health,Salisbury NHS Foundation Trust,16-Mar-18,OTHER MEDICAL SUPPLIES,Surgery,NHS LOGISTICS,1018237002,17.13,
Department of Health,Salisbury NHS Foundation Trust,16-Mar-18,DRESSINGS - PRE STERILE,Surgery,NHS LOGISTICS,1018237002,5.66,
Department of Health,Salisbury NHS Foundation Trust,16-Mar-18,DRESSINGS - PRE STERILE,Surgery,NHS LOGISTICS,1018237002,2.49,
Department of Health,Salisbury NHS Foundation Trust,16-Mar-18,DRESSINGS - PRE STERILE,Surgery,NHS LOGISTICS,1018237002,5.73,
Department of Health,Salisbury NHS Foundation Trust,16-Mar-18,DRESSINGS - PRE STERILE,Surgery,NHS LOGISTICS,1018237002,12.89,
Department of Health,Salisbury NHS Foundation Trust,16-Mar-18,MEDSURGCONS - OTHER,Surgery,NHS LOGISTICS,1018237002,24.42,
Department of Health,Salisbury NHS Foundation Trust,16-Mar-18,MEDSURGCONS - OTHER,Surgery,NHS LOGISTICS,1018237002,14.65,
Department of Health,Salisbury NHS Foundation Trust,16-Mar-18,MEDSURGCONS - OTHER,Surgery,NHS LOGISTICS,1018237002,14.65,
Department of Health,Salisbury NHS Foundation Trust,16-Mar-18,M & S EQUIPELECTEQUIPINST - OTHER,Surgery,NHS LOGISTICS,1018237002,33.75,
Department of Health,Salisbury NHS Foundation Trust,16-Mar-18,MEDSURGCONS - OTHER,Surgery,NHS LOGISTICS,1018237002,3.91,
Department of Health,Salisbury NHS Foundation Trust,16-Mar-18,TOILETRIES PERSONAL HYGIENE PRODUCTS,Surgery,NHS LOGISTICS,1018237002,6.17,
Department of Health,Salisbury NHS Foundation Trust,16-Mar-18,DRESSINGS - PRE STERILE,Surgery,NHS LOGISTICS,1018237002,5.66,
Department of Health,Salisbury NHS Foundation Trust,16-Mar-18,MEDSURGCONS - OTHER,Surgery,NHS LOGISTICS,1018237002,9.77,
Department of Health,Salisbury NHS Foundation Trust,16-Mar-18,MEDSURGCONS - OTHER,Surgery,NHS LOGISTICS,1018237002,9.77,
Department of Health,Salisbury NHS Foundation Trust,16-Mar-18,MEDSURGCONS - OTHER,Surgery,NHS LOGISTICS,1018237002,9.77,
Department of Health,Salisbury NHS Foundation Trust,16-Mar-18,M & S EQUIPELECTEQUIPINST - OTHER,Surgery,NHS LOGISTICS,1018237002,13.5,
Department of Health,Salisbury NHS Foundation Trust,16-Mar-18,OTHER MEDICAL SUPPLIES,Surgery,NHS LOGISTICS,1018237002,5.65,
Department of Health,Salisbury NHS Foundation Trust,16-Mar-18,OTHER MEDICAL SUPPLIES,Surgery,NHS LOGISTICS,1018237002,2.9,
Department of Health,Salisbury NHS Foundation Trust,16-Mar-18,PATIENT APPLIANCES,Surgery,NHS LOGISTICS,1018237002,3.35,
Department of Health,Salisbury NHS Foundation Trust,16-Mar-18,PATIENT APPLIANCES,Surgery,NHS LOGISTICS,1018237002,3.35,
Department of Health,Salisbury NHS Foundation Trust,16-Mar-18,TOILETRIES PERSONAL HYGIENE PRODUCTS,Surgery,NHS LOGISTICS,1018237002,4.15,
Department of Health,Salisbury NHS Foundation Trust,16-Mar-18,PATIENT APPLIANCES,Surgery,NHS LOGISTICS,1018237002,7.8,
Department of Health,Salisbury NHS Foundation Trust,16-Mar-18,MEDSURGCONS - OTHER,Surgery,NHS LOGISTICS,1018237002,87.1,
Department of Health,Salisbury NHS Foundation Trust,16-Mar-18,MEDSURGCONS - OTHER,Surgery,NHS LOGISTICS,1018237002,9.77,
Department of Health,Salisbury NHS Foundation Trust,16-Mar-18,MEDSURGCONS - OTHER,Surgery,NHS LOGISTICS,1018237002,29.3,
Department of Health,Salisbury NHS Foundation Trust,16-Mar-18,MEDSURGCONS - OTHER,Surgery,NHS LOGISTICS,1018237002,24.42,
Department of Health,Salisbury NHS Foundation Trust,16-Mar-18,HEALTHCARE - WEAR,Surgery,NHS LOGISTICS,1018237002,522.75,
Department of Health,Salisbury NHS Foundation Trust,16-Mar-18,MEDSURGCONS - OTHER,Surgery,NHS LOGISTICS,1018237002,101.8,
Department of Health,Salisbury NHS Foundation Trust,16-Mar-18,DRESSINGS - PRE STERILE,Surgery,NHS LOGISTICS,1018237002,24.81,
Department of Health,Salisbury NHS Foundation Trust,16-Mar-18,DRESSINGS - PRE STERILE,Surgery,NHS LOGISTICS,1018237002,2.73,
Department of Health,Salisbury NHS Foundation Trust,16-Mar-18,M & S EQUIPELECTEQUIPINST - OTHER,Surgery,NHS LOGISTICS,1018237002,1.6,
Department of Health,Salisbury NHS Foundation Trust,16-Mar-18,PATIENT APPLIANCES,Surgery,NHS LOGISTICS,1018237002,7.8,
Department of Health,Salisbury NHS Foundation Trust,16-Mar-18,DISPOSABLE THEATRE DRAPES WIPES,Surgery,NHS LOGISTICS,1018237002,1.32,
Department of Health,Salisbury NHS Foundation Trust,16-Mar-18,MEDSURGCONS - OTHER,Surgery,NHS LOGISTICS,1018237002,5.34,
Department of Health,Salisbury NHS Foundation Trust,16-Mar-18,DISPOSABLE THEATRE DRAPES WIPES,Surgery,NHS LOGISTICS,1018237002,4.48,
Department of Health,Salisbury NHS Foundation Trust,16-Mar-18,DISPOSABLE THEATRE DRAPES WIPES,Surgery,NHS LOGISTICS,1018237002,7.1,
Department of Health,Salisbury NHS Foundation Trust,16-Mar-18,TOILETRIES PERSONAL HYGIENE PRODUCTS,Clinical Support,NHS LOGISTICS,1018237002,3.08,
Department of Health,Salisbury NHS Foundation Trust,16-Mar-18,DRESSINGS - PRE STERILE,Clinical Support,NHS LOGISTICS,1018237002,2.22,
Department of Health,Salisbury NHS Foundation Trust,16-Mar-18,DISPOSABLE THEATRE DRAPES WIPES,Clinical Support,NHS LOGISTICS,1018237002,3.55,
Department of Health,Salisbury NHS Foundation Trust,16-Mar-18,TISSUES HAND TOWELS & TOILET PAPER,Clinical Support,NHS LOGISTICS,1018237002,10.65,
Department of Health,Salisbury NHS Foundation Trust,16-Mar-18,TISSUES HAND TOWELS & TOILET PAPER,Clinical Support,NHS LOGISTICS,1018237002,2.35,
Department of Health,Salisbury NHS Foundation Trust,16-Mar-18,MEDSURGCONS - OTHER,Medicine,NHS LOGISTICS,1018237002,34.18,
Department of Health,Salisbury NHS Foundation Trust,16-Mar-18,MEDSURGCONS - OTHER,Medicine,NHS LOGISTICS,1018237002,14.65,
Department of Health,Salisbury NHS Foundation Trust,16-Mar-18,OTHER MEDICAL SUPPLIES,Medicine,NHS LOGISTICS,1018237002,5.65,
Department of Health,Salisbury NHS Foundation Trust,16-Mar-18,OTHER MEDICAL SUPPLIES,Medicine,NHS LOGISTICS,1018237002,7.75,
Department of Health,Salisbury NHS Foundation Trust,16-Mar-18,MEDSURGCONS - OTHER,Medicine,NHS LOGISTICS,1018237002,3.91,
Department of Health,Salisbury NHS Foundation Trust,16-Mar-18,DISPOSABLE THEATRE DRAPES WIPES,Medicine,NHS LOGISTICS,1018237002,3.55,
Department of Health,Salisbury NHS Foundation Trust,16-Mar-18,MEDSURGCONS - OTHER,Clinical Support,NHS LOGISTICS,1018237002,4.88,
Department of Health,Salisbury NHS Foundation Trust,16-Mar-18,MEDSURGCONS - OTHER,Clinical Support,NHS LOGISTICS,1018237002,9.77,
Department of Health,Salisbury NHS Foundation Trust,16-Mar-18,MEDSURGCONS - OTHER,Clinical Support,NHS LOGISTICS,1018237002,4.88,
Department of Health,Salisbury NHS Foundation Trust,16-Mar-18,BABY TEXTURE MODIFIED FOODS,Clinical Support,NHS LOGISTICS,1018237002,10.55,
Department of Health,Salisbury NHS Foundation Trust,16-Mar-18,MED SURG EQUIP REP MAINT CLEANING,Clinical Support,NHS LOGISTICS,1018237002,6.4,
Department of Health,Salisbury NHS Foundation Trust,16-Mar-18,MEDSURGCONS - OTHER,Clinical Support,NHS LOGISTICS,1018237002,11.78,
Department of Health,Salisbury NHS Foundation Trust,16-Mar-18,BABY TEXTURE MODIFIED FOODS,Clinical Support,NHS LOGISTICS,1018237002,16.66,
Department of Health,Salisbury NHS Foundation Trust,16-Mar-18,MEDSURGCONS - OTHER,Surgery,NHS LOGISTICS,1018237002,4.88,
Department of Health,Salisbury NHS Foundation Trust,16-Mar-18,OTHER MEDICAL SUPPLIES,Surgery,NHS LOGISTICS,1018237002,1.55,
Department of Health,Salisbury NHS Foundation Trust,16-Mar-18,OTHER MEDICAL SUPPLIES,Surgery,NHS LOGISTICS,1018237002,10.72,
Department of Health,Salisbury NHS Foundation Trust,16-Mar-18,DRESSINGS - PRE STERILE,Clinical Support,NHS LOGISTICS,1018237002,5.73,
Department of Health,Salisbury NHS Foundation Trust,16-Mar-18,DRESSINGS - PRE STERILE,surgery,NHS LOGISTICS,1018237002,7.52,
Department of Health,Salisbury NHS Foundation Trust,16-Mar-18,M & S EQUIPELECTEQUIPINST - OTHER,surgery,NHS LOGISTICS,1018237002,8.4,
Department of Health,Salisbury NHS Foundation Trust,16-Mar-18,TOILETRIES PERSONAL HYGIENE PRODUCTS,surgery,NHS LOGISTICS,1018237002,18,
Department of Health,Salisbury NHS Foundation Trust,16-Mar-18,MEDSURGCONS - OTHER,surgery,NHS LOGISTICS,1018237002,9.77,
Department of Health,Salisbury NHS Foundation Trust,16-Mar-18,MEDSURGCONS - OTHER,surgery,NHS LOGISTICS,1018237002,19.53,
Department of Health,Salisbury NHS Foundation Trust,16-Mar-18,MEDSURGCONS - OTHER,surgery,NHS LOGISTICS,1018237002,9.77,
Department of Health,Salisbury NHS Foundation Trust,16-Mar-18,OTHER MEDICAL SUPPLIES,surgery,NHS LOGISTICS,1018237002,2.9,
Department of Health,Salisbury NHS Foundation Trust,16-Mar-18,OTHER MEDICAL SUPPLIES,surgery,NHS LOGISTICS,1018237002,0.78,
Department of Health,Salisbury NHS Foundation Trust,16-Mar-18,TOILETRIES PERSONAL HYGIENE PRODUCTS,surgery,NHS LOGISTICS,1018237002,4.15,
Department of Health,Salisbury NHS Foundation Trust,16-Mar-18,DISPOSABLE THEATRE DRAPES WIPES,surgery,NHS LOGISTICS,1018237002,1.32,
Department of Health,Salisbury NHS Foundation Trust,16-Mar-18,OPTICAL  -  OTHER,Surgery,NHS LOGISTICS,1018237002,148.47,
Department of Health,Salisbury NHS Foundation Trust,16-Mar-18,BEVERAGES & AMBIENT FOOD,Facilities,NHS LOGISTICS,1018237002,31.56,
Department of Health,Salisbury NHS Foundation Trust,16-Mar-18,BEVERAGES & AMBIENT FOOD,Facilities,NHS LOGISTICS,1018237002,38.32,
Department of Health,Salisbury NHS Foundation Trust,16-Mar-18,BEVERAGES & AMBIENT FOOD,Facilities,NHS LOGISTICS,1018237002,12.42,
Department of Health,Salisbury NHS Foundation Trust,16-Mar-18,BEVERAGES & AMBIENT FOOD,Facilities,NHS LOGISTICS,1018237002,7.02,
Department of Health,Salisbury NHS Foundation Trust,16-Mar-18,BEVERAGES & AMBIENT FOOD,Facilities,NHS LOGISTICS,1018237002,5.04,
Department of Health,Salisbury NHS Foundation Trust,16-Mar-18,BEVERAGES & AMBIENT FOOD,Facilities,NHS LOGISTICS,1018237002,3.93,
Department of Health,Salisbury NHS Foundation Trust,16-Mar-18,BEVERAGES & AMBIENT FOOD,Facilities,NHS LOGISTICS,1018237002,18.78,
Department of Health,Salisbury NHS Foundation Trust,16-Mar-18,BEVERAGES & AMBIENT FOOD,Facilities,NHS LOGISTICS,1018237002,6.26,
Department of Health,Salisbury NHS Foundation Trust,16-Mar-18,BEVERAGES & AMBIENT FOOD,Facilities,NHS LOGISTICS,1018237002,4.43,
Department of Health,Salisbury NHS Foundation Trust,16-Mar-18,BEVERAGES & AMBIENT FOOD,Facilities,NHS LOGISTICS,1018237002,8.7,
Department of Health,Salisbury NHS Foundation Trust,16-Mar-18,FLAVOURINGS HERBS SPICES,Facilities,NHS LOGISTICS,1018237002,6.84,
Department of Health,Salisbury NHS Foundation Trust,16-Mar-18,BEVERAGES & AMBIENT FOOD,Facilities,NHS LOGISTICS,1018237002,9.52,
Department of Health,Salisbury NHS Foundation Trust,16-Mar-18,BEVERAGES & AMBIENT FOOD,Facilities,NHS LOGISTICS,1018237002,10.72,
Department of Health,Salisbury NHS Foundation Trust,16-Mar-18,FRUIT & VEGETABLES,Facilities,NHS LOGISTICS,1018237002,36,
Department of Health,Salisbury NHS Foundation Trust,16-Mar-18,BEVERAGES & AMBIENT FOOD,Facilities,NHS LOGISTICS,1018237002,23.72,
Department of Health,Salisbury NHS Foundation Trust,16-Mar-18,BEVERAGES & AMBIENT FOOD,Facilities,NHS LOGISTICS,1018237002,94.4,
Department of Health,Salisbury NHS Foundation Trust,16-Mar-18,BEVERAGES & AMBIENT FOOD,Facilities,NHS LOGISTICS,1018237002,3.58,
Department of Health,Salisbury NHS Foundation Trust,16-Mar-18,BEVERAGES & AMBIENT FOOD,Facilities,NHS LOGISTICS,1018237002,50.12,
Department of Health,Salisbury NHS Foundation Trust,16-Mar-18,FRUIT & VEGETABLES,Facilities,NHS LOGISTICS,1018237002,68.76,
Department of Health,Salisbury NHS Foundation Trust,16-Mar-18,FRUIT & VEGETABLES,Facilities,NHS LOGISTICS,1018237002,30.42,
Department of Health,Salisbury NHS Foundation Trust,16-Mar-18,FRUIT & VEGETABLES,Facilities,NHS LOGISTICS,1018237002,17.82,
Department of Health,Salisbury NHS Foundation Trust,16-Mar-18,FRUIT & VEGETABLES,Facilities,NHS LOGISTICS,1018237002,17.94,
Department of Health,Salisbury NHS Foundation Trust,16-Mar-18,BEVERAGES & AMBIENT FOOD,Facilities,NHS LOGISTICS,1018237002,7.68,
Department of Health,Salisbury NHS Foundation Trust,16-Mar-18,BEVERAGES & AMBIENT FOOD,Facilities,NHS LOGISTICS,1018237002,32.34,
Department of Health,Salisbury NHS Foundation Trust,16-Mar-18,BEVERAGES & AMBIENT FOOD,Facilities,NHS LOGISTICS,1018237002,82.8,
Department of Health,Salisbury NHS Foundation Trust,16-Mar-18,BEVERAGES & AMBIENT FOOD,Facilities,NHS LOGISTICS,1018237002,11.57,
Department of Health,Salisbury NHS Foundation Trust,16-Mar-18,BEVERAGES & AMBIENT FOOD,Facilities,NHS LOGISTICS,1018237002,8.87,
Department of Health,Salisbury NHS Foundation Trust,16-Mar-18,BEVERAGES & AMBIENT FOOD,Facilities,NHS LOGISTICS,1018237002,12.1,
Department of Health,Salisbury NHS Foundation Trust,16-Mar-18,BEVERAGES & AMBIENT FOOD,Facilities,NHS LOGISTICS,1018237002,27,
Department of Health,Salisbury NHS Foundation Trust,16-Mar-18,FLAVOURINGS HERBS SPICES,Facilities,NHS LOGISTICS,1018237002,25.06,
Department of Health,Salisbury NHS Foundation Trust,16-Mar-18,BEVERAGES & AMBIENT FOOD,Facilities,NHS LOGISTICS,1018237002,40.23,
Department of Health,Salisbury NHS Foundation Trust,16-Mar-18,BEVERAGES & AMBIENT FOOD,Facilities,NHS LOGISTICS,1018237002,51.96,
Department of Health,Salisbury NHS Foundation Trust,16-Mar-18,BEVERAGES & AMBIENT FOOD,Facilities,NHS LOGISTICS,1018237002,14.52,
Department of Health,Salisbury NHS Foundation Trust,16-Mar-18,FLAVOURINGS HERBS SPICES,Facilities,NHS LOGISTICS,1018237002,3.1,
Department of Health,Salisbury NHS Foundation Trust,16-Mar-18,BEVERAGES & AMBIENT FOOD,Facilities,NHS LOGISTICS,1018237002,5.6,
Department of Health,Salisbury NHS Foundation Trust,16-Mar-18,BEVERAGES & AMBIENT FOOD,Facilities,NHS LOGISTICS,1018237002,8.9,
Department of Health,Salisbury NHS Foundation Trust,16-Mar-18,BEVERAGES & AMBIENT FOOD,Facilities,NHS LOGISTICS,1018237002,87.9,
Department of Health,Salisbury NHS Foundation Trust,16-Mar-18,FRUIT & VEGETABLES,Facilities,NHS LOGISTICS,1018237002,13.02,
Department of Health,Salisbury NHS Foundation Trust,16-Mar-18,FRUIT & VEGETABLES,Facilities,NHS LOGISTICS,1018237002,21.84,
Department of Health,Salisbury NHS Foundation Trust,16-Mar-18,FRUIT & VEGETABLES,Facilities,NHS LOGISTICS,1018237002,13.2,
Department of Health,Salisbury NHS Foundation Trust,16-Mar-18,BEVERAGES & AMBIENT FOOD,Facilities,NHS LOGISTICS,1018237002,16.26,
Department of Health,Salisbury NHS Foundation Trust,16-Mar-18,BEVERAGES & AMBIENT FOOD,Facilities,NHS LOGISTICS,1018237002,36.24,
Department of Health,Salisbury NHS Foundation Trust,16-Mar-18,MEDSURGCONS - OTHER,Facilities,NHS LOGISTICS,1018237002,42.92,
Department of Health,Salisbury NHS Foundation Trust,16-Mar-18,BEVERAGES & AMBIENT FOOD,Facilities,NHS LOGISTICS,1018237002,31.56,
Department of Health,Salisbury NHS Foundation Trust,16-Mar-18,BEVERAGES & AMBIENT FOOD,Facilities,NHS LOGISTICS,1018237002,57.48,
Department of Health,Salisbury NHS Foundation Trust,16-Mar-18,BEVERAGES & AMBIENT FOOD,Facilities,NHS LOGISTICS,1018237002,18.3,
Department of Health,Salisbury NHS Foundation Trust,16-Mar-18,BEVERAGES & AMBIENT FOOD,Facilities,NHS LOGISTICS,1018237002,6.21,
Department of Health,Salisbury NHS Foundation Trust,16-Mar-18,BEVERAGES & AMBIENT FOOD,Facilities,NHS LOGISTICS,1018237002,4.53,
Department of Health,Salisbury NHS Foundation Trust,16-Mar-18,BEVERAGES & AMBIENT FOOD,Facilities,NHS LOGISTICS,1018237002,5.04,
Department of Health,Salisbury NHS Foundation Trust,16-Mar-18,BEVERAGES & AMBIENT FOOD,Facilities,NHS LOGISTICS,1018237002,3.93,
Department of Health,Salisbury NHS Foundation Trust,16-Mar-18,BEVERAGES & AMBIENT FOOD,Facilities,NHS LOGISTICS,1018237002,12.52,
Department of Health,Salisbury NHS Foundation Trust,16-Mar-18,BEVERAGES & AMBIENT FOOD,Facilities,NHS LOGISTICS,1018237002,4.43,
Department of Health,Salisbury NHS Foundation Trust,16-Mar-18,BEVERAGES & AMBIENT FOOD,Facilities,NHS LOGISTICS,1018237002,8.7,
Department of Health,Salisbury NHS Foundation Trust,16-Mar-18,BEVERAGES & AMBIENT FOOD,Facilities,NHS LOGISTICS,1018237002,9.52,
Department of Health,Salisbury NHS Foundation Trust,16-Mar-18,BEVERAGES & AMBIENT FOOD,Facilities,NHS LOGISTICS,1018237002,10.72,
Department of Health,Salisbury NHS Foundation Trust,16-Mar-18,EGGS MILK OTHER DAIRY PRODUCTS,Facilities,NHS LOGISTICS,1018237002,23.24,
Department of Health,Salisbury NHS Foundation Trust,16-Mar-18,HABERDASHERY,Surgery,NHS LOGISTICS,1018237002,1.73,
Department of Health,Salisbury NHS Foundation Trust,16-Mar-18,ELECTRICAL EQUIPMENT x,Surgery,NHS LOGISTICS,1018237002,1.25,
Department of Health,Salisbury NHS Foundation Trust,16-Mar-18,DRUGS,Surgery,NHS LOGISTICS,1018237002,6.48,
Department of Health,Salisbury NHS Foundation Trust,16-Mar-18,PATIENT APPLIANCES,surgery,NHS LOGISTICS,1018237002,3.35,
Department of Health,Salisbury NHS Foundation Trust,16-Mar-18,PATIENT APPLIANCES,surgery,NHS LOGISTICS,1018237002,3.35,
Department of Health,Salisbury NHS Foundation Trust,16-Mar-18,SERVICES FROM NHS BODIES,surgery,NHS LOGISTICS,1018237002,4.44,
Department of Health,Salisbury NHS Foundation Trust,16-Mar-18,NON DISPOSABLE THEATRE DRAPES WIPES,Medicine,NHS LOGISTICS,1018237002,52.82,
Department of Health,Salisbury NHS Foundation Trust,16-Mar-18,DRESSINGS - PRE STERILE,Medicine,NHS LOGISTICS,1018237002,15.03,
Department of Health,Salisbury NHS Foundation Trust,16-Mar-18,MEDSURGCONS - OTHER,Medicine,NHS LOGISTICS,1018237002,29.3,
Department of Health,Salisbury NHS Foundation Trust,16-Mar-18,MEDSURGCONS - OTHER,Medicine,NHS LOGISTICS,1018237002,42.92,
Department of Health,Salisbury NHS Foundation Trust,16-Mar-18,MEDSURGCONS - OTHER,Medicine,NHS LOGISTICS,1018237002,29.3,
Department of Health,Salisbury NHS Foundation Trust,16-Mar-18,MEDSURGCONS - OTHER,Musculo-Skeletal,NHS LOGISTICS,1018237002,4.88,
Department of Health,Salisbury NHS Foundation Trust,16-Mar-18,MEDSURGCONS - OTHER,Clinical Support,NHS LOGISTICS,1018237002,19.53,
Department of Health,Salisbury NHS Foundation Trust,16-Mar-18,CLEANING MATERIALS PRODUCTS SUNDRIES,Surgery,NHS LOGISTICS,1018237002,5.67,
Department of Health,Salisbury NHS Foundation Trust,16-Mar-18,DRUGS,Surgery,NHS LOGISTICS,1018237002,54.9,
Department of Health,Salisbury NHS Foundation Trust,16-Mar-18,SERVICES FROM NHS BODIES,Surgery,NHS LOGISTICS,1018237002,4.44,
Department of Health,Salisbury NHS Foundation Trust,16-Mar-18,ELECTRICAL EQUIPMENT x,Facilities,NHS LOGISTICS,1018237002,58,
Department of Health,Salisbury NHS Foundation Trust,16-Mar-18,TUBES,Clinical Support,NHS LOGISTICS,1018237002,6.85,
Department of Health,Salisbury NHS Foundation Trust,16-Mar-18,M & S EQUIPELECTEQUIPINST - OTHER,Medicine,NHS LOGISTICS,1018237002,8.4,
Department of Health,Salisbury NHS Foundation Trust,16-Mar-18,MEDSURGCONS - OTHER,Surgery,NHS LOGISTICS,1018237002,4.88,
Department of Health,Salisbury NHS Foundation Trust,16-Mar-18,M & S EQUIPELECTEQUIPINST - OTHER,Clinical Support,NHS LOGISTICS,1018237002,6.75,
Department of Health,Salisbury NHS Foundation Trust,16-Mar-18,TUBES,Medicine,NHS LOGISTICS,1018237002,6.85,
Department of Health,Salisbury NHS Foundation Trust,16-Mar-18,TOILETRIES PERSONAL HYGIENE PRODUCTS,Surgery,NHS LOGISTICS,1018237002,3.08,
Department of Health,Salisbury NHS Foundation Trust,16-Mar-18,OTHER MEDICAL SUPPLIES,Clinical Support,NHS LOGISTICS,1018237002,15.07,
Department of Health,Salisbury NHS Foundation Trust,16-Mar-18,OTHER MEDICAL SUPPLIES,Clinical Support,NHS LOGISTICS,1018237002,20.53,
Department of Health,Salisbury NHS Foundation Trust,16-Mar-18,OTHER MEDICAL SUPPLIES,Clinical Support,NHS LOGISTICS,1018237002,1.88,
Department of Health,Salisbury NHS Foundation Trust,16-Mar-18,OTHER MEDICAL SUPPLIES,Clinical Support,NHS LOGISTICS,1018237002,23.25,
Department of Health,Salisbury NHS Foundation Trust,16-Mar-18,ELECTRICAL EQUIPMENT x,Medicine,NHS LOGISTICS,1018237002,7.73,
Department of Health,Salisbury NHS Foundation Trust,16-Mar-18,MEDSURGCONS - OTHER,Medicine,NHS LOGISTICS,1018237002,9.77,
Department of Health,Salisbury NHS Foundation Trust,16-Mar-18,MEDSURGCONS - OTHER,Medicine,NHS LOGISTICS,1018237002,76.31,
Department of Health,Salisbury NHS Foundation Trust,16-Mar-18,CLEANING MATERIALS PRODUCTS SUNDRIES,Medicine,NHS LOGISTICS,1018237002,5.67,
Department of Health,Salisbury NHS Foundation Trust,16-Mar-18,CLEANING MATERIALS PRODUCTS SUNDRIES,Medicine,NHS LOGISTICS,1018237002,5.53,
Department of Health,Salisbury NHS Foundation Trust,16-Mar-18,MEDSURGCONS - OTHER,Medicine,NHS LOGISTICS,1018237002,4.88,
Department of Health,Salisbury NHS Foundation Trust,16-Mar-18,MEDSURGCONS - OTHER,Medicine,NHS LOGISTICS,1018237002,42.92,
Department of Health,Salisbury NHS Foundation Trust,16-Mar-18,MEDSURGCONS - OTHER,Medicine,NHS LOGISTICS,1018237002,19.53,
Department of Health,Salisbury NHS Foundation Trust,16-Mar-18,MEDSURGCONS - OTHER,Medicine,NHS LOGISTICS,1018237002,42.92,
Department of Health,Salisbury NHS Foundation Trust,16-Mar-18,MEDSURGCONS - OTHER,Medicine,NHS LOGISTICS,1018237002,9.77,
Department of Health,Salisbury NHS Foundation Trust,16-Mar-18,MEDSURGCONS - OTHER,Medicine,NHS LOGISTICS,1018237002,42.92,
Department of Health,Salisbury NHS Foundation Trust,16-Mar-18,HEALTHCARE - WEAR,Medicine,NHS LOGISTICS,1018237002,127.8,
Department of Health,Salisbury NHS Foundation Trust,16-Mar-18,OTHER MEDICAL SUPPLIES,Medicine,NHS LOGISTICS,1018237002,3.77,
Department of Health,Salisbury NHS Foundation Trust,16-Mar-18,OTHER MEDICAL SUPPLIES,Medicine,NHS LOGISTICS,1018237002,6.2,
Department of Health,Salisbury NHS Foundation Trust,16-Mar-18,MEDSURGCONS - OTHER,Clinical Support,NHS LOGISTICS,1018237002,9.77,
Department of Health,Salisbury NHS Foundation Trust,16-Mar-18,MEDSURGCONS - OTHER,Clinical Support,NHS LOGISTICS,1018237002,14.65,
Department of Health,Salisbury NHS Foundation Trust,16-Mar-18,MEDSURGCONS - OTHER,Clinical Support,NHS LOGISTICS,1018237002,9.77,
Department of Health,Salisbury NHS Foundation Trust,16-Mar-18,OTHER MEDICAL SUPPLIES,Clinical Support,NHS LOGISTICS,1018237002,6.84,
Department of Health,Salisbury NHS Foundation Trust,16-Mar-18,DISPOSABLE THEATRE DRAPES WIPES,Clinical Support,NHS LOGISTICS,1018237002,12,
Department of Health,Salisbury NHS Foundation Trust,16-Mar-18,DISPOSABLE THEATRE DRAPES WIPES,Clinical Support,NHS LOGISTICS,1018237002,3.55,
Department of Health,Salisbury NHS Foundation Trust,16-Mar-18,DRESSINGS - PRE STERILE,Clinical Support,NHS LOGISTICS,1018237002,1.11,
Department of Health,Salisbury NHS Foundation Trust,16-Mar-18,TISSUES HAND TOWELS & TOILET PAPER,Surgery,NHS LOGISTICS,1018237002,4.97,
Department of Health,Salisbury NHS Foundation Trust,16-Mar-18,DISPOSABLE THEATRE DRAPES WIPES,Surgery,NHS LOGISTICS,1018237002,3.55,
Department of Health,Salisbury NHS Foundation Trust,16-Mar-18,MEDSURGCONS - OTHER,Surgery,NHS LOGISTICS,1018237002,4.88,
Department of Health,Salisbury NHS Foundation Trust,16-Mar-18,DISPOSABLE THEATRE DRAPES WIPES,Musculo-Skeletal,NHS LOGISTICS,1018237002,3.29,
Department of Health,Salisbury NHS Foundation Trust,16-Mar-18,DISPOSABLE THEATRE DRAPES WIPES,Musculo-Skeletal,NHS LOGISTICS,1018237002,17.75,
Department of Health,Salisbury NHS Foundation Trust,16-Mar-18,SURGICAL INSTRUMENTS: GENERAL,Medicine,NHS LOGISTICS,1018237002,9.83,
Department of Health,Salisbury NHS Foundation Trust,16-Mar-18,SURGICAL INSTRUMENTS: GENERAL,Medicine,NHS LOGISTICS,1018237002,9.48,
Department of Health,Salisbury NHS Foundation Trust,16-Mar-18,DISPOSABLE THEATRE DRAPES WIPES,Clinical Support,NHS LOGISTICS,1018237002,3.55,
Department of Health,Salisbury NHS Foundation Trust,16-Mar-18,DISPOSABLE THEATRE DRAPES WIPES,Surgery,NHS LOGISTICS,1018237002,3.55,
Department of Health,Salisbury NHS Foundation Trust,16-Mar-18,M & S EQUIPELECTEQUIPINST - OTHER,Medicine,NHS LOGISTICS,1018237002,13.5,
Department of Health,Salisbury NHS Foundation Trust,16-Mar-18,ANAESTHETIC EQUIPMENT ACCESSORIES,Clinical Support,NHS LOGISTICS,1018237002,56.83,
Department of Health,Salisbury NHS Foundation Trust,16-Mar-18,TISSUES HAND TOWELS & TOILET PAPER,Surgery,NHS LOGISTICS,1018237002,4.97,
Department of Health,Salisbury NHS Foundation Trust,16-Mar-18,OTHER MEDICAL SUPPLIES,Clinical Support,NHS LOGISTICS,1018237002,1.88,
Department of Health,Salisbury NHS Foundation Trust,16-Mar-18,COOKING & KITCHEN UTENSILS,Facilities,NHS LOGISTICS,1018237002,25,
Department of Health,Salisbury NHS Foundation Trust,16-Mar-18,COOKING & KITCHEN UTENSILS,Facilities,NHS LOGISTICS,1018237002,12.64,
Department of Health,Salisbury NHS Foundation Trust,16-Mar-18,LIQUID REFRESHMENTS,Facilities,NHS LOGISTICS,1018237002,3.91,
Department of Health,Salisbury NHS Foundation Trust,16-Mar-18,MEAT GAME POULTRY FISH,Facilities,NHS LOGISTICS,1018237002,51.84,
Department of Health,Salisbury NHS Foundation Trust,16-Mar-18,LIQUID REFRESHMENTS,Facilities,NHS LOGISTICS,1018237002,9.98,
Department of Health,Salisbury NHS Foundation Trust,16-Mar-18,LIQUID REFRESHMENTS,Facilities,NHS LOGISTICS,1018237002,9.32,
Department of Health,Salisbury NHS Foundation Trust,16-Mar-18,LIQUID REFRESHMENTS,Facilities,NHS LOGISTICS,1018237002,17.35,
Department of Health,Salisbury NHS Foundation Trust,16-Mar-18,LIQUID REFRESHMENTS,Facilities,NHS LOGISTICS,1018237002,18.33,
Department of Health,Salisbury NHS Foundation Trust,16-Mar-18,LIQUID REFRESHMENTS,Facilities,NHS LOGISTICS,1018237002,13.25,
Department of Health,Salisbury NHS Foundation Trust,16-Mar-18,LIQUID REFRESHMENTS,Facilities,NHS LOGISTICS,1018237002,13.25,
Department of Health,Salisbury NHS Foundation Trust,16-Mar-18,LIQUID REFRESHMENTS,Facilities,NHS LOGISTICS,1018237002,122.4,
Department of Health,Salisbury NHS Foundation Trust,16-Mar-18,LIQUID REFRESHMENTS,Facilities,NHS LOGISTICS,1018237002,9.88,
Department of Health,Salisbury NHS Foundation Trust,16-Mar-18,LIQUID REFRESHMENTS,Facilities,NHS LOGISTICS,1018237002,9.3,
Department of Health,Salisbury NHS Foundation Trust,16-Mar-18,LIQUID REFRESHMENTS,Facilities,NHS LOGISTICS,1018237002,2.53,
Department of Health,Salisbury NHS Foundation Trust,16-Mar-18,LIQUID REFRESHMENTS,Facilities,NHS LOGISTICS,1018237002,2.53,
Department of Health,Salisbury NHS Foundation Trust,16-Mar-18,LIQUID REFRESHMENTS,Facilities,NHS LOGISTICS,1018237002,5.82,
Department of Health,Salisbury NHS Foundation Trust,16-Mar-18,LIQUID REFRESHMENTS,Facilities,NHS LOGISTICS,1018237002,7.43,
Department of Health,Salisbury NHS Foundation Trust,16-Mar-18,EGGS MILK OTHER DAIRY PRODUCTS,Facilities,NHS LOGISTICS,1018237002,64.58,
Department of Health,Salisbury NHS Foundation Trust,16-Mar-18,BAGS SACKS - OTHER,Facilities,NHS LOGISTICS,1018237002,7.21,
Department of Health,Salisbury NHS Foundation Trust,16-Mar-18,BAGS SACKS - OTHER,Facilities,NHS LOGISTICS,1018237002,10.13,
Department of Health,Salisbury NHS Foundation Trust,16-Mar-18,OTHER MEDICAL SUPPLIES,Surgery,NHS LOGISTICS,1018237002,9.67,
Department of Health,Salisbury NHS Foundation Trust,16-Mar-18,OTHER MEDICAL SUPPLIES,Surgery,NHS LOGISTICS,1018237002,7.75,
Department of Health,Salisbury NHS Foundation Trust,16-Mar-18,MEDSURGCONS - OTHER,Clinical Support,NHS LOGISTICS,1018237002,9.77,
Department of Health,Salisbury NHS Foundation Trust,16-Mar-18,MEDSURGCONS - OTHER,Clinical Support,NHS LOGISTICS,1018237002,24.42,
Department of Health,Salisbury NHS Foundation Trust,16-Mar-18,MEDSURGCONS - OTHER,Clinical Support,NHS LOGISTICS,1018237002,29.3,
Department of Health,Salisbury NHS Foundation Trust,16-Mar-18,MEDSURGCONS - OTHER,Clinical Support,NHS LOGISTICS,1018237002,3.83,
Department of Health,Salisbury NHS Foundation Trust,16-Mar-18,DRESSINGS - PRE STERILE,Musculo-Skeletal,NHS LOGISTICS,1018237002,16.95,
Department of Health,Salisbury NHS Foundation Trust,16-Mar-18,DRESSINGS - PRE STERILE,Musculo-Skeletal,NHS LOGISTICS,1018237002,7.49,
Department of Health,Salisbury NHS Foundation Trust,16-Mar-18,DRESSINGS - PRE STERILE,Musculo-Skeletal,NHS LOGISTICS,1018237002,12.89,
Department of Health,Salisbury NHS Foundation Trust,16-Mar-18,FRUIT & VEGETABLES,Facilities,NHS LOGISTICS,1018237002,24,
Department of Health,Salisbury NHS Foundation Trust,16-Mar-18,BEVERAGES & AMBIENT FOOD,Facilities,NHS LOGISTICS,1018237002,23.72,
Department of Health,Salisbury NHS Foundation Trust,16-Mar-18,BEVERAGES & AMBIENT FOOD,Facilities,NHS LOGISTICS,1018237002,113.28,
Department of Health,Salisbury NHS Foundation Trust,16-Mar-18,BEVERAGES & AMBIENT FOOD,Facilities,NHS LOGISTICS,1018237002,21.48,
Department of Health,Salisbury NHS Foundation Trust,16-Mar-18,BAGS SACKS - OTHER,Facilities,NHS LOGISTICS,1018237002,10.13,
Department of Health,Salisbury NHS Foundation Trust,16-Mar-18,FRUIT & VEGETABLES,Facilities,NHS LOGISTICS,1018237002,78.54,
Department of Health,Salisbury NHS Foundation Trust,16-Mar-18,FRUIT & VEGETABLES,Facilities,NHS LOGISTICS,1018237002,11.7,
Department of Health,Salisbury NHS Foundation Trust,16-Mar-18,FRUIT & VEGETABLES,Facilities,NHS LOGISTICS,1018237002,25.56,
Department of Health,Salisbury NHS Foundation Trust,16-Mar-18,FRUIT & VEGETABLES,Facilities,NHS LOGISTICS,1018237002,21.84,
Department of Health,Salisbury NHS Foundation Trust,16-Mar-18,FRUIT & VEGETABLES,Facilities,NHS LOGISTICS,1018237002,40.56,
Department of Health,Salisbury NHS Foundation Trust,16-Mar-18,FRUIT & VEGETABLES,Facilities,NHS LOGISTICS,1018237002,53.46,
Department of Health,Salisbury NHS Foundation Trust,16-Mar-18,FRUIT & VEGETABLES,Facilities,NHS LOGISTICS,1018237002,17.94,
Department of Health,Salisbury NHS Foundation Trust,16-Mar-18,LIQUID REFRESHMENTS,Facilities,NHS LOGISTICS,1018237002,17.35,
Department of Health,Salisbury NHS Foundation Trust,16-Mar-18,LIQUID REFRESHMENTS,Facilities,NHS LOGISTICS,1018237002,18.33,
Department of Health,Salisbury NHS Foundation Trust,16-Mar-18,BEVERAGES & AMBIENT FOOD,Facilities,NHS LOGISTICS,1018237002,16.17,
Department of Health,Salisbury NHS Foundation Trust,16-Mar-18,BEVERAGES & AMBIENT FOOD,Facilities,NHS LOGISTICS,1018237002,41.4,
Department of Health,Salisbury NHS Foundation Trust,16-Mar-18,BEVERAGES & AMBIENT FOOD,Facilities,NHS LOGISTICS,1018237002,11.57,
Department of Health,Salisbury NHS Foundation Trust,16-Mar-18,BEVERAGES & AMBIENT FOOD,Facilities,NHS LOGISTICS,1018237002,17.74,
Department of Health,Salisbury NHS Foundation Trust,16-Mar-18,BEVERAGES & AMBIENT FOOD,Facilities,NHS LOGISTICS,1018237002,12.1,
Department of Health,Salisbury NHS Foundation Trust,16-Mar-18,BEVERAGES & AMBIENT FOOD,Facilities,NHS LOGISTICS,1018237002,27,
Department of Health,Salisbury NHS Foundation Trust,16-Mar-18,COOKING & KITCHEN UTENSILS,Facilities,NHS LOGISTICS,1018237002,16.04,
Department of Health,Salisbury NHS Foundation Trust,16-Mar-18,BEVERAGES & AMBIENT FOOD,Facilities,NHS LOGISTICS,1018237002,26.82,
Department of Health,Salisbury NHS Foundation Trust,16-Mar-18,BEVERAGES & AMBIENT FOOD,Facilities,NHS LOGISTICS,1018237002,10.26,
Department of Health,Salisbury NHS Foundation Trust,16-Mar-18,BEVERAGES & AMBIENT FOOD,Facilities,NHS LOGISTICS,1018237002,25.98,
Department of Health,Salisbury NHS Foundation Trust,16-Mar-18,BEVERAGES & AMBIENT FOOD,Facilities,NHS LOGISTICS,1018237002,14.52,
Department of Health,Salisbury NHS Foundation Trust,16-Mar-18,FLAVOURINGS HERBS SPICES,Facilities,NHS LOGISTICS,1018237002,6.2,
Department of Health,Salisbury NHS Foundation Trust,16-Mar-18,BEVERAGES & AMBIENT FOOD,Facilities,NHS LOGISTICS,1018237002,9.18,
Department of Health,Salisbury NHS Foundation Trust,16-Mar-18,BEVERAGES & AMBIENT FOOD,Facilities,NHS LOGISTICS,1018237002,10.8,
Department of Health,Salisbury NHS Foundation Trust,16-Mar-18,BEVERAGES & AMBIENT FOOD,Facilities,NHS LOGISTICS,1018237002,8.9,
Department of Health,Salisbury NHS Foundation Trust,16-Mar-18,BEVERAGES & AMBIENT FOOD,Facilities,NHS LOGISTICS,1018237002,17.12,
Department of Health,Salisbury NHS Foundation Trust,16-Mar-18,FRUIT & VEGETABLES,Facilities,NHS LOGISTICS,1018237002,2.64,
Department of Health,Salisbury NHS Foundation Trust,16-Mar-18,FLAVOURINGS HERBS SPICES,Facilities,NHS LOGISTICS,1018237002,1.82,
Department of Health,Salisbury NHS Foundation Trust,16-Mar-18,BEVERAGES & AMBIENT FOOD,Facilities,NHS LOGISTICS,1018237002,8.94,
Department of Health,Salisbury NHS Foundation Trust,16-Mar-18,BEVERAGES & AMBIENT FOOD,Facilities,NHS LOGISTICS,1018237002,12.24,
Department of Health,Salisbury NHS Foundation Trust,16-Mar-18,BEVERAGES & AMBIENT FOOD,Facilities,NHS LOGISTICS,1018237002,9.18,
Department of Health,Salisbury NHS Foundation Trust,16-Mar-18,LIQUID REFRESHMENTS,Facilities,NHS LOGISTICS,1018237002,102,
Department of Health,Salisbury NHS Foundation Trust,16-Mar-18,LIQUID REFRESHMENTS,Facilities,NHS LOGISTICS,1018237002,9.88,
Department of Health,Salisbury NHS Foundation Trust,16-Mar-18,LIQUID REFRESHMENTS,Facilities,NHS LOGISTICS,1018237002,12.4,
Department of Health,Salisbury NHS Foundation Trust,16-Mar-18,LIQUID REFRESHMENTS,Facilities,NHS LOGISTICS,1018237002,5.82,
Department of Health,Salisbury NHS Foundation Trust,16-Mar-18,BEVERAGES & AMBIENT FOOD,Facilities,NHS LOGISTICS,1018237002,70.32,
Department of Health,Salisbury NHS Foundation Trust,16-Mar-18,BEVERAGES & AMBIENT FOOD,Facilities,NHS LOGISTICS,1018237002,94,
Department of Health,Salisbury NHS Foundation Trust,16-Mar-18,COOKING & KITCHEN UTENSILS,Facilities,NHS LOGISTICS,1018237002,19.17,
Department of Health,Salisbury NHS Foundation Trust,16-Mar-18,COOKING & KITCHEN UTENSILS,Facilities,NHS LOGISTICS,1018237002,19.17,
Department of Health,Salisbury NHS Foundation Trust,16-Mar-18,COOKING & KITCHEN UTENSILS,Facilities,NHS LOGISTICS,1018237002,7.92,
Department of Health,Salisbury NHS Foundation Trust,16-Mar-18,TISSUES HAND TOWELS & TOILET PAPER,Facilities,NHS LOGISTICS,1018237002,10.65,
Department of Health,Salisbury NHS Foundation Trust,16-Mar-18,COOKING & KITCHEN UTENSILS,Facilities,NHS LOGISTICS,1018237002,1.17,
Department of Health,Salisbury NHS Foundation Trust,16-Mar-18,COOKING & KITCHEN UTENSILS,Facilities,NHS LOGISTICS,1018237002,28,
Department of Health,Salisbury NHS Foundation Trust,16-Mar-18,FRUIT & VEGETABLES,Facilities,NHS LOGISTICS,1018237002,39.72,
Department of Health,Salisbury NHS Foundation Trust,16-Mar-18,FRUIT & VEGETABLES,Facilities,NHS LOGISTICS,1018237002,30.6,
Department of Health,Salisbury NHS Foundation Trust,16-Mar-18,FRUIT & VEGETABLES,Facilities,NHS LOGISTICS,1018237002,6.75,
Department of Health,Salisbury NHS Foundation Trust,16-Mar-18,FRUIT & VEGETABLES,Facilities,NHS LOGISTICS,1018237002,65.1,
Department of Health,Salisbury NHS Foundation Trust,16-Mar-18,FRUIT & VEGETABLES,Facilities,NHS LOGISTICS,1018237002,44.16,
Department of Health,Salisbury NHS Foundation Trust,16-Mar-18,BEVERAGES & AMBIENT FOOD,Facilities,NHS LOGISTICS,1018237002,8.62,
Department of Health,Salisbury NHS Foundation Trust,16-Mar-18,LIQUID REFRESHMENTS,Facilities,NHS LOGISTICS,1018237002,14.85,
Department of Health,Salisbury NHS Foundation Trust,16-Mar-18,TUBES,Surgery,NHS LOGISTICS,1018237002,30.72,
Department of Health,Salisbury NHS Foundation Trust,16-Mar-18,TUBES,Surgery,NHS LOGISTICS,1018237002,30.72,
Department of Health,Salisbury NHS Foundation Trust,16-Mar-18,TUBES,Surgery,NHS LOGISTICS,1018237002,30.72,
Department of Health,Salisbury NHS Foundation Trust,16-Mar-18,LAB EQUIP-LABORATORY APPARATUS,Clinical Support,NHS LOGISTICS,1018237002,6.89,
Department of Health,Salisbury NHS Foundation Trust,16-Mar-18,LAB EQUIP-LABORATORY APPARATUS,Clinical Support,NHS LOGISTICS,1018237002,10.36,
Department of Health,Salisbury NHS Foundation Trust,16-Mar-18,SURGICAL INSTRUMENTS: GENERAL,Surgery,NHS LOGISTICS,1018237002,120.62,
Department of Health,Salisbury NHS Foundation Trust,16-Mar-18,PATIENT APPLIANCES,Medicine,NHS LOGISTICS,1018237002,4.38,
Department of Health,Salisbury NHS Foundation Trust,16-Mar-18,LAB EQUIP-LABORATORY APPARATUS,Clinical Support,NHS LOGISTICS,1018237002,8.38,
Department of Health,Salisbury NHS Foundation Trust,16-Mar-18,LAB EQUIP-LABORATORY APPARATUS,Clinical Support,NHS LOGISTICS,1018237002,8.11,
Department of Health,Salisbury NHS Foundation Trust,16-Mar-18,MEDSURGCONS - OTHER,Surgery,NHS LOGISTICS,1018237002,12.79,
Department of Health,Salisbury NHS Foundation Trust,16-Mar-18,DRESSINGS - PRE STERILE,Musculo-Skeletal,NHS LOGISTICS,1018237002,31.65,
Department of Health,Salisbury NHS Foundation Trust,16-Mar-18,LAB EQUIP-LABORATORY APPARATUS,Clinical Support,NHS LOGISTICS,1018237002,16.27,
Department of Health,Salisbury NHS Foundation Trust,16-Mar-18,ADULTS HEARING AIDS,Surgery,NHS LOGISTICS,1018237002,46.2,
Department of Health,Salisbury NHS Foundation Trust,16-Mar-18,TUBES,Clinical Support,NHS LOGISTICS,1018237002,5.99,
Department of Health,Salisbury NHS Foundation Trust,16-Mar-18,HEALTHCARE - WEAR,Clinical Support,NHS LOGISTICS,1018237002,4.29,
Department of Health,Salisbury NHS Foundation Trust,16-Mar-18,PATIENT APPLIANCES,Musculo-Skeletal,NHS LOGISTICS,1018237002,6.41,
Department of Health,Salisbury NHS Foundation Trust,16-Mar-18,PATIENT APPLIANCES,Musculo-Skeletal,NHS LOGISTICS,1018237002,6.44,
Department of Health,Salisbury NHS Foundation Trust,16-Mar-18,PATIENT APPLIANCES,Musculo-Skeletal,NHS LOGISTICS,1018237002,6.44,
Department of Health,Salisbury NHS Foundation Trust,16-Mar-18,PATIENT APPLIANCES,Musculo-Skeletal,NHS LOGISTICS,1018237002,6.44,
Department of Health,Salisbury NHS Foundation Trust,16-Mar-18,DISPOSABLE THEATRE DRAPES WIPES,Surgery,NHS LOGISTICS,1018237002,0.45,
Department of Health,Salisbury NHS Foundation Trust,16-Mar-18,MEDSURGCONS - OTHER,Surgery,NHS LOGISTICS,1018237002,0.98,
Department of Health,Salisbury NHS Foundation Trust,16-Mar-18,DRESSINGS - PRE STERILE,Medicine,NHS LOGISTICS,1018237002,2.82,
Department of Health,Salisbury NHS Foundation Trust,16-Mar-18,SURGICAL INSTRUMENTS: DISPOSABLE,Medicine,NHS LOGISTICS,1018237002,3.6,
Department of Health,Salisbury NHS Foundation Trust,16-Mar-18,LAB EQUIP-LABORATORY APPARATUS,Clinical Support,NHS LOGISTICS,1018237002,3.88,
Department of Health,Salisbury NHS Foundation Trust,16-Mar-18,LAB EQUIP-LABORATORY APPARATUS,Clinical Support,NHS LOGISTICS,1018237002,16.77,
Department of Health,Salisbury NHS Foundation Trust,16-Mar-18,LAB EQUIP-LABORATORY APPARATUS,Clinical Support,NHS LOGISTICS,1018237002,94.58,
Department of Health,Salisbury NHS Foundation Trust,16-Mar-18,LAB EQUIP-LABORATORY APPARATUS,Clinical Support,NHS LOGISTICS,1018237002,108.58,
Department of Health,Salisbury NHS Foundation Trust,16-Mar-18,OTHER MEDICAL SUPPLIES,Clinical Support,NHS LOGISTICS,1018237002,7.47,
Department of Health,Salisbury NHS Foundation Trust,16-Mar-18,OTHER MEDICAL SUPPLIES,Clinical Support,NHS LOGISTICS,1018237002,22.42,
Department of Health,Salisbury NHS Foundation Trust,16-Mar-18,SURGICAL INSTRUMENTS: GENERAL,Surgery,NHS LOGISTICS,1018237002,17.18,
Department of Health,Salisbury NHS Foundation Trust,16-Mar-18,DRESSINGS - PRE STERILE,Surgery,NHS LOGISTICS,1018237002,29.44,
Department of Health,Salisbury NHS Foundation Trust,16-Mar-18,MEDSURGCONS - OTHER,Surgery,NHS LOGISTICS,1018237002,12.79,
Department of Health,Salisbury NHS Foundation Trust,16-Mar-18,MEDSURGCONS - OTHER,Surgery,NHS LOGISTICS,1018237002,14.4,
Department of Health,Salisbury NHS Foundation Trust,16-Mar-18,DRESSINGS - PRE STERILE,Surgery,NHS LOGISTICS,1018237002,18,
Department of Health,Salisbury NHS Foundation Trust,16-Mar-18,DRESSINGS - PRE STERILE,Surgery,NHS LOGISTICS,1018237002,18,
Department of Health,Salisbury NHS Foundation Trust,16-Mar-18,M & S EQUIPELECTEQUIPINST - OTHER,Surgery,NHS LOGISTICS,1018237002,22.92,
Department of Health,Salisbury NHS Foundation Trust,16-Mar-18,HEARING AIDS SPARES,Surgery,NHS LOGISTICS,1018237002,4.01,
Department of Health,Salisbury NHS Foundation Trust,16-Mar-18,M & S EQUIPELECTEQUIPINST - OTHER,Corporate - HR/Education,NHS LOGISTICS,1018237002,2.47,
Department of Health,Salisbury NHS Foundation Trust,16-Mar-18,BAGS SACKS - OTHER,Facilities,NHS LOGISTICS,1018237002,28.67,
Department of Health,Salisbury NHS Foundation Trust,16-Mar-18,LIQUID REFRESHMENTS,Facilities,NHS LOGISTICS,1018237002,1.56,
Department of Health,Salisbury NHS Foundation Trust,16-Mar-18,CLEANING MATERIALS PRODUCTS SUNDRIES,Facilities,NHS LOGISTICS,1018237002,15.04,
Department of Health,Salisbury NHS Foundation Trust,16-Mar-18,CLEANING MATERIALS PRODUCTS SUNDRIES,Facilities,NHS LOGISTICS,1018237002,2.75,
Department of Health,Salisbury NHS Foundation Trust,16-Mar-18,DISPOSABLE THEATRE DRAPES WIPES,Facilities,NHS LOGISTICS,1018237002,56.64,
Department of Health,Salisbury NHS Foundation Trust,16-Mar-18,CLEANING MATERIALS PRODUCTS SUNDRIES,Facilities,NHS LOGISTICS,1018237002,5.1,
Department of Health,Salisbury NHS Foundation Trust,16-Mar-18,BAGS SACKS - OTHER,Facilities,NHS LOGISTICS,1018237002,5.91,
Department of Health,Salisbury NHS Foundation Trust,16-Mar-18,CLEANING MATERIALS PRODUCTS SUNDRIES,Facilities,NHS LOGISTICS,1018237002,15.12,
Department of Health,Salisbury NHS Foundation Trust,16-Mar-18,DISPOSABLE THEATRE DRAPES WIPES,Facilities,NHS LOGISTICS,1018237002,22.8,
Department of Health,Salisbury NHS Foundation Trust,16-Mar-18,DISPOSABLE THEATRE DRAPES WIPES,Medicine,NHS LOGISTICS,1018237002,27.16,
Department of Health,Salisbury NHS Foundation Trust,16-Mar-18,M & S EQUIPELECTEQUIPINST - OTHER,Medicine,NHS LOGISTICS,1018237002,1.68,
Department of Health,Salisbury NHS Foundation Trust,16-Mar-18,MEDSURGCONS - OTHER,Medicine,NHS LOGISTICS,1018237002,8.58,
Department of Health,Salisbury NHS Foundation Trust,16-Mar-18,MEDSURGCONS - OTHER,Medicine,NHS LOGISTICS,1018237002,8.58,
Department of Health,Salisbury NHS Foundation Trust,16-Mar-18,MEDSURGCONS - OTHER,Medicine,NHS LOGISTICS,1018237002,8.58,
Department of Health,Salisbury NHS Foundation Trust,16-Mar-18,DRESSINGS - PRE STERILE,Medicine,NHS LOGISTICS,1018237002,30,
Department of Health,Salisbury NHS Foundation Trust,16-Mar-18,HEALTHCARE - WEAR,Medicine,NHS LOGISTICS,1018237002,2.73,
Department of Health,Salisbury NHS Foundation Trust,16-Mar-18,OTHER MEDICAL SUPPLIES,Medicine,NHS LOGISTICS,1018237002,0.47,
Department of Health,Salisbury NHS Foundation Trust,16-Mar-18,BEVERAGES & AMBIENT FOOD,Surgery,NHS LOGISTICS,1018237002,8.65,
Department of Health,Salisbury NHS Foundation Trust,16-Mar-18,DISPOSABLE THEATRE DRAPES WIPES,Surgery,NHS LOGISTICS,1018237002,2.4,
Department of Health,Salisbury NHS Foundation Trust,16-Mar-18,MEDSURGCONS - OTHER,Surgery,NHS LOGISTICS,1018237002,8.58,
Department of Health,Salisbury NHS Foundation Trust,16-Mar-18,MEDSURGCONS - OTHER,Surgery,NHS LOGISTICS,1018237002,8.58,
Department of Health,Salisbury NHS Foundation Trust,16-Mar-18,MEDSURGCONS - OTHER,Surgery,NHS LOGISTICS,1018237002,8.58,
Department of Health,Salisbury NHS Foundation Trust,16-Mar-18,SURGICAL INSTRUMENTS: GENERAL,Surgery,NHS LOGISTICS,1018237002,2.92,
Department of Health,Salisbury NHS Foundation Trust,16-Mar-18,BEVERAGES & AMBIENT FOOD,Surgery,NHS LOGISTICS,1018237002,5.74,
Department of Health,Salisbury NHS Foundation Trust,16-Mar-18,BEVERAGES & AMBIENT FOOD,Surgery,NHS LOGISTICS,1018237002,0.74,
Department of Health,Salisbury NHS Foundation Trust,16-Mar-18,PATIENT APPLIANCES,Clinical Support,NHS LOGISTICS,1018237002,4.43,
Department of Health,Salisbury NHS Foundation Trust,16-Mar-18,PATIENT APPLIANCES,Clinical Support,NHS LOGISTICS,1018237002,4,
Department of Health,Salisbury NHS Foundation Trust,16-Mar-18,LAB EQUIP-LABORATORY APPARATUS,Clinical Support,NHS LOGISTICS,1018237002,3.06,
Department of Health,Salisbury NHS Foundation Trust,16-Mar-18,LAB EQUIP-LABORATORY APPARATUS,Clinical Support,NHS LOGISTICS,1018237002,2.52,
Department of Health,Salisbury NHS Foundation Trust,16-Mar-18,LAB EQUIP-LABORATORY APPARATUS,Clinical Support,NHS LOGISTICS,1018237002,65.46,
Department of Health,Salisbury NHS Foundation Trust,16-Mar-18,LAB EQUIP-ANALYSERS,Clinical Support,NHS LOGISTICS,1018237002,7.62,
Department of Health,Salisbury NHS Foundation Trust,16-Mar-18,LAB EQUIP-LABORATORY APPARATUS,Clinical Support,NHS LOGISTICS,1018237002,2.58,
Department of Health,Salisbury NHS Foundation Trust,16-Mar-18,LAB EQUIP-LABORATORY APPARATUS,Clinical Support,NHS LOGISTICS,1018237002,140.69,
Department of Health,Salisbury NHS Foundation Trust,16-Mar-18,LAB EQUIP-LABORATORY APPARATUS,Clinical Support,NHS LOGISTICS,1018237002,2.57,
Department of Health,Salisbury NHS Foundation Trust,16-Mar-18,LAB EQUIP-LABORATORY APPARATUS,Clinical Support,NHS LOGISTICS,1018237002,14.99,
Department of Health,Salisbury NHS Foundation Trust,16-Mar-18,LAB EQUIP-ANALYSERS,Clinical Support,NHS LOGISTICS,1018237002,2.04,
Department of Health,Salisbury NHS Foundation Trust,16-Mar-18,MEDSURGCONS - OTHER,Clinical Support,NHS LOGISTICS,1018237002,2.93,
Department of Health,Salisbury NHS Foundation Trust,16-Mar-18,MEDSURGCONS - OTHER,Clinical Support,NHS LOGISTICS,1018237002,1.95,
Department of Health,Salisbury NHS Foundation Trust,16-Mar-18,LAB EQUIP-LABORATORY APPARATUS,Clinical Support,NHS LOGISTICS,1018237002,15.27,
Department of Health,Salisbury NHS Foundation Trust,16-Mar-18,OTHER MEDICAL SUPPLIES,Clinical Support,NHS LOGISTICS,1018237002,109.2,
Department of Health,Salisbury NHS Foundation Trust,16-Mar-18,LAB EQUIP-LABORATORY APPARATUS,Clinical Support,NHS LOGISTICS,1018237002,4.39,
Department of Health,Salisbury NHS Foundation Trust,16-Mar-18,CLEANING MATERIALS PRODUCTS SUNDRIES,Surgery,NHS LOGISTICS,1018237002,1.13,
Department of Health,Salisbury NHS Foundation Trust,16-Mar-18,TISSUES HAND TOWELS & TOILET PAPER,Clinical Support,NHS LOGISTICS,1018237002,2.13,
Department of Health,Salisbury NHS Foundation Trust,16-Mar-18,TISSUES HAND TOWELS & TOILET PAPER,Clinical Support,NHS LOGISTICS,1018237002,2.13,
Department of Health,Salisbury NHS Foundation Trust,16-Mar-18,TISSUES HAND TOWELS & TOILET PAPER,Medicine,NHS LOGISTICS,1018237002,0.25,
Department of Health,Salisbury NHS Foundation Trust,16-Mar-18,MEDSURGCONS - OTHER,Medicine,NHS LOGISTICS,1018237002,1.95,
Department of Health,Salisbury NHS Foundation Trust,16-Mar-18,MEDSURGCONS - OTHER,Medicine,NHS LOGISTICS,1018237002,1.95,
Department of Health,Salisbury NHS Foundation Trust,16-Mar-18,DRESSINGS - PRE STERILE,Medicine,NHS LOGISTICS,1018237002,30,
Department of Health,Salisbury NHS Foundation Trust,16-Mar-18,OTHER MEDICAL SUPPLIES,Medicine,NHS LOGISTICS,1018237002,0.16,
Department of Health,Salisbury NHS Foundation Trust,16-Mar-18,DRESSINGS - PRE STERILE,Musculo-Skeletal,NHS LOGISTICS,1018237002,4.93,
Department of Health,Salisbury NHS Foundation Trust,16-Mar-18,DRESSINGS - PRE STERILE,Musculo-Skeletal,NHS LOGISTICS,1018237002,4.5,
Department of Health,Salisbury NHS Foundation Trust,16-Mar-18,DRESSINGS - PRE STERILE,Musculo-Skeletal,NHS LOGISTICS,1018237002,6.1,
Department of Health,Salisbury NHS Foundation Trust,16-Mar-18,DRESSINGS - PRE STERILE,Musculo-Skeletal,NHS LOGISTICS,1018237002,6.44,
Department of Health,Salisbury NHS Foundation Trust,16-Mar-18,DRESSINGS - PRE STERILE,Musculo-Skeletal,NHS LOGISTICS,1018237002,2.47,
Department of Health,Salisbury NHS Foundation Trust,16-Mar-18,DRESSINGS - PRE STERILE,Musculo-Skeletal,NHS LOGISTICS,1018237002,3.65,
Department of Health,Salisbury NHS Foundation Trust,16-Mar-18,TISSUES HAND TOWELS & TOILET PAPER,Musculo-Skeletal,NHS LOGISTICS,1018237002,0.99,
Department of Health,Salisbury NHS Foundation Trust,16-Mar-18,TISSUES HAND TOWELS & TOILET PAPER,Musculo-Skeletal,NHS LOGISTICS,1018237002,0.16,
Department of Health,Salisbury NHS Foundation Trust,16-Mar-18,NON DISPOSABLE BED LINEN,Musculo-Skeletal,NHS LOGISTICS,1018237002,1.08,
Department of Health,Salisbury NHS Foundation Trust,16-Mar-18,PATIENTS BABY WEAR,Medicine,NHS LOGISTICS,1018237002,6.43,
Department of Health,Salisbury NHS Foundation Trust,16-Mar-18,PATIENTS BABY WEAR,Medicine,NHS LOGISTICS,1018237002,5.96,
Department of Health,Salisbury NHS Foundation Trust,16-Mar-18,ANAESTHETIC EQUIPMENT ACCESSORIES,Medicine,NHS LOGISTICS,1018237002,0.25,
Department of Health,Salisbury NHS Foundation Trust,16-Mar-18,DRESSINGS - PRE STERILE,Medicine,NHS LOGISTICS,1018237002,24.23,
Department of Health,Salisbury NHS Foundation Trust,16-Mar-18,PATIENT APPLIANCES,Medicine,NHS LOGISTICS,1018237002,0.67,
Department of Health,Salisbury NHS Foundation Trust,16-Mar-18,PATIENT APPLIANCES,Medicine,NHS LOGISTICS,1018237002,1.34,
Department of Health,Salisbury NHS Foundation Trust,16-Mar-18,PATIENT APPLIANCES,Medicine,NHS LOGISTICS,1018237002,1.34,
Department of Health,Salisbury NHS Foundation Trust,16-Mar-18,PATIENT APPLIANCES,Medicine,NHS LOGISTICS,1018237002,1.34,
Department of Health,Salisbury NHS Foundation Trust,16-Mar-18,PATIENT APPLIANCES,Medicine,NHS LOGISTICS,1018237002,1.76,
Department of Health,Salisbury NHS Foundation Trust,16-Mar-18,DISPOSABLE THEATRE DRAPES WIPES,Clinical Support,NHS LOGISTICS,1018237002,49.36,
Department of Health,Salisbury NHS Foundation Trust,16-Mar-18,LAB EQUIP-LABORATORY APPARATUS,Musculo-Skeletal,NHS LOGISTICS,1018237002,1.23,
Department of Health,Salisbury NHS Foundation Trust,16-Mar-18,M & S EQUIPELECTEQUIPINST - OTHER,Medicine,NHS LOGISTICS,1018237002,1.68,
Department of Health,Salisbury NHS Foundation Trust,16-Mar-18,MEDSURGCONS - OTHER,Medicine,NHS LOGISTICS,1018237002,13.46,
Department of Health,Salisbury NHS Foundation Trust,16-Mar-18,MEDSURGCONS - OTHER,Medicine,NHS LOGISTICS,1018237002,8.58,
Department of Health,Salisbury NHS Foundation Trust,16-Mar-18,TUBES,Medicine,NHS LOGISTICS,1018237002,1.37,
Department of Health,Salisbury NHS Foundation Trust,16-Mar-18,ANAESTHETIC EQUIPMENT ACCESSORIES,Medicine,NHS LOGISTICS,1018237002,0.38,
Department of Health,Salisbury NHS Foundation Trust,16-Mar-18,OTHER MEDICAL SUPPLIES,Medicine,NHS LOGISTICS,1018237002,1.12,
Department of Health,Salisbury NHS Foundation Trust,16-Mar-18,CLEANING MATERIALS PRODUCTS SUNDRIES,Medicine,NHS LOGISTICS,1018237002,4.85,
Department of Health,Salisbury NHS Foundation Trust,16-Mar-18,OTHER MEDICAL SUPPLIES,Medicine,NHS LOGISTICS,1018237002,0.38,
Department of Health,Salisbury NHS Foundation Trust,16-Mar-18,PATIENT APPLIANCES,Medicine,NHS LOGISTICS,1018237002,0.67,
Department of Health,Salisbury NHS Foundation Trust,16-Mar-18,PATIENT APPLIANCES,Medicine,NHS LOGISTICS,1018237002,0.67,
Department of Health,Salisbury NHS Foundation Trust,16-Mar-18,MEDSURGCONS - OTHER,Medicine,NHS LOGISTICS,1018237002,1.36,
Department of Health,Salisbury NHS Foundation Trust,16-Mar-18,TISSUES HAND TOWELS & TOILET PAPER,Medicine,NHS LOGISTICS,1018237002,0.14,
Department of Health,Salisbury NHS Foundation Trust,16-Mar-18,TOILETRIES PERSONAL HYGIENE PRODUCTS,Medicine,NHS LOGISTICS,1018237002,0.83,
Department of Health,Salisbury NHS Foundation Trust,16-Mar-18,DISPOSABLE THEATRE DRAPES WIPES,Medicine,NHS LOGISTICS,1018237002,0.71,
Department of Health,Salisbury NHS Foundation Trust,16-Mar-18,BAGS SACKS - OTHER,Surgery,NHS LOGISTICS,1018237002,2.44,
Department of Health,Salisbury NHS Foundation Trust,16-Mar-18,LAB EQUIP-LABORATORY APPARATUS,Surgery,NHS LOGISTICS,1018237002,1.84,
Department of Health,Salisbury NHS Foundation Trust,16-Mar-18,TISSUES HAND TOWELS & TOILET PAPER,Surgery,NHS LOGISTICS,1018237002,0.74,
Department of Health,Salisbury NHS Foundation Trust,16-Mar-18,COOKING & KITCHEN UTENSILS,Surgery,NHS LOGISTICS,1018237002,4.08,
Department of Health,Salisbury NHS Foundation Trust,16-Mar-18,DRESSINGS - PRE STERILE,Surgery,NHS LOGISTICS,1018237002,1.88,
Department of Health,Salisbury NHS Foundation Trust,16-Mar-18,DRESSINGS - PRE STERILE,Surgery,NHS LOGISTICS,1018237002,1.13,
Department of Health,Salisbury NHS Foundation Trust,16-Mar-18,DRESSINGS - PRE STERILE,Surgery,NHS LOGISTICS,1018237002,1,
Department of Health,Salisbury NHS Foundation Trust,16-Mar-18,DRESSINGS - PRE STERILE,Surgery,NHS LOGISTICS,1018237002,2.29,
Department of Health,Salisbury NHS Foundation Trust,16-Mar-18,DRESSINGS - PRE STERILE,Surgery,NHS LOGISTICS,1018237002,1.57,
Department of Health,Salisbury NHS Foundation Trust,16-Mar-18,MEDSURGCONS - OTHER,Surgery,NHS LOGISTICS,1018237002,4.88,
Department of Health,Salisbury NHS Foundation Trust,16-Mar-18,MEDSURGCONS - OTHER,Surgery,NHS LOGISTICS,1018237002,4.88,
Department of Health,Salisbury NHS Foundation Trust,16-Mar-18,OTHER MEDICAL SUPPLIES,Surgery,NHS LOGISTICS,1018237002,50.57,
Department of Health,Salisbury NHS Foundation Trust,16-Mar-18,DISPOSABLE THEATRE DRAPES WIPES,Surgery,NHS LOGISTICS,1018237002,2.13,
Department of Health,Salisbury NHS Foundation Trust,16-Mar-18,DRESSINGS - PRE STERILE,Medicine,NHS LOGISTICS,1018237002,2.8,
Department of Health,Salisbury NHS Foundation Trust,16-Mar-18,DRESSINGS - PRE STERILE,Medicine,NHS LOGISTICS,1018237002,6.42,
Department of Health,Salisbury NHS Foundation Trust,16-Mar-18,MEDSURGCONS - OTHER,Medicine,NHS LOGISTICS,1018237002,3.91,
Department of Health,Salisbury NHS Foundation Trust,16-Mar-18,MEDSURGCONS - OTHER,Medicine,NHS LOGISTICS,1018237002,3.91,
Department of Health,Salisbury NHS Foundation Trust,16-Mar-18,MEDSURGCONS - OTHER,Medicine,NHS LOGISTICS,1018237002,3.91,
Department of Health,Salisbury NHS Foundation Trust,16-Mar-18,ANAESTHETIC EQUIPMENT ACCESSORIES,Medicine,NHS LOGISTICS,1018237002,0.13,
Department of Health,Salisbury NHS Foundation Trust,16-Mar-18,OTHER MEDICAL SUPPLIES,Medicine,NHS LOGISTICS,1018237002,0.38,
Department of Health,Salisbury NHS Foundation Trust,16-Mar-18,OTHER MEDICAL SUPPLIES,Medicine,NHS LOGISTICS,1018237002,0.3,
Department of Health,Salisbury NHS Foundation Trust,16-Mar-18,SURGICAL INSTRUMENTS: GENERAL,Medicine,NHS LOGISTICS,1018237002,0.95,
Department of Health,Salisbury NHS Foundation Trust,16-Mar-18,DISPOSABLE THEATRE DRAPES WIPES,Medicine,NHS LOGISTICS,1018237002,0.53,
Department of Health,Salisbury NHS Foundation Trust,16-Mar-18,DISPOSABLE THEATRE DRAPES WIPES,Medicine,NHS LOGISTICS,1018237002,0.71,
Department of Health,Salisbury NHS Foundation Trust,16-Mar-18,ELECTRICAL EQUIPMENT x,Clinical Support,NHS LOGISTICS,1018237002,4.5,
Department of Health,Salisbury NHS Foundation Trust,16-Mar-18,MEDSURGCONS - OTHER,Clinical Support,NHS LOGISTICS,1018237002,17.81,
Department of Health,Salisbury NHS Foundation Trust,16-Mar-18,MEDSURGCONS - OTHER,Clinical Support,NHS LOGISTICS,1018237002,17.81,
Department of Health,Salisbury NHS Foundation Trust,16-Mar-18,MEDSURGCONS - OTHER,Clinical Support,NHS LOGISTICS,1018237002,17.81,
Department of Health,Salisbury NHS Foundation Trust,16-Mar-18,MEDSURGCONS - OTHER,Clinical Support,NHS LOGISTICS,1018237002,17.81,
Department of Health,Salisbury NHS Foundation Trust,16-Mar-18,DRESSINGS - PRE STERILE,Surgery,NHS LOGISTICS,1018237002,3.14,
Department of Health,Salisbury NHS Foundation Trust,16-Mar-18,DRESSINGS - PRE STERILE,Surgery,NHS LOGISTICS,1018237002,1.15,
Department of Health,Salisbury NHS Foundation Trust,16-Mar-18,DRESSINGS - PRE STERILE,Clinical Support,NHS LOGISTICS,1018237002,0.15,
Department of Health,Salisbury NHS Foundation Trust,16-Mar-18,M & S EQUIPELECTEQUIPINST - OTHER,Surgery,NHS LOGISTICS,1018237002,22.92,
Department of Health,Salisbury NHS Foundation Trust,16-Mar-18,MEDSURGCONS - OTHER,Musculo-Skeletal,NHS LOGISTICS,1018237002,12.79,
Department of Health,Salisbury NHS Foundation Trust,16-Mar-18,OTHER MEDICAL SUPPLIES,Musculo-Skeletal,NHS LOGISTICS,1018237002,0.73,
Department of Health,Salisbury NHS Foundation Trust,16-Mar-18,MEDSURGCONS - OTHER,Musculo-Skeletal,NHS LOGISTICS,1018237002,2.45,
Department of Health,Salisbury NHS Foundation Trust,16-Mar-18,M & S EQUIPELECTEQUIPINST - OTHER,Clinical Support,NHS LOGISTICS,1018237002,25.77,
Department of Health,Salisbury NHS Foundation Trust,16-Mar-18,MEDSURGCONS - OTHER,Clinical Support,NHS LOGISTICS,1018237002,1.95,
Department of Health,Salisbury NHS Foundation Trust,16-Mar-18,TISSUES HAND TOWELS & TOILET PAPER,Clinical Support,NHS LOGISTICS,1018237002,0.16,
Department of Health,Salisbury NHS Foundation Trust,16-Mar-18,SURGICAL INSTRUMENTS: DISPOSABLE,Clinical Support,NHS LOGISTICS,1018237002,14.12,
Department of Health,Salisbury NHS Foundation Trust,16-Mar-18,OTHER MEDICAL SUPPLIES,Clinical Support,NHS LOGISTICS,1018237002,1.37,
Department of Health,Salisbury NHS Foundation Trust,16-Mar-18,DRESSINGS - PRE STERILE,Clinical Support,NHS LOGISTICS,1018237002,4.43,
Department of Health,Salisbury NHS Foundation Trust,16-Mar-18,OTHER MEDICAL SUPPLIES,Clinical Support,NHS LOGISTICS,1018237002,29.99,
Department of Health,Salisbury NHS Foundation Trust,16-Mar-18,M & S EQUIPELECTEQUIPINST - OTHER,Musculo-Skeletal,NHS LOGISTICS,1018237002,3.36,
Department of Health,Salisbury NHS Foundation Trust,16-Mar-18,TOILETRIES PERSONAL HYGIENE PRODUCTS,Musculo-Skeletal,NHS LOGISTICS,1018237002,1.54,
Department of Health,Salisbury NHS Foundation Trust,16-Mar-18,MEDSURGCONS - OTHER,Musculo-Skeletal,NHS LOGISTICS,1018237002,8.58,
Department of Health,Salisbury NHS Foundation Trust,16-Mar-18,MEDSURGCONS - OTHER,Musculo-Skeletal,NHS LOGISTICS,1018237002,13.46,
Department of Health,Salisbury NHS Foundation Trust,16-Mar-18,MEDSURGCONS - OTHER,Musculo-Skeletal,NHS LOGISTICS,1018237002,8.58,
Department of Health,Salisbury NHS Foundation Trust,16-Mar-18,OTHER MEDICAL SUPPLIES,Musculo-Skeletal,NHS LOGISTICS,1018237002,1.13,
Department of Health,Salisbury NHS Foundation Trust,16-Mar-18,OTHER MEDICAL SUPPLIES,Musculo-Skeletal,NHS LOGISTICS,1018237002,0.73,
Department of Health,Salisbury NHS Foundation Trust,16-Mar-18,OTHER MEDICAL SUPPLIES,Musculo-Skeletal,NHS LOGISTICS,1018237002,0.78,
Department of Health,Salisbury NHS Foundation Trust,16-Mar-18,PATIENT APPLIANCES,Musculo-Skeletal,NHS LOGISTICS,1018237002,1.34,
Department of Health,Salisbury NHS Foundation Trust,16-Mar-18,M & S EQUIPELECTEQUIPINST - OTHER,Musculo-Skeletal,NHS LOGISTICS,1018237002,0.32,
Department of Health,Salisbury NHS Foundation Trust,16-Mar-18,DISPOSABLE THEATRE DRAPES WIPES,Musculo-Skeletal,NHS LOGISTICS,1018237002,4.62,
Department of Health,Salisbury NHS Foundation Trust,16-Mar-18,OTHER MEDICAL SUPPLIES,Surgery,NHS LOGISTICS,1018237002,11.76,
Department of Health,Salisbury NHS Foundation Trust,16-Mar-18,OTHER MEDICAL SUPPLIES,Surgery,NHS LOGISTICS,1018237002,11.94,
Department of Health,Salisbury NHS Foundation Trust,16-Mar-18,OTHER MEDICAL SUPPLIES,Surgery,NHS LOGISTICS,1018237002,11.76,
Department of Health,Salisbury NHS Foundation Trust,16-Mar-18,DRESSINGS - PRE STERILE,Surgery,NHS LOGISTICS,1018237002,3.37,
Department of Health,Salisbury NHS Foundation Trust,16-Mar-18,DRESSINGS - PRE STERILE,Medicine,NHS LOGISTICS,1018237002,1.5,
Department of Health,Salisbury NHS Foundation Trust,16-Mar-18,DRESSINGS - PRE STERILE,Medicine,NHS LOGISTICS,1018237002,0.66,
Department of Health,Salisbury NHS Foundation Trust,16-Mar-18,PATIENT APPLIANCES,Medicine,NHS LOGISTICS,1018237002,7.89,
Department of Health,Salisbury NHS Foundation Trust,16-Mar-18,PATIENT APPLIANCES,Medicine,NHS LOGISTICS,1018237002,1.07,
Department of Health,Salisbury NHS Foundation Trust,16-Mar-18,DRESSINGS - PRE STERILE,Medicine,NHS LOGISTICS,1018237002,8.4,
Department of Health,Salisbury NHS Foundation Trust,16-Mar-18,MEDSURGCONS - OTHER,Medicine,NHS LOGISTICS,1018237002,1.95,
Department of Health,Salisbury NHS Foundation Trust,16-Mar-18,MEDSURGCONS - OTHER,Medicine,NHS LOGISTICS,1018237002,4.88,
Department of Health,Salisbury NHS Foundation Trust,16-Mar-18,MEDSURGCONS - OTHER,Medicine,NHS LOGISTICS,1018237002,8.58,
Department of Health,Salisbury NHS Foundation Trust,16-Mar-18,MEDSURGCONS - OTHER,Medicine,NHS LOGISTICS,1018237002,8.58,
Department of Health,Salisbury NHS Foundation Trust,16-Mar-18,MEDSURGCONS - OTHER,Medicine,NHS LOGISTICS,1018237002,80.46,
Department of Health,Salisbury NHS Foundation Trust,16-Mar-18,TUBES,Medicine,NHS LOGISTICS,1018237002,1.4,
Department of Health,Salisbury NHS Foundation Trust,16-Mar-18,HEALTHCARE - WEAR,Medicine,NHS LOGISTICS,1018237002,12.78,
Department of Health,Salisbury NHS Foundation Trust,16-Mar-18,ANAESTHETIC EQUIPMENT ACCESSORIES,Medicine,NHS LOGISTICS,1018237002,11.29,
Department of Health,Salisbury NHS Foundation Trust,16-Mar-18,OTHER MEDICAL SUPPLIES,Medicine,NHS LOGISTICS,1018237002,1.53,
Department of Health,Salisbury NHS Foundation Trust,16-Mar-18,PATIENT APPLIANCES,Medicine,NHS LOGISTICS,1018237002,0.81,
Department of Health,Salisbury NHS Foundation Trust,16-Mar-18,PATIENT APPLIANCES,Medicine,NHS LOGISTICS,1018237002,2.42,
Department of Health,Salisbury NHS Foundation Trust,16-Mar-18,ANAESTHETIC EQUIPMENT ACCESSORIES,Medicine,NHS LOGISTICS,1018237002,1.25,
Department of Health,Salisbury NHS Foundation Trust,16-Mar-18,OTHER MEDICAL SUPPLIES,Medicine,NHS LOGISTICS,1018237002,0.75,
Department of Health,Salisbury NHS Foundation Trust,16-Mar-18,OTHER MEDICAL SUPPLIES,Medicine,NHS LOGISTICS,1018237002,31.58,
Department of Health,Salisbury NHS Foundation Trust,16-Mar-18,DRUGS,Medicine,NHS LOGISTICS,1018237002,2.44,
Department of Health,Salisbury NHS Foundation Trust,16-Mar-18,OTHER MEDICAL SUPPLIES,Corporate - Finance & Procurement,NHS LOGISTICS,1018237002,2.37,
Department of Health,Salisbury NHS Foundation Trust,16-Mar-18,OTHER MEDICAL SUPPLIES,Corporate - Finance & Procurement,NHS LOGISTICS,1018237002,23.77,
Department of Health,Salisbury NHS Foundation Trust,16-Mar-18,M & S EQUIPELECTEQUIPINST - OTHER,Clinical Support,NHS LOGISTICS,1018237002,30.53,
Department of Health,Salisbury NHS Foundation Trust,16-Mar-18,TISSUES HAND TOWELS & TOILET PAPER,Clinical Support,NHS LOGISTICS,1018237002,4.26,
Department of Health,Salisbury NHS Foundation Trust,16-Mar-18,DRESSINGS - PRE STERILE,Clinical Support,NHS LOGISTICS,1018237002,1.88,
Department of Health,Salisbury NHS Foundation Trust,16-Mar-18,MEDSURGCONS - OTHER,Clinical Support,NHS LOGISTICS,1018237002,3.91,
Department of Health,Salisbury NHS Foundation Trust,16-Mar-18,MEDSURGCONS - OTHER,Clinical Support,NHS LOGISTICS,1018237002,3.91,
Department of Health,Salisbury NHS Foundation Trust,16-Mar-18,MEDSURGCONS - OTHER,Clinical Support,NHS LOGISTICS,1018237002,1.95,
Department of Health,Salisbury NHS Foundation Trust,16-Mar-18,NON DISPOSABLE BED LINEN,Clinical Support,NHS LOGISTICS,1018237002,3.55,
Department of Health,Salisbury NHS Foundation Trust,16-Mar-18,NON DISPOSABLE THEATRE DRAPES WIPES,Clinical Support,NHS LOGISTICS,1018237002,8.02,
Department of Health,Salisbury NHS Foundation Trust,16-Mar-18,PATIENT APPLIANCES,Clinical Support,NHS LOGISTICS,1018237002,0.86,
Department of Health,Salisbury NHS Foundation Trust,16-Mar-18,M & S EQUIPELECTEQUIPINST - OTHER,Medicine,NHS LOGISTICS,1018237002,2.7,
Department of Health,Salisbury NHS Foundation Trust,16-Mar-18,DISPOSABLE THEATRE DRAPES WIPES,Medicine,NHS LOGISTICS,1018237002,2.13,
Department of Health,Salisbury NHS Foundation Trust,16-Mar-18,DISPOSABLE THEATRE DRAPES WIPES,Clinical Support,NHS LOGISTICS,1018237002,1.42,
Department of Health,Salisbury NHS Foundation Trust,16-Mar-18,DISPOSABLE THEATRE DRAPES WIPES,Surgery,NHS LOGISTICS,1018237002,17.04,
Department of Health,Salisbury NHS Foundation Trust,16-Mar-18,MEDSURGCONS - OTHER,Surgery,NHS LOGISTICS,1018237002,4.88,
Department of Health,Salisbury NHS Foundation Trust,16-Mar-18,MEDSURGCONS - OTHER,Surgery,NHS LOGISTICS,1018237002,4.88,
Department of Health,Salisbury NHS Foundation Trust,16-Mar-18,D IMAG & RADIO - X RAY FILM PROCESSING CHEMICALS,Surgery,NHS LOGISTICS,1018237002,22.52,
Department of Health,Salisbury NHS Foundation Trust,16-Mar-18,OPTICAL  -  OTHER,Surgery,NHS LOGISTICS,1018237002,10.6,
Department of Health,Salisbury NHS Foundation Trust,16-Mar-18,OPTICAL  -  OTHER,Surgery,NHS LOGISTICS,1018237002,7.42,
Department of Health,Salisbury NHS Foundation Trust,16-Mar-18,OTHER MEDICAL SUPPLIES,Surgery,NHS LOGISTICS,1018237002,21.33,
Department of Health,Salisbury NHS Foundation Trust,16-Mar-18,MEDSURGCONS - OTHER,Medicine,NHS LOGISTICS,1018237002,1.95,
Department of Health,Salisbury NHS Foundation Trust,16-Mar-18,MEDSURGCONS - OTHER,Medicine,NHS LOGISTICS,1018237002,32.65,
Department of Health,Salisbury NHS Foundation Trust,16-Mar-18,MEDSURGCONS - OTHER,Medicine,NHS LOGISTICS,1018237002,11.22,
Department of Health,Salisbury NHS Foundation Trust,16-Mar-18,MEDSURGCONS - OTHER,Medicine,NHS LOGISTICS,1018237002,16.33,
Department of Health,Salisbury NHS Foundation Trust,16-Mar-18,ADULTS HEARING AIDS,Surgery,NHS LOGISTICS,1018237002,14.13,
Department of Health,Salisbury NHS Foundation Trust,16-Mar-18,ADULTS HEARING AIDS,Surgery,NHS LOGISTICS,1018237002,12.94,
Department of Health,Salisbury NHS Foundation Trust,16-Mar-18,ADULTS HEARING AIDS,Surgery,NHS LOGISTICS,1018237002,84.9,
Department of Health,Salisbury NHS Foundation Trust,16-Mar-18,LAB EQUIP-BLOOD GAS MACHINES,Clinical Support,NHS LOGISTICS,1018237002,1517.5,
Department of Health,Salisbury NHS Foundation Trust,16-Mar-18,DENTAL SURGERY SUNDRIES,Musculo-Skeletal,NHS LOGISTICS,1018237002,9.66,
Department of Health,Salisbury NHS Foundation Trust,16-Mar-18,DENTAL SURGERY SUNDRIES,Musculo-Skeletal,NHS LOGISTICS,1018237002,1.62,
Department of Health,Salisbury NHS Foundation Trust,16-Mar-18,MEDSURGCONS - OTHER,Surgery,NHS LOGISTICS,1018237002,4.88,
Department of Health,Salisbury NHS Foundation Trust,16-Mar-18,MEDSURGCONS - OTHER,Surgery,NHS LOGISTICS,1018237002,4.88,
Department of Health,Salisbury NHS Foundation Trust,16-Mar-18,MEDSURGCONS - OTHER,Surgery,NHS LOGISTICS,1018237002,7.81,
Department of Health,Salisbury NHS Foundation Trust,16-Mar-18,M & S EQUIPELECTEQUIPINST - OTHER,Surgery,NHS LOGISTICS,1018237002,4.05,
Department of Health,Salisbury NHS Foundation Trust,16-Mar-18,OTHER MEDICAL SUPPLIES,Surgery,NHS LOGISTICS,1018237002,0.94,
Department of Health,Salisbury NHS Foundation Trust,16-Mar-18,ANAESTHETIC EQUIPMENT ACCESSORIES,Surgery,NHS LOGISTICS,1018237002,0.5,
Department of Health,Salisbury NHS Foundation Trust,16-Mar-18,OTHER MEDICAL SUPPLIES,Surgery,NHS LOGISTICS,1018237002,1.12,
Department of Health,Salisbury NHS Foundation Trust,16-Mar-18,OTHER MEDICAL SUPPLIES,Surgery,NHS LOGISTICS,1018237002,1.51,
Department of Health,Salisbury NHS Foundation Trust,16-Mar-18,HABERDASHERY,Surgery,NHS LOGISTICS,1018237002,0.35,
Department of Health,Salisbury NHS Foundation Trust,16-Mar-18,OTHER MEDICAL SUPPLIES,Surgery,NHS LOGISTICS,1018237002,0.62,
Department of Health,Salisbury NHS Foundation Trust,16-Mar-18,TISSUES HAND TOWELS & TOILET PAPER,Surgery,NHS LOGISTICS,1018237002,0.27,
Department of Health,Salisbury NHS Foundation Trust,16-Mar-18,DISPOSABLE THEATRE DRAPES WIPES,Surgery,NHS LOGISTICS,1018237002,0.71,
Department of Health,Salisbury NHS Foundation Trust,16-Mar-18,ELECTRICAL EQUIPMENT x,Surgery,NHS LOGISTICS,1018237002,0.25,
Department of Health,Salisbury NHS Foundation Trust,16-Mar-18,DRUGS,Surgery,NHS LOGISTICS,1018237002,1.3,
Department of Health,Salisbury NHS Foundation Trust,16-Mar-18,DRESSINGS - PRE STERILE,Surgery,NHS LOGISTICS,1018237002,0.5,
Department of Health,Salisbury NHS Foundation Trust,16-Mar-18,MEDSURGCONS - OTHER,Surgery,NHS LOGISTICS,1018237002,1.95,
Department of Health,Salisbury NHS Foundation Trust,16-Mar-18,MEDSURGCONS - OTHER,Surgery,NHS LOGISTICS,1018237002,7.81,
Department of Health,Salisbury NHS Foundation Trust,16-Mar-18,MEDSURGCONS - OTHER,Surgery,NHS LOGISTICS,1018237002,5.86,
Department of Health,Salisbury NHS Foundation Trust,16-Mar-18,HEALTHCARE - WEAR,Surgery,NHS LOGISTICS,1018237002,104.55,
Department of Health,Salisbury NHS Foundation Trust,16-Mar-18,OTHER MEDICAL SUPPLIES,Surgery,NHS LOGISTICS,1018237002,0.38,
Department of Health,Salisbury NHS Foundation Trust,16-Mar-18,MEDSURGCONS - OTHER,Surgery,NHS LOGISTICS,1018237002,11.96,
Department of Health,Salisbury NHS Foundation Trust,16-Mar-18,MEDSURGCONS - OTHER,Surgery,NHS LOGISTICS,1018237002,1.36,
Department of Health,Salisbury NHS Foundation Trust,16-Mar-18,PATIENT APPLIANCES,Surgery,NHS LOGISTICS,1018237002,1.56,
Department of Health,Salisbury NHS Foundation Trust,16-Mar-18,DISPOSABLE THEATRE DRAPES WIPES,Surgery,NHS LOGISTICS,1018237002,0.26,
Department of Health,Salisbury NHS Foundation Trust,16-Mar-18,MEDSURGCONS - OTHER,Surgery,NHS LOGISTICS,1018237002,1.07,
Department of Health,Salisbury NHS Foundation Trust,16-Mar-18,DISPOSABLE THEATRE DRAPES WIPES,Surgery,NHS LOGISTICS,1018237002,0.45,
Department of Health,Salisbury NHS Foundation Trust,16-Mar-18,DISPOSABLE THEATRE DRAPES WIPES,Surgery,NHS LOGISTICS,1018237002,1.42,
Department of Health,Salisbury NHS Foundation Trust,16-Mar-18,DRESSINGS - PRE STERILE,Medicine,NHS LOGISTICS,1018237002,3.67,
Department of Health,Salisbury NHS Foundation Trust,16-Mar-18,MEDSURGCONS - OTHER,Medicine,NHS LOGISTICS,1018237002,0.98,
Department of Health,Salisbury NHS Foundation Trust,16-Mar-18,MEDSURGCONS - OTHER,Medicine,NHS LOGISTICS,1018237002,0.98,
Department of Health,Salisbury NHS Foundation Trust,16-Mar-18,MEDSURGCONS - OTHER,Medicine,NHS LOGISTICS,1018237002,0.98,
Department of Health,Salisbury NHS Foundation Trust,16-Mar-18,OTHER MEDICAL SUPPLIES,Medicine,NHS LOGISTICS,1018237002,0.38,
Department of Health,Salisbury NHS Foundation Trust,16-Mar-18,DISPOSABLE THEATRE DRAPES WIPES,Medicine,NHS LOGISTICS,1018237002,0.71,
Department of Health,Salisbury NHS Foundation Trust,16-Mar-18,DRESSINGS - PRE STERILE,Medicine,NHS LOGISTICS,1018237002,1.5,
Department of Health,Salisbury NHS Foundation Trust,16-Mar-18,TISSUES HAND TOWELS & TOILET PAPER,Medicine,NHS LOGISTICS,1018237002,0.25,
Department of Health,Salisbury NHS Foundation Trust,16-Mar-18,CLEANING MATERIALS PRODUCTS SUNDRIES,Medicine,NHS LOGISTICS,1018237002,1.11,
Department of Health,Salisbury NHS Foundation Trust,16-Mar-18,DRESSINGS - PRE STERILE,Medicine,NHS LOGISTICS,1018237002,1.99,
Department of Health,Salisbury NHS Foundation Trust,16-Mar-18,MEDSURGCONS - OTHER,Medicine,NHS LOGISTICS,1018237002,1.95,
Department of Health,Salisbury NHS Foundation Trust,16-Mar-18,MEDSURGCONS - OTHER,Medicine,NHS LOGISTICS,1018237002,1.95,
Department of Health,Salisbury NHS Foundation Trust,16-Mar-18,MEDSURGCONS - OTHER,Medicine,NHS LOGISTICS,1018237002,4.88,
Department of Health,Salisbury NHS Foundation Trust,16-Mar-18,HEALTHCARE - WEAR,Medicine,NHS LOGISTICS,1018237002,12.78,
Department of Health,Salisbury NHS Foundation Trust,16-Mar-18,ANAESTHETIC EQUIPMENT ACCESSORIES,Medicine,NHS LOGISTICS,1018237002,0.38,
Department of Health,Salisbury NHS Foundation Trust,16-Mar-18,OTHER MEDICAL SUPPLIES,Medicine,NHS LOGISTICS,1018237002,0.38,
Department of Health,Salisbury NHS Foundation Trust,16-Mar-18,PATIENT APPLIANCES,Medicine,NHS LOGISTICS,1018237002,1.34,
Department of Health,Salisbury NHS Foundation Trust,16-Mar-18,TISSUES HAND TOWELS & TOILET PAPER,Medicine,NHS LOGISTICS,1018237002,0.14,
Department of Health,Salisbury NHS Foundation Trust,16-Mar-18,DISPOSABLE THEATRE DRAPES WIPES,Medicine,NHS LOGISTICS,1018237002,1.54,
Department of Health,Salisbury NHS Foundation Trust,16-Mar-18,DISPOSABLE THEATRE DRAPES WIPES,Medicine,NHS LOGISTICS,1018237002,0.71,
Department of Health,Salisbury NHS Foundation Trust,16-Mar-18,DRESSINGS - PRE STERILE,surgery,NHS LOGISTICS,1018237002,2.8,
Department of Health,Salisbury NHS Foundation Trust,16-Mar-18,DRESSINGS - PRE STERILE,surgery,NHS LOGISTICS,1018237002,0.5,
Department of Health,Salisbury NHS Foundation Trust,16-Mar-18,MEDSURGCONS - OTHER,surgery,NHS LOGISTICS,1018237002,0.98,
Department of Health,Salisbury NHS Foundation Trust,16-Mar-18,MEDSURGCONS - OTHER,surgery,NHS LOGISTICS,1018237002,3.91,
Department of Health,Salisbury NHS Foundation Trust,16-Mar-18,MEDSURGCONS - OTHER,surgery,NHS LOGISTICS,1018237002,1.95,
Department of Health,Salisbury NHS Foundation Trust,16-Mar-18,OTHER MEDICAL SUPPLIES,surgery,NHS LOGISTICS,1018237002,0.19,
Department of Health,Salisbury NHS Foundation Trust,16-Mar-18,OTHER MEDICAL SUPPLIES,surgery,NHS LOGISTICS,1018237002,0.16,
Department of Health,Salisbury NHS Foundation Trust,16-Mar-18,PATIENT APPLIANCES,surgery,NHS LOGISTICS,1018237002,0.67,
Department of Health,Salisbury NHS Foundation Trust,16-Mar-18,PATIENT APPLIANCES,surgery,NHS LOGISTICS,1018237002,0.67,
Department of Health,Salisbury NHS Foundation Trust,16-Mar-18,SERVICES FROM NHS BODIES,surgery,NHS LOGISTICS,1018237002,0.89,
Department of Health,Salisbury NHS Foundation Trust,16-Mar-18,TOILETRIES PERSONAL HYGIENE PRODUCTS,surgery,NHS LOGISTICS,1018237002,0.19,
Department of Health,Salisbury NHS Foundation Trust,16-Mar-18,MEDSURGCONS - OTHER,surgery,NHS LOGISTICS,1018237002,9.16,
Department of Health,Salisbury NHS Foundation Trust,16-Mar-18,DISPOSABLE THEATRE DRAPES WIPES,surgery,NHS LOGISTICS,1018237002,0.66,
Department of Health,Salisbury NHS Foundation Trust,16-Mar-18,MEDPROSTH-SPINAL IMPLANTS,Surgery,NHS LOGISTICS,1018237002,24.08,
Department of Health,Salisbury NHS Foundation Trust,16-Mar-18,DRESSINGS - PRE STERILE,Medicine,NHS LOGISTICS,1018237002,1.5,
Department of Health,Salisbury NHS Foundation Trust,16-Mar-18,M & S EQUIPELECTEQUIPINST - OTHER,Medicine,NHS LOGISTICS,1018237002,1.68,
Department of Health,Salisbury NHS Foundation Trust,16-Mar-18,TOILETRIES PERSONAL HYGIENE PRODUCTS,Medicine,NHS LOGISTICS,1018237002,0.93,
Department of Health,Salisbury NHS Foundation Trust,16-Mar-18,DRESSINGS - PRE STERILE,Medicine,NHS LOGISTICS,1018237002,5.6,
Department of Health,Salisbury NHS Foundation Trust,16-Mar-18,DRESSINGS - PRE STERILE,Medicine,NHS LOGISTICS,1018237002,1,
Department of Health,Salisbury NHS Foundation Trust,16-Mar-18,MEDSURGCONS - OTHER,Medicine,NHS LOGISTICS,1018237002,3.91,
Department of Health,Salisbury NHS Foundation Trust,16-Mar-18,MEDSURGCONS - OTHER,Medicine,NHS LOGISTICS,1018237002,8.58,
Department of Health,Salisbury NHS Foundation Trust,16-Mar-18,MEDSURGCONS - OTHER,Medicine,NHS LOGISTICS,1018237002,8.58,
Department of Health,Salisbury NHS Foundation Trust,16-Mar-18,TUBES,Medicine,NHS LOGISTICS,1018237002,1.37,
Department of Health,Salisbury NHS Foundation Trust,16-Mar-18,HEALTHCARE - WEAR,Medicine,NHS LOGISTICS,1018237002,19.17,
Department of Health,Salisbury NHS Foundation Trust,16-Mar-18,ANAESTHETIC EQUIPMENT ACCESSORIES,Medicine,NHS LOGISTICS,1018237002,1.25,
Department of Health,Salisbury NHS Foundation Trust,16-Mar-18,OTHER MEDICAL SUPPLIES,Medicine,NHS LOGISTICS,1018237002,1.12,
Department of Health,Salisbury NHS Foundation Trust,16-Mar-18,OTHER MEDICAL SUPPLIES,Medicine,NHS LOGISTICS,1018237002,0.75,
Department of Health,Salisbury NHS Foundation Trust,16-Mar-18,PATIENT APPLIANCES,Medicine,NHS LOGISTICS,1018237002,0.67,
Department of Health,Salisbury NHS Foundation Trust,16-Mar-18,SERVICES FROM NHS BODIES,Medicine,NHS LOGISTICS,1018237002,0.89,
Department of Health,Salisbury NHS Foundation Trust,16-Mar-18,MEDSURGCONS - OTHER,Medicine,NHS LOGISTICS,1018237002,11.96,
Department of Health,Salisbury NHS Foundation Trust,16-Mar-18,MEDSURGCONS - OTHER,Medicine,NHS LOGISTICS,1018237002,0.78,
Department of Health,Salisbury NHS Foundation Trust,16-Mar-18,MED SURG EQUIP REP MAINT CLEANING,Medicine,NHS LOGISTICS,1018237002,2.19,
Department of Health,Salisbury NHS Foundation Trust,16-Mar-18,DISPOSABLE THEATRE DRAPES WIPES,Medicine,NHS LOGISTICS,1018237002,2.13,
Department of Health,Salisbury NHS Foundation Trust,16-Mar-18,LAB EQUIP-LABORATORY APPARATUS,Surgery,NHS LOGISTICS,1018237002,1.84,
Department of Health,Salisbury NHS Foundation Trust,16-Mar-18,DISPOSABLE THEATRE DRAPES WIPES,Surgery,NHS LOGISTICS,1018237002,2.4,
Department of Health,Salisbury NHS Foundation Trust,16-Mar-18,OTHER MEDICAL SUPPLIES,Surgery,NHS LOGISTICS,1018237002,2.28,
Department of Health,Salisbury NHS Foundation Trust,16-Mar-18,TISSUES HAND TOWELS & TOILET PAPER,Medicine,NHS LOGISTICS,1018237002,0.99,
Department of Health,Salisbury NHS Foundation Trust,16-Mar-18,NON DISPOSABLE THEATRE DRAPES WIPES,Medicine,NHS LOGISTICS,1018237002,10.56,
Department of Health,Salisbury NHS Foundation Trust,16-Mar-18,MEDSURGCONS - OTHER,Medicine,NHS LOGISTICS,1018237002,4.88,
Department of Health,Salisbury NHS Foundation Trust,16-Mar-18,MEDSURGCONS - OTHER,Medicine,NHS LOGISTICS,1018237002,5.86,
Department of Health,Salisbury NHS Foundation Trust,16-Mar-18,MED SURG EQUIP REP MAINT CLEANING,Medicine,NHS LOGISTICS,1018237002,8.54,
Department of Health,Salisbury NHS Foundation Trust,16-Mar-18,MEDSURGCONS - OTHER,Medicine,NHS LOGISTICS,1018237002,1.18,
Department of Health,Salisbury NHS Foundation Trust,16-Mar-18,MEDSURGCONS - OTHER,Medicine,NHS LOGISTICS,1018237002,1.36,
Department of Health,Salisbury NHS Foundation Trust,16-Mar-18,TISSUES HAND TOWELS & TOILET PAPER,Medicine,NHS LOGISTICS,1018237002,0.27,
Department of Health,Salisbury NHS Foundation Trust,16-Mar-18,DRESSINGS - PRE STERILE,Medicine,NHS LOGISTICS,1018237002,3.01,
Department of Health,Salisbury NHS Foundation Trust,16-Mar-18,MEDSURGCONS - OTHER,Medicine,NHS LOGISTICS,1018237002,5.86,
Department of Health,Salisbury NHS Foundation Trust,16-Mar-18,MEDSURGCONS - OTHER,Medicine,NHS LOGISTICS,1018237002,8.58,
Department of Health,Salisbury NHS Foundation Trust,16-Mar-18,MEDSURGCONS - OTHER,Medicine,NHS LOGISTICS,1018237002,5.86,
Department of Health,Salisbury NHS Foundation Trust,16-Mar-18,TISSUES HAND TOWELS & TOILET PAPER,Medicine,NHS LOGISTICS,1018237002,0.27,
Department of Health,Salisbury NHS Foundation Trust,16-Mar-18,DISPOSABLE THEATRE DRAPES WIPES,Medicine,NHS LOGISTICS,1018237002,0.71,
Department of Health,Salisbury NHS Foundation Trust,16-Mar-18,CLEANING MATERIALS PRODUCTS SUNDRIES,Surgery,NHS LOGISTICS,1018237002,1.13,
Department of Health,Salisbury NHS Foundation Trust,16-Mar-18,DRESSINGS - PRE STERILE,Surgery,NHS LOGISTICS,1018237002,2.8,
Department of Health,Salisbury NHS Foundation Trust,16-Mar-18,MEDSURGCONS - OTHER,Surgery,NHS LOGISTICS,1018237002,3.91,
Department of Health,Salisbury NHS Foundation Trust,16-Mar-18,MEDSURGCONS - OTHER,Surgery,NHS LOGISTICS,1018237002,4.88,
Department of Health,Salisbury NHS Foundation Trust,16-Mar-18,MEDSURGCONS - OTHER,Surgery,NHS LOGISTICS,1018237002,6.84,
Department of Health,Salisbury NHS Foundation Trust,16-Mar-18,OTHER MEDICAL SUPPLIES,Surgery,NHS LOGISTICS,1018237002,1.93,
Department of Health,Salisbury NHS Foundation Trust,16-Mar-18,OTHER MEDICAL SUPPLIES,Surgery,NHS LOGISTICS,1018237002,1.55,
Department of Health,Salisbury NHS Foundation Trust,16-Mar-18,PATIENT APPLIANCES,Surgery,NHS LOGISTICS,1018237002,0.88,
Department of Health,Salisbury NHS Foundation Trust,16-Mar-18,MEDSURGCONS - OTHER,Surgery,NHS LOGISTICS,1018237002,0.78,
Department of Health,Salisbury NHS Foundation Trust,16-Mar-18,TISSUES HAND TOWELS & TOILET PAPER,Surgery,NHS LOGISTICS,1018237002,0.14,
Department of Health,Salisbury NHS Foundation Trust,16-Mar-18,DISPOSABLE THEATRE DRAPES WIPES,Surgery,NHS LOGISTICS,1018237002,0.71,
Department of Health,Salisbury NHS Foundation Trust,16-Mar-18,DRESSINGS - PRE STERILE,Surgery,NHS LOGISTICS,1018237002,1.88,
Department of Health,Salisbury NHS Foundation Trust,16-Mar-18,DRESSINGS - PRE STERILE,Surgery,NHS LOGISTICS,1018237002,1.5,
Department of Health,Salisbury NHS Foundation Trust,16-Mar-18,MEDSURGCONS - OTHER,Surgery,NHS LOGISTICS,1018237002,5.86,
Department of Health,Salisbury NHS Foundation Trust,16-Mar-18,MEDSURGCONS - OTHER,Surgery,NHS LOGISTICS,1018237002,8.79,
Department of Health,Salisbury NHS Foundation Trust,16-Mar-18,MEDSURGCONS - OTHER,Surgery,NHS LOGISTICS,1018237002,6.84,
Department of Health,Salisbury NHS Foundation Trust,16-Mar-18,M & S EQUIPELECTEQUIPINST - OTHER,Surgery,NHS LOGISTICS,1018237002,4.05,
Department of Health,Salisbury NHS Foundation Trust,16-Mar-18,OTHER MEDICAL SUPPLIES,Surgery,NHS LOGISTICS,1018237002,1.55,
Department of Health,Salisbury NHS Foundation Trust,16-Mar-18,MEDSURGCONS - OTHER,Surgery,NHS LOGISTICS,1018237002,0.78,
Department of Health,Salisbury NHS Foundation Trust,16-Mar-18,TISSUES HAND TOWELS & TOILET PAPER,Surgery,NHS LOGISTICS,1018237002,0.14,
Department of Health,Salisbury NHS Foundation Trust,16-Mar-18,PATIENT APPLIANCES,Clinical Support,NHS LOGISTICS,1018237002,0.22,
Department of Health,Salisbury NHS Foundation Trust,16-Mar-18,DRESSINGS - PRE STERILE,Clinical Support,NHS LOGISTICS,1018237002,2.4,
Department of Health,Salisbury NHS Foundation Trust,16-Mar-18,DRESSINGS - PRE STERILE,Clinical Support,NHS LOGISTICS,1018237002,0.2,
Department of Health,Salisbury NHS Foundation Trust,16-Mar-18,MED SURG EQUIP REP MAINT CLEANING,Clinical Support,NHS LOGISTICS,1018237002,0.32,
Department of Health,Salisbury NHS Foundation Trust,16-Mar-18,TUBES,Clinical Support,NHS LOGISTICS,1018237002,1.37,
Department of Health,Salisbury NHS Foundation Trust,16-Mar-18,MEDSURGCONS - OTHER,Clinical Support,NHS LOGISTICS,1018237002,0.31,
Department of Health,Salisbury NHS Foundation Trust,16-Mar-18,MEDSURGCONS - OTHER,Clinical Support,NHS LOGISTICS,1018237002,1.71,
Department of Health,Salisbury NHS Foundation Trust,16-Mar-18,OTHER MEDICAL SUPPLIES,Clinical Support,NHS LOGISTICS,1018237002,1.37,
Department of Health,Salisbury NHS Foundation Trust,16-Mar-18,OTHER MEDICAL SUPPLIES,Clinical Support,NHS LOGISTICS,1018237002,1.13,
Department of Health,Salisbury NHS Foundation Trust,16-Mar-18,DRESSINGS - PRE STERILE,Clinical Support,NHS LOGISTICS,1018237002,10.91,
Department of Health,Salisbury NHS Foundation Trust,16-Mar-18,DRESSINGS - PRE STERILE,Clinical Support,NHS LOGISTICS,1018237002,18,
Department of Health,Salisbury NHS Foundation Trust,16-Mar-18,DRESSINGS - PRE STERILE,Clinical Support,NHS LOGISTICS,1018237002,20.24,
Department of Health,Salisbury NHS Foundation Trust,16-Mar-18,DRESSINGS - PRE STERILE,Clinical Support,NHS LOGISTICS,1018237002,11.98,
Department of Health,Salisbury NHS Foundation Trust,16-Mar-18,MEDSURGCONS - OTHER,Clinical Support,NHS LOGISTICS,1018237002,2.66,
Department of Health,Salisbury NHS Foundation Trust,16-Mar-18,MEDSURGCONS - OTHER,Clinical Support,NHS LOGISTICS,1018237002,0.97,
Department of Health,Salisbury NHS Foundation Trust,16-Mar-18,MEDSURGCONS - OTHER,Clinical Support,NHS LOGISTICS,1018237002,1.18,
Department of Health,Salisbury NHS Foundation Trust,16-Mar-18,MEDSURGCONS - OTHER,Clinical Support,NHS LOGISTICS,1018237002,1.56,
Department of Health,Salisbury NHS Foundation Trust,16-Mar-18,MEDSURGCONS - OTHER,Clinical Support,NHS LOGISTICS,1018237002,2.73,
Department of Health,Salisbury NHS Foundation Trust,16-Mar-18,BABY TEXTURE MODIFIED FOODS,Clinical Support,NHS LOGISTICS,1018237002,3.31,
Department of Health,Salisbury NHS Foundation Trust,16-Mar-18,BABY TEXTURE MODIFIED FOODS,Clinical Support,NHS LOGISTICS,1018237002,3.33,
Department of Health,Salisbury NHS Foundation Trust,16-Mar-18,BAGS SACKS - OTHER,Musculo-Skeletal,NHS LOGISTICS,1018237002,0.41,
Department of Health,Salisbury NHS Foundation Trust,16-Mar-18,DRESSINGS - PRE STERILE,Musculo-Skeletal,NHS LOGISTICS,1018237002,6.01,
Department of Health,Salisbury NHS Foundation Trust,16-Mar-18,DRESSINGS - PRE STERILE,Musculo-Skeletal,NHS LOGISTICS,1018237002,3.6,
Department of Health,Salisbury NHS Foundation Trust,16-Mar-18,TISSUES HAND TOWELS & TOILET PAPER,Musculo-Skeletal,NHS LOGISTICS,1018237002,0.25,
Department of Health,Salisbury NHS Foundation Trust,16-Mar-18,DRESSINGS - PRE STERILE,Musculo-Skeletal,NHS LOGISTICS,1018237002,1.88,
Department of Health,Salisbury NHS Foundation Trust,16-Mar-18,MEDSURGCONS - OTHER,Musculo-Skeletal,NHS LOGISTICS,1018237002,1.95,
Department of Health,Salisbury NHS Foundation Trust,16-Mar-18,MEDSURGCONS - OTHER,Musculo-Skeletal,NHS LOGISTICS,1018237002,8.58,
Department of Health,Salisbury NHS Foundation Trust,16-Mar-18,HEALTHCARE - WEAR,Musculo-Skeletal,NHS LOGISTICS,1018237002,6.39,
Department of Health,Salisbury NHS Foundation Trust,16-Mar-18,MEDSURGCONS - OTHER,Musculo-Skeletal,NHS LOGISTICS,1018237002,11.96,
Department of Health,Salisbury NHS Foundation Trust,16-Mar-18,DRESSINGS - PRE STERILE,Surgery,NHS LOGISTICS,1018237002,5.6,
Department of Health,Salisbury NHS Foundation Trust,16-Mar-18,MEDSURGCONS - OTHER,Surgery,NHS LOGISTICS,1018237002,20.36,
Department of Health,Salisbury NHS Foundation Trust,16-Mar-18,OTHER MEDICAL SUPPLIES,Surgery,NHS LOGISTICS,1018237002,9.44,
Department of Health,Salisbury NHS Foundation Trust,16-Mar-18,OTHER MEDICAL SUPPLIES,Surgery,NHS LOGISTICS,1018237002,3.77,
Department of Health,Salisbury NHS Foundation Trust,16-Mar-18,BAGS SACKS - OTHER,Surgery,NHS LOGISTICS,1018237002,2.44,
Department of Health,Salisbury NHS Foundation Trust,16-Mar-18,COOKING & KITCHEN UTENSILS,Surgery,NHS LOGISTICS,1018237002,4.08,
Department of Health,Salisbury NHS Foundation Trust,16-Mar-18,DISPOSABLE THEATRE DRAPES WIPES,Surgery,NHS LOGISTICS,1018237002,7.08,
Department of Health,Salisbury NHS Foundation Trust,16-Mar-18,MEDSURGCONS - OTHER,Surgery,NHS LOGISTICS,1018237002,5.86,
Department of Health,Salisbury NHS Foundation Trust,16-Mar-18,MEDSURGCONS - OTHER,Surgery,NHS LOGISTICS,1018237002,8.58,
Department of Health,Salisbury NHS Foundation Trust,16-Mar-18,MEDSURGCONS - OTHER,Surgery,NHS LOGISTICS,1018237002,5.86,
Department of Health,Salisbury NHS Foundation Trust,16-Mar-18,SURGICAL INSTRUMENTS: GENERAL,Surgery,NHS LOGISTICS,1018237002,5.83,
Department of Health,Salisbury NHS Foundation Trust,16-Mar-18,DRESSINGS - PRE STERILE,Surgery,NHS LOGISTICS,1018237002,38.97,
Department of Health,Salisbury NHS Foundation Trust,16-Mar-18,DRESSINGS - PRE STERILE,Surgery,NHS LOGISTICS,1018237002,117.77,
Department of Health,Salisbury NHS Foundation Trust,16-Mar-18,DRUGS,Surgery,NHS LOGISTICS,1018237002,10.98,
Department of Health,Salisbury NHS Foundation Trust,16-Mar-18,SERVICES FROM NHS BODIES,Surgery,NHS LOGISTICS,1018237002,0.89,
Department of Health,Salisbury NHS Foundation Trust,16-Mar-18,SURGICAL INSTRUMENTS: GENERAL,Surgery,NHS LOGISTICS,1018237002,25.11,
Department of Health,Salisbury NHS Foundation Trust,16-Mar-18,PATIENT APPLIANCES,Surgery,NHS LOGISTICS,1018237002,0.86,
Department of Health,Salisbury NHS Foundation Trust,16-Mar-18,MEDSURGCONS-LAPAROSCOPIC EQUIPMENT,Surgery,NHS LOGISTICS,1018237002,107.22,
Department of Health,Salisbury NHS Foundation Trust,16-Mar-18,ELECTRICAL EQUIPMENT x,Facilities,NHS LOGISTICS,1018237002,11.6,
Department of Health,Salisbury NHS Foundation Trust,16-Mar-18,LIQUID REFRESHMENTS,Facilities,NHS LOGISTICS,1018237002,2.65,
Department of Health,Salisbury NHS Foundation Trust,16-Mar-18,LIQUID REFRESHMENTS,Facilities,NHS LOGISTICS,1018237002,2.65,
Department of Health,Salisbury NHS Foundation Trust,16-Mar-18,LIQUID REFRESHMENTS,Facilities,NHS LOGISTICS,1018237002,3.47,
Department of Health,Salisbury NHS Foundation Trust,16-Mar-18,LIQUID REFRESHMENTS,Facilities,NHS LOGISTICS,1018237002,3.67,
Department of Health,Salisbury NHS Foundation Trust,16-Mar-18,BAGS SACKS - OTHER,Facilities,NHS LOGISTICS,1018237002,1.44,
Department of Health,Salisbury NHS Foundation Trust,16-Mar-18,LIQUID REFRESHMENTS,Facilities,NHS LOGISTICS,1018237002,1.86,
Department of Health,Salisbury NHS Foundation Trust,16-Mar-18,COOKING & KITCHEN UTENSILS,Facilities,NHS LOGISTICS,1018237002,5,
Department of Health,Salisbury NHS Foundation Trust,16-Mar-18,LIQUID REFRESHMENTS,Facilities,NHS LOGISTICS,1018237002,0.78,
Department of Health,Salisbury NHS Foundation Trust,16-Mar-18,BAGS SACKS - OTHER,Facilities,NHS LOGISTICS,1018237002,2.03,
Department of Health,Salisbury NHS Foundation Trust,16-Mar-18,LIQUID REFRESHMENTS,Facilities,NHS LOGISTICS,1018237002,2,
Department of Health,Salisbury NHS Foundation Trust,16-Mar-18,BEVERAGES & AMBIENT FOOD,Facilities,NHS LOGISTICS,1018237002,17.58,
Department of Health,Salisbury NHS Foundation Trust,16-Mar-18,MEDSURGCONS - OTHER,Facilities,NHS LOGISTICS,1018237002,8.58,
Department of Health,Salisbury NHS Foundation Trust,16-Mar-18,BEVERAGES & AMBIENT FOOD,Facilities,NHS LOGISTICS,1018237002,6.47,
Department of Health,Salisbury NHS Foundation Trust,16-Mar-18,LIQUID REFRESHMENTS,Facilities,NHS LOGISTICS,1018237002,0.51,
Department of Health,Salisbury NHS Foundation Trust,16-Mar-18,LIQUID REFRESHMENTS,Facilities,NHS LOGISTICS,1018237002,1.49,
Department of Health,Salisbury NHS Foundation Trust,16-Mar-18,BEVERAGES & AMBIENT FOOD,Facilities,NHS LOGISTICS,1018237002,16.56,
Department of Health,Salisbury NHS Foundation Trust,16-Mar-18,LIQUID REFRESHMENTS,Facilities,NHS LOGISTICS,1018237002,24.48,
Department of Health,Salisbury NHS Foundation Trust,16-Mar-18,FLAVOURINGS HERBS SPICES,Facilities,NHS LOGISTICS,1018237002,5.01,
Department of Health,Salisbury NHS Foundation Trust,16-Mar-18,LIQUID REFRESHMENTS,Facilities,NHS LOGISTICS,1018237002,0.51,
Department of Health,Salisbury NHS Foundation Trust,16-Mar-18,BEVERAGES & AMBIENT FOOD,Facilities,NHS LOGISTICS,1018237002,1.78,
Department of Health,Salisbury NHS Foundation Trust,16-Mar-18,BEVERAGES & AMBIENT FOOD,Facilities,NHS LOGISTICS,1018237002,8.05,
Department of Health,Salisbury NHS Foundation Trust,16-Mar-18,LIQUID REFRESHMENTS,Facilities,NHS LOGISTICS,1018237002,1.98,
Department of Health,Salisbury NHS Foundation Trust,16-Mar-18,LIQUID REFRESHMENTS,Facilities,NHS LOGISTICS,1018237002,1.86,
Department of Health,Salisbury NHS Foundation Trust,16-Mar-18,COOKING & KITCHEN UTENSILS,Facilities,NHS LOGISTICS,1018237002,2.53,
Department of Health,Salisbury NHS Foundation Trust,16-Mar-18,BEVERAGES & AMBIENT FOOD,Facilities,NHS LOGISTICS,1018237002,1.12,
Department of Health,Salisbury NHS Foundation Trust,16-Mar-18,LIQUID REFRESHMENTS,Facilities,NHS LOGISTICS,1018237002,1.16,
Department of Health,Salisbury NHS Foundation Trust,16-Mar-18,M & S EQUIPELECTEQUIPINST - OTHER,Clinical Support,NHS LOGISTICS,1018237002,61.05,
Department of Health,Salisbury NHS Foundation Trust,16-Mar-18,TISSUES HAND TOWELS & TOILET PAPER,Clinical Support,NHS LOGISTICS,1018237002,6.39,
Department of Health,Salisbury NHS Foundation Trust,16-Mar-18,DRESSINGS - PRE STERILE,Clinical Support,NHS LOGISTICS,1018237002,0.5,
Department of Health,Salisbury NHS Foundation Trust,16-Mar-18,DRESSINGS - PRE STERILE,Clinical Support,NHS LOGISTICS,1018237002,1.15,
Department of Health,Salisbury NHS Foundation Trust,16-Mar-18,MEDSURGCONS - OTHER,Clinical Support,NHS LOGISTICS,1018237002,1.95,
Department of Health,Salisbury NHS Foundation Trust,16-Mar-18,MEDSURGCONS - OTHER,Clinical Support,NHS LOGISTICS,1018237002,0.98,
Department of Health,Salisbury NHS Foundation Trust,16-Mar-18,MEDSURGCONS - OTHER,Clinical Support,NHS LOGISTICS,1018237002,0.98,
Department of Health,Salisbury NHS Foundation Trust,16-Mar-18,TUBES,Clinical Support,NHS LOGISTICS,1018237002,1.37,
Department of Health,Salisbury NHS Foundation Trust,16-Mar-18,OTHER MEDICAL SUPPLIES,Clinical Support,NHS LOGISTICS,1018237002,1.37,
Department of Health,Salisbury NHS Foundation Trust,16-Mar-18,MEDSURGCONS - OTHER,Clinical Support,NHS LOGISTICS,1018237002,1.94,
Department of Health,Salisbury NHS Foundation Trust,16-Mar-18,DRESSINGS - PRE STERILE,Clinical Support,NHS LOGISTICS,1018237002,0.67,
Department of Health,Salisbury NHS Foundation Trust,16-Mar-18,NON DISPOSABLE BED LINEN,Clinical Support,NHS LOGISTICS,1018237002,1.18,
Department of Health,Salisbury NHS Foundation Trust,16-Mar-18,M & S EQUIPELECTEQUIPINST - OTHER,Medicine,NHS LOGISTICS,1018237002,1.68,
Department of Health,Salisbury NHS Foundation Trust,16-Mar-18,DRESSINGS - PRE STERILE,Medicine,NHS LOGISTICS,1018237002,6.42,
Department of Health,Salisbury NHS Foundation Trust,16-Mar-18,DRESSINGS - PRE STERILE,Medicine,NHS LOGISTICS,1018237002,1.15,
Department of Health,Salisbury NHS Foundation Trust,16-Mar-18,MEDSURGCONS - OTHER,Medicine,NHS LOGISTICS,1018237002,1.95,
Department of Health,Salisbury NHS Foundation Trust,16-Mar-18,MEDSURGCONS - OTHER,Medicine,NHS LOGISTICS,1018237002,3.91,
Department of Health,Salisbury NHS Foundation Trust,16-Mar-18,MEDSURGCONS - OTHER,Medicine,NHS LOGISTICS,1018237002,3.91,
Department of Health,Salisbury NHS Foundation Trust,16-Mar-18,TISSUES HAND TOWELS & TOILET PAPER,Medicine,NHS LOGISTICS,1018237002,0.39,
Department of Health,Salisbury NHS Foundation Trust,16-Mar-18,TUBES,Medicine,NHS LOGISTICS,1018237002,1.37,
Department of Health,Salisbury NHS Foundation Trust,16-Mar-18,HEALTHCARE - WEAR,Medicine,NHS LOGISTICS,1018237002,2.25,
Department of Health,Salisbury NHS Foundation Trust,16-Mar-18,ANAESTHETIC EQUIPMENT ACCESSORIES,Medicine,NHS LOGISTICS,1018237002,0.38,
Department of Health,Salisbury NHS Foundation Trust,16-Mar-18,MEDSURGCONS - OTHER,Medicine,NHS LOGISTICS,1018237002,0.78,
Department of Health,Salisbury NHS Foundation Trust,16-Mar-18,DISPOSABLE THEATRE DRAPES WIPES,Medicine,NHS LOGISTICS,1018237002,1.05,
Department of Health,Salisbury NHS Foundation Trust,16-Mar-18,DISPOSABLE THEATRE DRAPES WIPES,Medicine,NHS LOGISTICS,1018237002,0.71,
Department of Health,Salisbury NHS Foundation Trust,16-Mar-18,TOILETRIES PERSONAL HYGIENE PRODUCTS,Surgery,NHS LOGISTICS,1018237002,0.62,
Department of Health,Salisbury NHS Foundation Trust,16-Mar-18,TISSUES HAND TOWELS & TOILET PAPER,Surgery,NHS LOGISTICS,1018237002,0.25,
Department of Health,Salisbury NHS Foundation Trust,16-Mar-18,TISSUES HAND TOWELS & TOILET PAPER,Surgery,NHS LOGISTICS,1018237002,0.99,
Department of Health,Salisbury NHS Foundation Trust,16-Mar-18,MEDSURGCONS - OTHER,Surgery,NHS LOGISTICS,1018237002,1.95,
Department of Health,Salisbury NHS Foundation Trust,16-Mar-18,M & S EQUIPELECTEQUIPINST - OTHER,Clinical Support,NHS LOGISTICS,1018237002,45.36,
Department of Health,Salisbury NHS Foundation Trust,16-Mar-18,TISSUES HAND TOWELS & TOILET PAPER,Clinical Support,NHS LOGISTICS,1018237002,0.5,
Department of Health,Salisbury NHS Foundation Trust,16-Mar-18,M & S EQUIPELECTEQUIPINST - OTHER,Clinical Support,NHS LOGISTICS,1018237002,20.62,
Department of Health,Salisbury NHS Foundation Trust,16-Mar-18,MED SURG EQUIP REP MAINT CLEANING,Clinical Support,NHS LOGISTICS,1018237002,43.71,
Department of Health,Salisbury NHS Foundation Trust,16-Mar-18,MEDSURGCONS - OTHER,Clinical Support,NHS LOGISTICS,1018237002,1.95,
Department of Health,Salisbury NHS Foundation Trust,16-Mar-18,MEDSURGCONS - OTHER,Clinical Support,NHS LOGISTICS,1018237002,2.93,
Department of Health,Salisbury NHS Foundation Trust,16-Mar-18,MEDSURGCONS - OTHER,Clinical Support,NHS LOGISTICS,1018237002,4.88,
Department of Health,Salisbury NHS Foundation Trust,16-Mar-18,TISSUES HAND TOWELS & TOILET PAPER,Clinical Support,NHS LOGISTICS,1018237002,0.31,
Department of Health,Salisbury NHS Foundation Trust,16-Mar-18,OTHER MEDICAL SUPPLIES,Clinical Support,NHS LOGISTICS,1018237002,0.38,
Department of Health,Salisbury NHS Foundation Trust,16-Mar-18,OTHER MEDICAL SUPPLIES,Clinical Support,NHS LOGISTICS,1018237002,29.99,
Department of Health,Salisbury NHS Foundation Trust,16-Mar-18,OTHER MEDICAL SUPPLIES,Clinical Support,NHS LOGISTICS,1018237002,3.01,
Department of Health,Salisbury NHS Foundation Trust,16-Mar-18,OTHER MEDICAL SUPPLIES,Clinical Support,NHS LOGISTICS,1018237002,4.11,
Department of Health,Salisbury NHS Foundation Trust,16-Mar-18,TISSUES HAND TOWELS & TOILET PAPER,Musculo-Skeletal,NHS LOGISTICS,1018237002,0.5,
Department of Health,Salisbury NHS Foundation Trust,16-Mar-18,DRESSINGS - PRE STERILE,Musculo-Skeletal,NHS LOGISTICS,1018237002,2.8,
Department of Health,Salisbury NHS Foundation Trust,16-Mar-18,TISSUES HAND TOWELS & TOILET PAPER,Musculo-Skeletal,NHS LOGISTICS,1018237002,0.16,
Department of Health,Salisbury NHS Foundation Trust,16-Mar-18,OTHER MEDICAL SUPPLIES,Musculo-Skeletal,NHS LOGISTICS,1018237002,0.75,
Department of Health,Salisbury NHS Foundation Trust,16-Mar-18,DISPOSABLE THEATRE DRAPES WIPES,Musculo-Skeletal,NHS LOGISTICS,1018237002,0.71,
Department of Health,Salisbury NHS Foundation Trust,16-Mar-18,MEDSURGCONS - OTHER,Clinical Support,NHS LOGISTICS,1018237002,1.95,
Department of Health,Salisbury NHS Foundation Trust,16-Mar-18,MEDSURGCONS - OTHER,Clinical Support,NHS LOGISTICS,1018237002,4.88,
Department of Health,Salisbury NHS Foundation Trust,16-Mar-18,MEDSURGCONS - OTHER,Clinical Support,NHS LOGISTICS,1018237002,5.86,
Department of Health,Salisbury NHS Foundation Trust,16-Mar-18,MEDSURGCONS - OTHER,Clinical Support,NHS LOGISTICS,1018237002,0.77,
Department of Health,Salisbury NHS Foundation Trust,16-Mar-18,OTHER MEDICAL SUPPLIES,Clinical Support,NHS LOGISTICS,1018237002,0.38,
Department of Health,Salisbury NHS Foundation Trust,16-Mar-18,OTHER MEDICAL SUPPLIES,Clinical Support,NHS LOGISTICS,1018237002,4.65,
Department of Health,Salisbury NHS Foundation Trust,16-Mar-18,ELECTRICAL EQUIPMENT x,Medicine,NHS LOGISTICS,1018237002,1.55,
Department of Health,Salisbury NHS Foundation Trust,16-Mar-18,TISSUES HAND TOWELS & TOILET PAPER,Medicine,NHS LOGISTICS,1018237002,2.13,
Department of Health,Salisbury NHS Foundation Trust,16-Mar-18,MEDSURGCONS - OTHER,Medicine,NHS LOGISTICS,1018237002,1.95,
Department of Health,Salisbury NHS Foundation Trust,16-Mar-18,DISPOSABLE THEATRE DRAPES WIPES,Medicine,NHS LOGISTICS,1018237002,1.42,
Department of Health,Salisbury NHS Foundation Trust,16-Mar-18,DRESSINGS - PRE STERILE,Surgery,NHS LOGISTICS,1018237002,5.6,
Department of Health,Salisbury NHS Foundation Trust,16-Mar-18,OPTICAL  -  OTHER,Surgery,NHS LOGISTICS,1018237002,10.39,
Department of Health,Salisbury NHS Foundation Trust,16-Mar-18,MEDSURGCONS - OTHER,Medicine,NHS LOGISTICS,1018237002,15.26,
Department of Health,Salisbury NHS Foundation Trust,16-Mar-18,M & S EQUIPELECTEQUIPINST - OTHER,Musculo-Skeletal,NHS LOGISTICS,1018237002,3.36,
Department of Health,Salisbury NHS Foundation Trust,16-Mar-18,TOILETRIES PERSONAL HYGIENE PRODUCTS,Musculo-Skeletal,NHS LOGISTICS,1018237002,1.23,
Department of Health,Salisbury NHS Foundation Trust,16-Mar-18,TISSUES HAND TOWELS & TOILET PAPER,Musculo-Skeletal,NHS LOGISTICS,1018237002,0.74,
Department of Health,Salisbury NHS Foundation Trust,16-Mar-18,DRESSINGS - PRE STERILE,Musculo-Skeletal,NHS LOGISTICS,1018237002,3.39,
Department of Health,Salisbury NHS Foundation Trust,16-Mar-18,DRESSINGS - PRE STERILE,Musculo-Skeletal,NHS LOGISTICS,1018237002,1.5,
Department of Health,Salisbury NHS Foundation Trust,16-Mar-18,DRESSINGS - PRE STERILE,Musculo-Skeletal,NHS LOGISTICS,1018237002,2.58,
Department of Health,Salisbury NHS Foundation Trust,16-Mar-18,MEDSURGCONS - OTHER,Musculo-Skeletal,NHS LOGISTICS,1018237002,4.88,
Department of Health,Salisbury NHS Foundation Trust,16-Mar-18,MEDSURGCONS - OTHER,Musculo-Skeletal,NHS LOGISTICS,1018237002,4.88,
Department of Health,Salisbury NHS Foundation Trust,16-Mar-18,MEDSURGCONS - OTHER,Musculo-Skeletal,NHS LOGISTICS,1018237002,4.88,
Department of Health,Salisbury NHS Foundation Trust,16-Mar-18,ANAESTHETIC EQUIPMENT ACCESSORIES,Musculo-Skeletal,NHS LOGISTICS,1018237002,0.26,
Department of Health,Salisbury NHS Foundation Trust,16-Mar-18,HEALTHCARE - WEAR,Musculo-Skeletal,NHS LOGISTICS,1018237002,2.25,
Department of Health,Salisbury NHS Foundation Trust,16-Mar-18,HEALTHCARE - WEAR,Musculo-Skeletal,NHS LOGISTICS,1018237002,25.56,
Department of Health,Salisbury NHS Foundation Trust,16-Mar-18,OTHER MEDICAL SUPPLIES,Musculo-Skeletal,NHS LOGISTICS,1018237002,0.19,
Department of Health,Salisbury NHS Foundation Trust,16-Mar-18,OTHER MEDICAL SUPPLIES,Musculo-Skeletal,NHS LOGISTICS,1018237002,0.59,
Department of Health,Salisbury NHS Foundation Trust,16-Mar-18,OTHER MEDICAL SUPPLIES,Musculo-Skeletal,NHS LOGISTICS,1018237002,1.55,
Department of Health,Salisbury NHS Foundation Trust,16-Mar-18,OTHER MEDICAL SUPPLIES,Musculo-Skeletal,NHS LOGISTICS,1018237002,4.02,
Department of Health,Salisbury NHS Foundation Trust,16-Mar-18,PATIENT APPLIANCES,Musculo-Skeletal,NHS LOGISTICS,1018237002,0.88,
Department of Health,Salisbury NHS Foundation Trust,16-Mar-18,TOILETRIES PERSONAL HYGIENE PRODUCTS,Musculo-Skeletal,NHS LOGISTICS,1018237002,1.65,
Department of Health,Salisbury NHS Foundation Trust,16-Mar-18,M & S EQUIPELECTEQUIPINST - OTHER,Musculo-Skeletal,NHS LOGISTICS,1018237002,0.32,
Department of Health,Salisbury NHS Foundation Trust,16-Mar-18,DISPOSABLE THEATRE DRAPES WIPES,Musculo-Skeletal,NHS LOGISTICS,1018237002,6.16,
Department of Health,Salisbury NHS Foundation Trust,16-Mar-18,DISPOSABLE THEATRE DRAPES WIPES,Musculo-Skeletal,NHS LOGISTICS,1018237002,1.42,
Department of Health,Salisbury NHS Foundation Trust,16-Mar-18,PATIENTS BABY WEAR,Medicine,NHS LOGISTICS,1018237002,6.43,
Department of Health,Salisbury NHS Foundation Trust,16-Mar-18,PATIENTS BABY WEAR,Medicine,NHS LOGISTICS,1018237002,5.96,
Department of Health,Salisbury NHS Foundation Trust,16-Mar-18,CLEANING MATERIALS PRODUCTS SUNDRIES,Medicine,NHS LOGISTICS,1018237002,1.13,
Department of Health,Salisbury NHS Foundation Trust,16-Mar-18,CLEANING MATERIALS PRODUCTS SUNDRIES,Medicine,NHS LOGISTICS,1018237002,1.11,
Department of Health,Salisbury NHS Foundation Trust,16-Mar-18,DRESSINGS - PRE STERILE,Medicine,NHS LOGISTICS,1018237002,2.8,
Department of Health,Salisbury NHS Foundation Trust,16-Mar-18,MEDSURGCONS - OTHER,Medicine,NHS LOGISTICS,1018237002,0.98,
Department of Health,Salisbury NHS Foundation Trust,16-Mar-18,MEDSURGCONS - OTHER,Medicine,NHS LOGISTICS,1018237002,8.58,
Department of Health,Salisbury NHS Foundation Trust,16-Mar-18,MEDSURGCONS - OTHER,Medicine,NHS LOGISTICS,1018237002,12.49,
Department of Health,Salisbury NHS Foundation Trust,16-Mar-18,MEDSURGCONS - OTHER,Medicine,NHS LOGISTICS,1018237002,10.53,
Department of Health,Salisbury NHS Foundation Trust,16-Mar-18,HEALTHCARE - WEAR,Medicine,NHS LOGISTICS,1018237002,25.56,
Department of Health,Salisbury NHS Foundation Trust,16-Mar-18,ANAESTHETIC EQUIPMENT ACCESSORIES,Medicine,NHS LOGISTICS,1018237002,0.25,
Department of Health,Salisbury NHS Foundation Trust,16-Mar-18,OTHER MEDICAL SUPPLIES,Medicine,NHS LOGISTICS,1018237002,0.75,
Department of Health,Salisbury NHS Foundation Trust,16-Mar-18,OTHER MEDICAL SUPPLIES,Medicine,NHS LOGISTICS,1018237002,1.24,
Department of Health,Salisbury NHS Foundation Trust,16-Mar-18,PATIENT APPLIANCES,Medicine,NHS LOGISTICS,1018237002,0.67,
Department of Health,Salisbury NHS Foundation Trust,16-Mar-18,TISSUES HAND TOWELS & TOILET PAPER,Surgery,NHS LOGISTICS,1018237002,3.12,
Department of Health,Salisbury NHS Foundation Trust,16-Mar-18,DRESSINGS - PRE STERILE,Surgery,NHS LOGISTICS,1018237002,1.55,
Department of Health,Salisbury NHS Foundation Trust,16-Mar-18,BAGS SACKS - OTHER,Musculo-Skeletal,NHS LOGISTICS,1018237002,0.6,
Department of Health,Salisbury NHS Foundation Trust,16-Mar-18,DRESSINGS - PRE STERILE,Musculo-Skeletal,NHS LOGISTICS,1018237002,0.48,
Department of Health,Salisbury NHS Foundation Trust,16-Mar-18,MEDSURGCONS - OTHER,Musculo-Skeletal,NHS LOGISTICS,1018237002,0.98,
Department of Health,Salisbury NHS Foundation Trust,16-Mar-18,MEDSURGCONS - OTHER,Musculo-Skeletal,NHS LOGISTICS,1018237002,1.95,
Department of Health,Salisbury NHS Foundation Trust,16-Mar-18,MEDSURGCONS - OTHER,Musculo-Skeletal,NHS LOGISTICS,1018237002,1.95,
Department of Health,Salisbury NHS Foundation Trust,16-Mar-18,MEDSURGCONS - OTHER,Musculo-Skeletal,NHS LOGISTICS,1018237002,0.98,
Department of Health,Salisbury NHS Foundation Trust,16-Mar-18,TUBES,Musculo-Skeletal,NHS LOGISTICS,1018237002,2.74,
Department of Health,Salisbury NHS Foundation Trust,16-Mar-18,DRESSINGS - PRE STERILE,Medicine,NHS LOGISTICS,1018237002,1.4,
Department of Health,Salisbury NHS Foundation Trust,16-Mar-18,BAGS SACKS - OTHER,Medicine,NHS LOGISTICS,1018237002,2.86,
Department of Health,Salisbury NHS Foundation Trust,16-Mar-18,MEDSURGCONS - OTHER,Medicine,NHS LOGISTICS,1018237002,17.42,
Department of Health,Salisbury NHS Foundation Trust,16-Mar-18,PATIENT APPLIANCES,Medicine,NHS LOGISTICS,1018237002,15.78,
Department of Health,Salisbury NHS Foundation Trust,16-Mar-18,PATIENT APPLIANCES,Medicine,NHS LOGISTICS,1018237002,1.07,
Department of Health,Salisbury NHS Foundation Trust,16-Mar-18,DRESSINGS - PRE STERILE,Medicine,NHS LOGISTICS,1018237002,2.8,
Department of Health,Salisbury NHS Foundation Trust,16-Mar-18,MEDSURGCONS - OTHER,Medicine,NHS LOGISTICS,1018237002,1.95,
Department of Health,Salisbury NHS Foundation Trust,16-Mar-18,MEDSURGCONS - OTHER,Medicine,NHS LOGISTICS,1018237002,8.58,
Department of Health,Salisbury NHS Foundation Trust,16-Mar-18,MEDSURGCONS - OTHER,Medicine,NHS LOGISTICS,1018237002,17.17,
Department of Health,Salisbury NHS Foundation Trust,16-Mar-18,MEDSURGCONS - OTHER,Medicine,NHS LOGISTICS,1018237002,8.58,
Department of Health,Salisbury NHS Foundation Trust,16-Mar-18,TUBES,Medicine,NHS LOGISTICS,1018237002,1.37,
Department of Health,Salisbury NHS Foundation Trust,16-Mar-18,HEALTHCARE - WEAR,Medicine,NHS LOGISTICS,1018237002,12.78,
Department of Health,Salisbury NHS Foundation Trust,16-Mar-18,M & S EQUIPELECTEQUIPINST - OTHER,Medicine,NHS LOGISTICS,1018237002,2.7,
Department of Health,Salisbury NHS Foundation Trust,16-Mar-18,PATIENT APPLIANCES,Medicine,NHS LOGISTICS,1018237002,1.61,
Department of Health,Salisbury NHS Foundation Trust,16-Mar-18,PATIENT APPLIANCES,Medicine,NHS LOGISTICS,1018237002,1.61,
Department of Health,Salisbury NHS Foundation Trust,16-Mar-18,PATIENT APPLIANCES,Medicine,NHS LOGISTICS,1018237002,4.83,
Department of Health,Salisbury NHS Foundation Trust,16-Mar-18,PATIENT APPLIANCES,Medicine,NHS LOGISTICS,1018237002,4.83,
Department of Health,Salisbury NHS Foundation Trust,16-Mar-18,PATIENT APPLIANCES,Medicine,NHS LOGISTICS,1018237002,0.81,
Department of Health,Salisbury NHS Foundation Trust,16-Mar-18,ANAESTHETIC EQUIPMENT ACCESSORIES,Medicine,NHS LOGISTICS,1018237002,1.25,
Department of Health,Salisbury NHS Foundation Trust,16-Mar-18,OTHER MEDICAL SUPPLIES,Medicine,NHS LOGISTICS,1018237002,0.75,
Department of Health,Salisbury NHS Foundation Trust,16-Mar-18,DRUGS,Medicine,NHS LOGISTICS,1018237002,2.44,
Department of Health,Salisbury NHS Foundation Trust,16-Mar-18,MEDSURGCONS - OTHER,Medicine,NHS LOGISTICS,1018237002,11.96,
Department of Health,Salisbury NHS Foundation Trust,16-Mar-18,MEDSURGCONS - OTHER,Medicine,NHS LOGISTICS,1018237002,0.78,
Department of Health,Salisbury NHS Foundation Trust,16-Mar-18,TISSUES HAND TOWELS & TOILET PAPER,Musculo-Skeletal,NHS LOGISTICS,1018237002,0.5,
Department of Health,Salisbury NHS Foundation Trust,16-Mar-18,DRESSINGS - PRE STERILE,Musculo-Skeletal,NHS LOGISTICS,1018237002,1.88,
Department of Health,Salisbury NHS Foundation Trust,16-Mar-18,MEDSURGCONS - OTHER,Musculo-Skeletal,NHS LOGISTICS,1018237002,0.98,
Department of Health,Salisbury NHS Foundation Trust,16-Mar-18,DRESSINGS - PRE STERILE,Musculo-Skeletal,NHS LOGISTICS,1018237002,9.52,
Department of Health,Salisbury NHS Foundation Trust,16-Mar-18,DRESSINGS - PRE STERILE,Musculo-Skeletal,NHS LOGISTICS,1018237002,4.38,
Department of Health,Salisbury NHS Foundation Trust,16-Mar-18,DRESSINGS - PRE STERILE,Musculo-Skeletal,NHS LOGISTICS,1018237002,4.66,
Department of Health,Salisbury NHS Foundation Trust,16-Mar-18,DRESSINGS - PRE STERILE,Musculo-Skeletal,NHS LOGISTICS,1018237002,5.01,
Department of Health,Salisbury NHS Foundation Trust,16-Mar-18,DRESSINGS - PRE STERILE,Musculo-Skeletal,NHS LOGISTICS,1018237002,5.01,
Department of Health,Salisbury NHS Foundation Trust,16-Mar-18,DRESSINGS - PRE STERILE,Musculo-Skeletal,NHS LOGISTICS,1018237002,0.5,
Department of Health,Salisbury NHS Foundation Trust,16-Mar-18,DRESSINGS - PRE STERILE,Musculo-Skeletal,NHS LOGISTICS,1018237002,0.5,
Department of Health,Salisbury NHS Foundation Trust,16-Mar-18,MEDSURGCONS - OTHER,Musculo-Skeletal,NHS LOGISTICS,1018237002,1.95,
Department of Health,Salisbury NHS Foundation Trust,16-Mar-18,MEDSURGCONS - OTHER,Musculo-Skeletal,NHS LOGISTICS,1018237002,1.95,
Department of Health,Salisbury NHS Foundation Trust,16-Mar-18,MEDSURGCONS - OTHER,Musculo-Skeletal,NHS LOGISTICS,1018237002,1.95,
Department of Health,Salisbury NHS Foundation Trust,16-Mar-18,TISSUES HAND TOWELS & TOILET PAPER,Musculo-Skeletal,NHS LOGISTICS,1018237002,0.16,
Department of Health,Salisbury NHS Foundation Trust,16-Mar-18,MEDSURGCONS - OTHER,Surgery,NHS LOGISTICS,1018237002,0.98,
Department of Health,Salisbury NHS Foundation Trust,16-Mar-18,OTHER MEDICAL SUPPLIES,Surgery,NHS LOGISTICS,1018237002,0.16,
Department of Health,Salisbury NHS Foundation Trust,16-Mar-18,DRESSINGS - PRE STERILE,Surgery,NHS LOGISTICS,1018237002,10.39,
Department of Health,Salisbury NHS Foundation Trust,16-Mar-18,DRESSINGS - PRE STERILE,Surgery,NHS LOGISTICS,1018237002,13.64,
Department of Health,Salisbury NHS Foundation Trust,16-Mar-18,DRESSINGS - PRE STERILE,Surgery,NHS LOGISTICS,1018237002,4.22,
Department of Health,Salisbury NHS Foundation Trust,16-Mar-18,DRESSINGS - PRE STERILE,Surgery,NHS LOGISTICS,1018237002,0.39,
Department of Health,Salisbury NHS Foundation Trust,16-Mar-18,DRESSINGS - PRE STERILE,Surgery,NHS LOGISTICS,1018237002,1.73,
Department of Health,Salisbury NHS Foundation Trust,16-Mar-18,TISSUES HAND TOWELS & TOILET PAPER,Surgery,NHS LOGISTICS,1018237002,1.36,
Department of Health,Salisbury NHS Foundation Trust,16-Mar-18,TISSUES HAND TOWELS & TOILET PAPER,Surgery,NHS LOGISTICS,1018237002,1.49,
Department of Health,Salisbury NHS Foundation Trust,16-Mar-18,DISPOSABLE THEATRE DRAPES WIPES,Surgery,NHS LOGISTICS,1018237002,0.71,
Department of Health,Salisbury NHS Foundation Trust,16-Mar-18,DISPOSABLE THEATRE DRAPES WIPES,Surgery,NHS LOGISTICS,1018237002,14.16,
Department of Health,Salisbury NHS Foundation Trust,16-Mar-18,MEDSURGCONS - OTHER,Surgery,NHS LOGISTICS,1018237002,1.36,
Department of Health,Salisbury NHS Foundation Trust,16-Mar-18,DRUGS,Surgery,NHS LOGISTICS,1018237002,7.85,
Department of Health,Salisbury NHS Foundation Trust,16-Mar-18,OTHER MEDICAL SUPPLIES,Surgery,NHS LOGISTICS,1018237002,1.51,
Department of Health,Salisbury NHS Foundation Trust,16-Mar-18,OTHER MEDICAL SUPPLIES,Surgery,NHS LOGISTICS,1018237002,3.43,
Department of Health,Salisbury NHS Foundation Trust,16-Mar-18,MEDSURGCONS - OTHER,Surgery,NHS LOGISTICS,1018237002,1.18,
Department of Health,Salisbury NHS Foundation Trust,16-Mar-18,PATIENT APPLIANCES,Clinical Support,NHS LOGISTICS,1018237002,6.09,
Department of Health,Salisbury NHS Foundation Trust,16-Mar-18,TISSUES HAND TOWELS & TOILET PAPER,Clinical Support,NHS LOGISTICS,1018237002,0.5,
Department of Health,Salisbury NHS Foundation Trust,16-Mar-18,MEDSURGCONS - OTHER,Clinical Support,NHS LOGISTICS,1018237002,1.95,
Department of Health,Salisbury NHS Foundation Trust,16-Mar-18,MEDSURGCONS - OTHER,Clinical Support,NHS LOGISTICS,1018237002,2.93,
Department of Health,Salisbury NHS Foundation Trust,16-Mar-18,MEDSURGCONS - OTHER,Clinical Support,NHS LOGISTICS,1018237002,1.95,
Department of Health,Salisbury NHS Foundation Trust,16-Mar-18,PATIENT APPLIANCES,Clinical Support,NHS LOGISTICS,1018237002,5.77,
Department of Health,Salisbury NHS Foundation Trust,16-Mar-18,OTHER MEDICAL SUPPLIES,Clinical Support,NHS LOGISTICS,1018237002,1.37,
Department of Health,Salisbury NHS Foundation Trust,16-Mar-18,DRESSINGS - PRE STERILE,Clinical Support,NHS LOGISTICS,1018237002,0.22,
Department of Health,Salisbury NHS Foundation Trust,16-Mar-18,DISPOSABLE THEATRE DRAPES WIPES,Clinical Support,NHS LOGISTICS,1018237002,1.42,
Department of Health,Salisbury NHS Foundation Trust,16-Mar-18,TISSUES HAND TOWELS & TOILET PAPER,Surgery,NHS LOGISTICS,1018237002,0.99,
Department of Health,Salisbury NHS Foundation Trust,16-Mar-18,DISPOSABLE THEATRE DRAPES WIPES,Surgery,NHS LOGISTICS,1018237002,0.71,
Department of Health,Salisbury NHS Foundation Trust,16-Mar-18,BEVERAGES & AMBIENT FOOD,Surgery,NHS LOGISTICS,1018237002,8.6,
Department of Health,Salisbury NHS Foundation Trust,16-Mar-18,BEVERAGES & AMBIENT FOOD,Surgery,NHS LOGISTICS,1018237002,0.74,
Department of Health,Salisbury NHS Foundation Trust,16-Mar-18,BEVERAGES & AMBIENT FOOD,Surgery,NHS LOGISTICS,1018237002,2.11,
Department of Health,Salisbury NHS Foundation Trust,16-Mar-18,DRESSINGS - PRE STERILE,Surgery,NHS LOGISTICS,1018237002,1.88,
Department of Health,Salisbury NHS Foundation Trust,16-Mar-18,DRESSINGS - PRE STERILE,Surgery,NHS LOGISTICS,1018237002,1.13,
Department of Health,Salisbury NHS Foundation Trust,16-Mar-18,MEDSURGCONS - OTHER,Surgery,NHS LOGISTICS,1018237002,0.98,
Department of Health,Salisbury NHS Foundation Trust,16-Mar-18,OTHER MEDICAL SUPPLIES,Surgery,NHS LOGISTICS,1018237002,0.38,
Department of Health,Salisbury NHS Foundation Trust,16-Mar-18,DISPOSABLE THEATRE DRAPES WIPES,Surgery,NHS LOGISTICS,1018237002,0.71,
Department of Health,Salisbury NHS Foundation Trust,16-Mar-18,OTHER MEDICAL SUPPLIES,Musculo-Skeletal,NHS LOGISTICS,1018237002,0.38,
Department of Health,Salisbury NHS Foundation Trust,16-Mar-18,MEDSURGCONS - OTHER,Musculo-Skeletal,NHS LOGISTICS,1018237002,1.18,
Department of Health,Salisbury NHS Foundation Trust,16-Mar-18,MEDSURGCONS - OTHER,Musculo-Skeletal,NHS LOGISTICS,1018237002,0.78,
Department of Health,Salisbury NHS Foundation Trust,16-Mar-18,M & S EQUIPELECTEQUIPINST - OTHER,Musculo-Skeletal,NHS LOGISTICS,1018237002,5.04,
Department of Health,Salisbury NHS Foundation Trust,16-Mar-18,MEDSURGCONS - OTHER,Musculo-Skeletal,NHS LOGISTICS,1018237002,8.59,
Department of Health,Salisbury NHS Foundation Trust,16-Mar-18,TISSUES HAND TOWELS & TOILET PAPER,Musculo-Skeletal,NHS LOGISTICS,1018237002,4.2,
Department of Health,Salisbury NHS Foundation Trust,16-Mar-18,MEDSURGCONS - OTHER,Musculo-Skeletal,NHS LOGISTICS,1018237002,17.17,
Department of Health,Salisbury NHS Foundation Trust,16-Mar-18,MEDSURGCONS - OTHER,Musculo-Skeletal,NHS LOGISTICS,1018237002,8.58,
Department of Health,Salisbury NHS Foundation Trust,16-Mar-18,HEALTHCARE - WEAR,Musculo-Skeletal,NHS LOGISTICS,1018237002,34.85,
Department of Health,Salisbury NHS Foundation Trust,16-Mar-18,MEDSURGCONS - OTHER,Musculo-Skeletal,NHS LOGISTICS,1018237002,2.39,
Department of Health,Salisbury NHS Foundation Trust,16-Mar-18,OTHER MEDICAL SUPPLIES,Musculo-Skeletal,NHS LOGISTICS,1018237002,3.1,
Department of Health,Salisbury NHS Foundation Trust,16-Mar-18,PATIENT APPLIANCES,Musculo-Skeletal,NHS LOGISTICS,1018237002,3.51,
Department of Health,Salisbury NHS Foundation Trust,16-Mar-18,PATIENT APPLIANCES,Musculo-Skeletal,NHS LOGISTICS,1018237002,3.51,
Department of Health,Salisbury NHS Foundation Trust,16-Mar-18,PATIENT APPLIANCES,Musculo-Skeletal,NHS LOGISTICS,1018237002,17.27,
Department of Health,Salisbury NHS Foundation Trust,16-Mar-18,DISPOSABLE THEATRE DRAPES WIPES,Musculo-Skeletal,NHS LOGISTICS,1018237002,0.66,
Department of Health,Salisbury NHS Foundation Trust,16-Mar-18,DISPOSABLE THEATRE DRAPES WIPES,Musculo-Skeletal,NHS LOGISTICS,1018237002,3.55,
Department of Health,Salisbury NHS Foundation Trust,16-Mar-18,MEDSURGCONS - OTHER,Clinical Support,NHS LOGISTICS,1018237002,1.95,
Department of Health,Salisbury NHS Foundation Trust,16-Mar-18,MEDSURGCONS - OTHER,Clinical Support,NHS LOGISTICS,1018237002,0.98,
Department of Health,Salisbury NHS Foundation Trust,16-Mar-18,DRESSINGS - PRE STERILE,Clinical Support,NHS LOGISTICS,1018237002,0.22,
Department of Health,Salisbury NHS Foundation Trust,16-Mar-18,DISPOSABLE THEATRE DRAPES WIPES,Clinical Support,NHS LOGISTICS,1018237002,0.71,
Department of Health,Salisbury NHS Foundation Trust,16-Mar-18,TISSUES HAND TOWELS & TOILET PAPER,Surgery,NHS LOGISTICS,1018237002,1.74,
Department of Health,Salisbury NHS Foundation Trust,16-Mar-18,MEDSURGCONS - OTHER,Surgery,NHS LOGISTICS,1018237002,0.98,
